{"text_format":"1","workbook":"xlsx","n_sheets":21,"sheets":["はじめに","TOP","シート1","シート2-①","シート2-②-1","シート2-②-2","シート2-②-3","シート2-②-4","シート2-②-5","シート2-②-6","シート2-②-7","シート3-①","シート3-②-1","シート3-②-2","シート3-②-3","シート3-②-4","シート3-②-5","シート3-②-6","シート3-②-7","集計用シート（専門Ⅱ）","リスト"],"not_rendered":{"charts":0,"images":2,"macros":1,"external_links":0,"defined_names":17,"comments":8,"pivot_tables":0},"unopened":[],"bounds":{"document_bytes":16777216,"sheet_cells":100000,"rows_first":2000,"rows_last":500,"rows_between":2000,"halvings":0,"cell_chars":16384,"cell_head_chars":4096},"cells_cut":0,"cells_raw":0,"read":"whole","date_system":"1900"}

{"sheet":"はじめに","index":0,"n_rows":108,"n_cols":17,"rows_kept":108,"cut":false,"hidden":false,"merged":[[105,5,105,9],[105,10,107,11],[105,12,107,17],[95,1,95,3],[95,4,95,5],[95,7,95,9],[95,10,95,11],[95,13,95,15],[95,16,95,17],[93,16,93,17],[94,1,94,3],[94,4,94,5],[94,7,94,9],[94,10,94,11],[94,13,94,15],[94,16,94,17],[93,1,93,3],[93,4,93,5],[93,7,93,9],[93,10,93,11],[93,13,93,15],[92,1,92,5],[92,7,92,11],[92,13,92,17],[0,0,0,20],[1,0,1,20],[22,1,22,3],[24,1,24,3],[33,1,33,3],[35,1,35,3],[37,1,37,3],[45,4,47,20],[46,1,46,3],[85,1,85,3],[87,1,87,3],[85,5,85,18],[87,5,87,18]]}
["平成●●年度　●●県介護支援専門員専門研修課程Ⅰ・Ⅱ"]
["研修記録シート（専門研修課程Ⅱ）　入力フォーマットの説明"]
[]
["この研修記録シートは｢受講前」、「受講直後」、「受講3ヶ月後」に研修の評価をするものです。"]
["受講にあたり、下記の手順で記録と提出をお願いします。"]
[]
["（1）シートの種類"]
[]
[null,"このシートは3種類で構成されています。"]
[]
[]
[]
[]
[]
[]
[]
[]
[]
["　①研修記録シート1（目標）"]
[]
["　　　「受講者」と「管理者」が受講に当たっての目標と評価（効果）を共有するためのシートです。"]
[]
[null,"受講前",null,null,"　受講前に、「受講者」と「管理者」が相談して「研修に期待すること」「目標」を記入して下さい。"]
[]
[null,"受講3ヶ月後",null,null,"　受講3ヶ月後に、「受講者」と「管理者」が目標に対する評価を記入してください。"]
[]
[]
[]
["　②研修記録シート2（評価）"]
[]
["　　　「受講者」が研修の「受講前」「受講直後」「受講3ヶ月後」に記入し、自己評価をするためのシートです。"]
["　　　科目毎にシートがあり、学ぶ内容に沿って自己評価を記入します。"]
[]
[null,"受講前",null,null,"　各項目について、受講前の段階の自身の自己評価を記入してください。"]
[]
[null,"受講直後",null,null,"　受講直後の自己評価を記入し、提出してください。"]
[]
[null,"受講3ヶ月後",null,null,"　受講3ヶ月後を目途に、実践で活用した際の自己評価を記入してください。"]
[]
[]
[]
["　③研修記録シート3（振り返り）"]
[]
["　　　「受講者」が科目の学習時に感じた事を書き留め、今後の学習方針や取り組みの検討時に見返すためのシートです。"]
["　　　科目毎にシートがあり、修了後も関連した内容を書き留め、記録しておきます。"]
[null,null,null,null,"　受講直後から継続して記入します。理解したこと、出来なかったこと、主観的・感情的な記述\n　（嬉しかったこと、腑に落ちたこと、講師の話し方など感情的な内容）も重要なので記載します。"]
[null,"受講直後"]
[]
[]
[]
[]
[]
[]
[]
["（2）入力方法"]
[]
["①","入力するには、画面下の「TOP」シートをクリックします。"]
[]
[]
[]
[]
[]
[]
[]
[]
["②","シートを選択して入力します。　※入力後は忘れずに保存して下さい。"]
[]
[]
[]
[]
[]
[]
[]
[]
[]
[]
[]
[]
["（3）提出方法"]
[]
["　①提出先"]
[]
["　　　研修実施機関の事務局までE-mailにてご提出ください。"]
["　　　本研修の実施機関は下記の通りです。"]
[]
[null,"実施機関"]
[]
[null,"送信先（E-mail)"]
[]
[]
["　②提出の時期"]
[]
[null,"シート1（目標）",null,null,null,null,null,"シート2（評価）",null,null,null,null,null,"シート3（振り返り）"]
[null,"　1．受講前",null,null,"○",null,null,"　1．受講前",null,null,"○",null,null,"　1．受講前",null,null,"-"]
[null,"　2．受講直後",null,null,"-",null,null,"　2．受講直後",null,null,"○",null,null,"　2．受講直後",null,null,"-"]
[null,"　3．受講3ヶ月後",null,null,"○",null,null,"　3．受講3ヶ月後",null,null,"○",null,null,"　3．受講3ヶ月後",null,null,"-"]
[]
[null,"○　・・・要提出",null,null,null,"－　・・・提出不要"]
[]
[]
["　③提出時の注意"]
[]
[null,"ご提出の際は、ファイル名を「受講番号」と「氏名」を組み合わせ、下記の通り変更して送信してください。"]
[null,"ファイル名：",null,null,"受講番号　+　氏名"]
[]
[null,"例）",null,"受講番号",null,"　　12345678",null,null,null,null,"ファイル名",null,"12345678介護太郎"]
[]
[null,null,null,"氏名",null,"　　介護　太郎"]

{"sheet":"TOP","index":1,"n_rows":26,"n_cols":5,"rows_kept":26,"cut":false,"hidden":false,"merged":[[29,2,29,3],[6,2,6,3],[2,0,2,5],[14,1,14,2],[8,1,8,4],[9,1,9,4],[10,1,10,4],[11,1,11,4],[14,3,14,4]]}
["平成●●年度　●●県介護支援専門員実務研修"]
[]
["研修記録シート（専門Ⅰ）　入力フォーマット"]
[]
[null,"★入力するには、下の表から入力するデータ名（黄色の網掛け部分）をクリックしてください。"]
[null,"★データの送信先は次のアドレスです。"]
[]
[]
[null,"シート名"]
[null,"1．研修記録シート1（目標）"]
[null,"2．研修記録シート2（評価）　　　　　 ※下の表からシート番号を選択してください。"]
[null,"3．研修記録シート3（振り返り）　　　  ※下の表からシート番号を選択してください。"]
[]
[]
[null,"科目名",null,"シート番号"]
[null,"①","介護保険制度及び地域包括ケアシステムの今後の展開","シート2","シート3"]
[null,"②-1","ケアマネジメントにおける実践事例の研究及び発表\n「リハビリテーション及び福祉用具の活用に関する事例」","シート2","シート3"]
[null,"②-2","ケアマネジメントにおける実践事例の研究及び発表\n「看取り等における看護サービスの活用に関する事例」","シート2","シート3"]
[null,"②-3","ケアマネジメントにおける実践事例の研究及び発表\n「認知症に関する事例」","シート2","シート3"]
[null,"②-4","ケアマネジメントにおける実践事例の研究及び発表\n「入退院時等における医療との連携に関する事例」","シート2","シート3"]
[null,"②-5","ケアマネジメントにおける実践事例の研究及び発表\n「家族への支援の視点が必要な事例」","シート2","シート3"]
[null,"②-6","ケアマネジメントにおける実践事例の研究及び発表\n「社会資源の活用に向けた関係機関との連携に関する事例」","シート2","シート3"]
[null,"②-7","ケアマネジメントにおける実践事例の研究及び発表\n「状態に応じた多様なサービス（地域密着型サービスや施設サービス等）の活用に関する事例」","シート2","シート3"]
[]
[]
[null,"■問い合わせ先"]

{"sheet":"シート1","index":2,"n_rows":63,"n_cols":27,"rows_kept":63,"cut":false,"hidden":false,"merged":[[61,1,61,17],[62,1,62,17],[49,1,49,2],[24,6,24,7],[24,1,24,2],[49,6,49,7],[36,1,36,2],[53,1,58,17],[26,3,26,4],[26,6,26,7],[60,1,60,17],[6,3,6,4],[6,5,6,6],[24,3,24,4],[24,8,24,17],[49,3,49,4],[49,8,49,17],[13,3,13,4],[8,1,8,2],[26,8,26,17],[38,1,38,2],[38,3,38,4],[26,1,26,2],[51,1,51,2],[51,3,51,4],[51,6,51,7],[51,8,51,17],[2,1,2,17],[15,1,20,17],[40,1,45,17],[6,11,6,12],[8,11,8,12],[6,1,6,2],[6,7,6,9],[8,3,8,9],[6,13,6,17],[8,13,8,17],[28,1,33,17],[13,1,13,2]]}
[null,"研修記録シート1（目標）"]
[]
[null,"この事前提出シートは、研修受講前に｢受講者」と「管理者」が受講に当たっての目標を共有するためのものです。\n研修に期待すること、目標、成果等を記入してください。\n赤枠内を入力してください。"]
[]
[null,"研修名：",null,null,"専門Ⅱ",null,null,null,null,null,null,null,null,null,null,null,null,null,null,null,null,null,null,null,null,null,"このボタンをクリックするとTOPページへ移動します。"]
[]
[null,"日程",null,null,null,"～",null,null,null,null,null,"氏名"]
[]
[null,"会場",null,null,null,null,null,null,null,null,null,"番号"]
[]
[null,"1．受講前"]
[null,"受講者記入欄",null,"：受講目標（研修後にどのような行動ができるようになりたいか）を記載してください。",null,null,null,null,null,null,null,null,null,null,null,null,null,null,null,null,null,"リスト（課程区分）","リスト（管理者記入欄）","リスト（実践評価：管理者記入欄","管理者記入欄（3ヶ月後）"]
[]
[null,"入力日"]
[]
[]
[null,null,null,null,null,null,null,null,null,null,null,null,null,null,null,null,null,null,null,null,null,"実務研修","○",4,"十分達成できている。","十分活用できている。"]
[null,null,null,null,null,null,null,null,null,null,null,null,null,null,null,null,null,null,null,null,null,null,null,3,"達成できていない。","活用できている。"]
[]
[null,null,null,null,null,null,null,null,null,null,null,null,null,null,null,null,null,null,null,null,null,null,null,2,"あまり達成できていない。","あまり活用できていない。"]
[null,null,null,null,null,null,null,null,null,null,null,null,null,null,null,null,null,null,null,null,null,null,null,1,"達成できていない。","活用できていない。"]
[]
[null,"管理者記入欄",null,"：受講者に研修で学んでほしいこと・期待することを記載してください。"]
[]
[null,"記入者氏名",null,null,null,null,"所属先及び役職"]
[]
[null,"入力日",null,null,null,null,"役職"]
[]
[]
[]
[]
[]
[]
[]
[]
[null,"2．受講後（3カ月後程度）"]
[null,"受講者記入欄",null,"：受講成果（目標の達成と実践への活用の状況）の自己評価を記載してください。"]
[]
[null,"入力日"]
[]
[]
[]
[]
[]
[]
[]
[]
[null,"管理者記入欄",null,null,"受講成果（受講者の目標の達成と実践への活用状況）を記載してください。"]
[]
[null,"記入者氏名",null,null,null,null,"所属先及び役職"]
[]
[null,"入力日",null,null,null,null,"役職"]
[]
[]
[]
[]
[]
[]
[]
[]
[null,"※受講目標は受講者と管理者で相談して決めてください。"]
[null,"※管理者欄は、受講者が管理者本人、または、実務に就いていない等の理由により、記入できない場合、地域の主任介護支援専門員に相談して記入をお願いします。"]
[null,"※「受講後」の欄は、実務に就かない方は、未就労である旨を記載の上ご提出いただき、就労後にご活用ください。"]

{"sheet":"シート2-①","index":3,"n_rows":149,"n_cols":41,"rows_kept":149,"cut":false,"hidden":false,"merged":[[31,1,31,28],[15,1,16,14],[18,24,18,28],[15,15,16,17],[17,15,17,17],[18,15,18,17],[17,1,17,14],[15,21,16,23],[15,24,16,28],[10,12,10,15],[9,4,9,8],[9,12,9,15],[9,9,10,10],[30,1,30,28],[12,1,13,2],[12,4,12,20],[13,4,13,20],[10,17,10,20],[2,1,2,28],[9,17,9,20],[10,4,10,8],[5,1,5,2],[6,1,6,2],[9,1,10,2],[5,3,5,28],[12,24,13,28],[12,21,13,23],[9,21,10,23],[9,24,10,28],[6,3,6,28],[15,33,16,33],[15,36,15,37],[15,38,15,39],[15,34,15,35],[17,18,17,20],[17,21,17,23],[17,24,17,28],[17,34,17,35],[15,18,16,20],[17,38,17,39],[19,2,19,14],[19,15,19,17],[20,15,20,17],[18,21,18,23],[21,2,21,14],[19,18,19,20],[19,21,19,23],[21,18,21,20],[20,18,20,20],[20,21,20,23],[28,24,28,28],[22,21,22,23],[28,21,28,23],[21,24,21,28],[24,2,24,14],[24,15,24,17],[28,2,28,14],[28,18,28,20],[28,15,28,17],[22,15,22,17],[17,36,17,37],[19,24,19,28],[21,21,21,23],[18,18,18,20],[23,2,23,14],[23,15,23,17],[23,18,23,20],[23,21,23,23],[23,24,23,28],[20,2,20,14],[22,2,22,14],[22,18,22,20],[21,15,21,17],[22,24,22,28],[20,24,20,28],[18,2,18,14],[24,18,24,20],[24,21,24,23],[24,24,24,28],[26,2,26,14],[26,15,26,17],[26,18,26,20],[26,21,26,23],[26,24,26,28],[25,2,25,14],[25,15,25,17],[25,18,25,20],[25,21,25,23],[25,24,25,28],[27,2,27,14],[27,15,27,17],[27,18,27,20],[27,21,27,23],[27,24,27,28]]}
[null,"研修記録シート2（評価）"]
[]
[null,"この振り返りシートは、科目の受講前後で各自の理解度を把握し、受講中の学習効果の向上と、受講後の学習のポイントを焦点化し、継続的な資質向上に役立てるものです。本科目を学習した時点で感じた事を書き留め、今後の学習方針や課題への取り組みを考える際に見返してみましょう。"]
[]
[]
[null,"研修名：",null,"専門研修Ⅱ",null,null,null,null,null,null,null,null,null,null,null,null,null,null,null,null,null,null,null,null,null,null,null,null,null,null,null,null,null,null,null,null,null,null,null,null,"このボタンをクリックするとTOPページへ移動します。"]
[null,"科目名：",null,"①介護保険制度及び地域包括ケアシステムの今後の展開"]
[]
[]
[null,"受講日",null,1,null,null,null,null,null,"時間",null,1,null,null,null,null,"～",null,null,null,null,"氏名",null,null,{"$f":"IF(ISBLANK(シート1!N7),\"\",シート1!N7)","v":""}]
[null,null,null,2,null,null,null,null,null,null,null,2,null,null,null,null,"～"]
[]
[null,"会場",null,1,null,null,null,null,null,null,null,null,null,null,null,null,null,null,null,null,null,"番号",null,null,{"$f":"IF(ISBLANK(シート1!N9),\"\",シート1!N9)","v":""}]
[null,null,null,2]
[]
[null,"項　　目 ",null,null,null,null,null,null,null,null,null,null,null,null,null,"受講前 ",null,null,"受講\n直後",null,null,"実践\n評価\n(3ヶ月後）",null,null,"備　　考 ",null,null,null,null,null,null,"リスト（課程区分）","リスト（時間）",null,"受講前",null,"受講後 ",null,"実践評価"]
[null,null,null,null,null,null,null,null,null,null,null,null,null,null,null,null,null,null,null,null,null,null,null,null,null,null,null,null,null,null,null,null,"リストから選択",null,"理解度","習得度","理解度","習得度","理解度","習得度"]
[null,"記入日（入力日）",null,null,null,null,null,null,null,null,null,null,null,null,null,null,null,null,null,null,null,null,null,null,null,null,null,null,null,null,null,"リスト（課程区分）","リスト（時間）",null,"受講前",null,"受講後 ",null,"実践評価"]
[null,"① ","介護保険制度等の改正の内容とその理由について説明することができる。",null,null,null,null,null,null,null,null,null,null,null,null,null,null,null,null,null,null,null,null,null,null,null,null,null,null,null,null,"Ⅰ","08:00:00"]
[null,"② ","地域の社会資源を活用したケアマネジメントを実施できる。",null,null,null,null,null,null,null,null,null,null,null,null,null,null,null,null,null,null,null,null,null,null,null,null,null,null,null,null,"Ⅱ","08:05:00",4,"4．理解している ","-","4．非常に理解が深まった ","4．習得できた ","4．非常に理解が深まった","4．習得度が上がった "]
[null,"③ ","地域包括ケアシステムの構築に向けて地域課題の解決における介護支援専門員が果たすべき役割を具体的に実施できる。",null,null,null,null,null,null,null,null,null,null,null,null,null,null,null,null,null,null,null,null,null,null,null,null,null,null,null,null,null,"08:10:00",3,"3．概ね理解している ","-","3．理解が深まった ","3．概ね習得できた ","3．理解が深まった","3．まあまあ習得度が上がった "]
[null,"④ ","介護保険制度の中での課題解決のために新たな社会資源と関連付けた対応を実施できる。",null,null,null,null,null,null,null,null,null,null,null,null,null,null,null,null,null,null,null,null,null,null,null,null,null,null,null,null,null,"08:15:00",2,"2．あまり理解していない ","-","2．あまり理解が進まなかった ","2．あまり習得できていない ","2．あまり理解度は変わらない ","2．習得度は変わらない "]
[null,"⑤ ","地域包括ケアシステムの構築に向けた現状の取り組みや課題の解決のために介護支援専門員として具体的な行動を実施できる。",null,null,null,null,null,null,null,null,null,null,null,null,null,null,null,null,null,null,null,null,null,null,null,null,null,null,null,null,null,"08:20:00",1,"1．全く理解していない ","-","1．理解が進まなかった ","1．習得できていない ","1．理解度は変わらない。 ","1．理解度が深まり、習得度が後退した "]
[null,null,null,null,null,null,null,null,null,null,null,null,null,null,null,null,null,null,null,null,null,null,null,null,null,null,null,null,null,null,null,null,"08:30:00"]
[null,null,null,null,null,null,null,null,null,null,null,null,null,null,null,null,null,null,null,null,null,null,null,null,null,null,null,null,null,null,null,null,"08:35:00"]
[null,null,null,null,null,null,null,null,null,null,null,null,null,null,null,null,null,null,null,null,null,null,null,null,null,null,null,null,null,null,null,null,"08:40:00"]
[null,null,null,null,null,null,null,null,null,null,null,null,null,null,null,null,null,null,null,null,null,null,null,null,null,null,null,null,null,null,null,null,"08:40:00"]
[null,null,null,null,null,null,null,null,null,null,null,null,null,null,null,null,null,null,null,null,null,null,null,null,null,null,null,null,null,null,null,null,"08:45:00"]
[null,null,null,null,null,null,null,null,null,null,null,null,null,null,null,null,null,null,null,null,null,null,null,null,null,null,null,null,null,null,null,null,"09:10:00"]
[null,null,null,null,null,null,null,null,null,null,null,null,null,null,null,null,null,null,null,null,null,null,null,null,null,null,null,null,null,null,null,null,"09:15:00"]
[null,"　※研修は自己評価とし、4段階評価で、数字が大きいほど高評価、数字が小さいほど低評価として記入してください。",null,null,null,null,null,null,null,null,null,null,null,null,null,null,null,null,null,null,null,null,null,null,null,null,null,null,null,null,null,null,"09:20:00"]
[null,"　　【選択肢】　　　4.　できる　　　　　3.　概ねできる　　　　　2.　ほとんどできない　　　　1.　全くできない",null,null,null,null,null,null,null,null,null,null,null,null,null,null,null,null,null,null,null,null,null,null,null,null,null,null,null,null,null,null,"09:25:00"]
[null,null,null,null,null,null,null,null,null,null,null,null,null,null,null,null,null,null,null,null,null,null,null,null,null,null,null,null,null,null,null,null,"09:20:00"]
[null,null,null,null,null,null,null,null,null,null,null,null,null,null,null,null,null,null,null,null,null,null,null,null,null,null,null,null,null,null,null,null,"09:25:00"]
[null,null,null,null,null,null,null,null,null,null,null,null,null,null,null,null,null,null,null,null,null,null,null,null,null,null,null,null,null,null,null,null,"09:30:00"]
[null,null,null,null,null,null,null,null,null,null,null,null,null,null,null,null,null,null,null,null,null,null,null,null,null,null,null,null,null,null,null,null,"09:35:00"]
[null,null,null,null,null,null,null,null,null,null,null,null,null,null,null,null,null,null,null,null,null,null,null,null,null,null,null,null,null,null,null,null,"09:40:00"]
[null,null,null,null,null,null,null,null,null,null,null,null,null,null,null,null,null,null,null,null,null,null,null,null,null,null,null,null,null,null,null,null,"09:45:00"]
[null,null,null,null,null,null,null,null,null,null,null,null,null,null,null,null,null,null,null,null,null,null,null,null,null,null,null,null,null,null,null,null,"09:50:00"]
[null,null,null,null,null,null,null,null,null,null,null,null,null,null,null,null,null,null,null,null,null,null,null,null,null,null,null,null,null,null,null,null,"09:55:00"]
[null,null,null,null,null,null,null,null,null,null,null,null,null,null,null,null,null,null,null,null,null,null,null,null,null,null,null,null,null,null,null,null,"10:00:00"]
[null,null,null,null,null,null,null,null,null,null,null,null,null,null,null,null,null,null,null,null,null,null,null,null,null,null,null,null,null,null,null,null,"10:05:00"]
[null,null,null,null,null,null,null,null,null,null,null,null,null,null,null,null,null,null,null,null,null,null,null,null,null,null,null,null,null,null,null,null,"10:10:00"]
[null,null,null,null,null,null,null,null,null,null,null,null,null,null,null,null,null,null,null,null,null,null,null,null,null,null,null,null,null,null,null,null,"10:15:00"]
[null,null,null,null,null,null,null,null,null,null,null,null,null,null,null,null,null,null,null,null,null,null,null,null,null,null,null,null,null,null,null,null,"10:20:00"]
[null,null,null,null,null,null,null,null,null,null,null,null,null,null,null,null,null,null,null,null,null,null,null,null,null,null,null,null,null,null,null,null,"10:25:00"]
[null,null,null,null,null,null,null,null,null,null,null,null,null,null,null,null,null,null,null,null,null,null,null,null,null,null,null,null,null,null,null,null,"10:30:00"]
[null,null,null,null,null,null,null,null,null,null,null,null,null,null,null,null,null,null,null,null,null,null,null,null,null,null,null,null,null,null,null,null,"10:35:00"]
[null,null,null,null,null,null,null,null,null,null,null,null,null,null,null,null,null,null,null,null,null,null,null,null,null,null,null,null,null,null,null,null,"10:40:00"]
[null,null,null,null,null,null,null,null,null,null,null,null,null,null,null,null,null,null,null,null,null,null,null,null,null,null,null,null,null,null,null,null,"10:45:00"]
[null,null,null,null,null,null,null,null,null,null,null,null,null,null,null,null,null,null,null,null,null,null,null,null,null,null,null,null,null,null,null,null,"10:50:00"]
[null,null,null,null,null,null,null,null,null,null,null,null,null,null,null,null,null,null,null,null,null,null,null,null,null,null,null,null,null,null,null,null,"10:55:00"]
[null,null,null,null,null,null,null,null,null,null,null,null,null,null,null,null,null,null,null,null,null,null,null,null,null,null,null,null,null,null,null,null,"11:00:00"]
[null,null,null,null,null,null,null,null,null,null,null,null,null,null,null,null,null,null,null,null,null,null,null,null,null,null,null,null,null,null,null,null,"11:05:00"]
[null,null,null,null,null,null,null,null,null,null,null,null,null,null,null,null,null,null,null,null,null,null,null,null,null,null,null,null,null,null,null,null,"11:10:00"]
[null,null,null,null,null,null,null,null,null,null,null,null,null,null,null,null,null,null,null,null,null,null,null,null,null,null,null,null,null,null,null,null,"11:15:00"]
[null,null,null,null,null,null,null,null,null,null,null,null,null,null,null,null,null,null,null,null,null,null,null,null,null,null,null,null,null,null,null,null,"11:20:00"]
[null,null,null,null,null,null,null,null,null,null,null,null,null,null,null,null,null,null,null,null,null,null,null,null,null,null,null,null,null,null,null,null,"11:25:00"]
[null,null,null,null,null,null,null,null,null,null,null,null,null,null,null,null,null,null,null,null,null,null,null,null,null,null,null,null,null,null,null,null,"11:30:00"]
[null,null,null,null,null,null,null,null,null,null,null,null,null,null,null,null,null,null,null,null,null,null,null,null,null,null,null,null,null,null,null,null,"11:35:00"]
[null,null,null,null,null,null,null,null,null,null,null,null,null,null,null,null,null,null,null,null,null,null,null,null,null,null,null,null,null,null,null,null,"11:40:00"]
[null,null,null,null,null,null,null,null,null,null,null,null,null,null,null,null,null,null,null,null,null,null,null,null,null,null,null,null,null,null,null,null,"11:45:00"]
[null,null,null,null,null,null,null,null,null,null,null,null,null,null,null,null,null,null,null,null,null,null,null,null,null,null,null,null,null,null,null,null,"11:50:00"]
[null,null,null,null,null,null,null,null,null,null,null,null,null,null,null,null,null,null,null,null,null,null,null,null,null,null,null,null,null,null,null,null,"11:55:00"]
[null,null,null,null,null,null,null,null,null,null,null,null,null,null,null,null,null,null,null,null,null,null,null,null,null,null,null,null,null,null,null,null,"12:00:00"]
[null,null,null,null,null,null,null,null,null,null,null,null,null,null,null,null,null,null,null,null,null,null,null,null,null,null,null,null,null,null,null,null,"12:05:00"]
[null,null,null,null,null,null,null,null,null,null,null,null,null,null,null,null,null,null,null,null,null,null,null,null,null,null,null,null,null,null,null,null,"12:10:00"]
[null,null,null,null,null,null,null,null,null,null,null,null,null,null,null,null,null,null,null,null,null,null,null,null,null,null,null,null,null,null,null,null,"12:15:00"]
[null,null,null,null,null,null,null,null,null,null,null,null,null,null,null,null,null,null,null,null,null,null,null,null,null,null,null,null,null,null,null,null,"12:20:00"]
[null,null,null,null,null,null,null,null,null,null,null,null,null,null,null,null,null,null,null,null,null,null,null,null,null,null,null,null,null,null,null,null,"12:25:00"]
[null,null,null,null,null,null,null,null,null,null,null,null,null,null,null,null,null,null,null,null,null,null,null,null,null,null,null,null,null,null,null,null,"12:30:00"]
[null,null,null,null,null,null,null,null,null,null,null,null,null,null,null,null,null,null,null,null,null,null,null,null,null,null,null,null,null,null,null,null,"12:35:00"]
[null,null,null,null,null,null,null,null,null,null,null,null,null,null,null,null,null,null,null,null,null,null,null,null,null,null,null,null,null,null,null,null,"12:40:00"]
[null,null,null,null,null,null,null,null,null,null,null,null,null,null,null,null,null,null,null,null,null,null,null,null,null,null,null,null,null,null,null,null,"12:45:00"]
[null,null,null,null,null,null,null,null,null,null,null,null,null,null,null,null,null,null,null,null,null,null,null,null,null,null,null,null,null,null,null,null,"12:50:00"]
[null,null,null,null,null,null,null,null,null,null,null,null,null,null,null,null,null,null,null,null,null,null,null,null,null,null,null,null,null,null,null,null,"12:55:00"]
[null,null,null,null,null,null,null,null,null,null,null,null,null,null,null,null,null,null,null,null,null,null,null,null,null,null,null,null,null,null,null,null,"13:00:00"]
[null,null,null,null,null,null,null,null,null,null,null,null,null,null,null,null,null,null,null,null,null,null,null,null,null,null,null,null,null,null,null,null,"13:05:00"]
[null,null,null,null,null,null,null,null,null,null,null,null,null,null,null,null,null,null,null,null,null,null,null,null,null,null,null,null,null,null,null,null,"13:10:00"]
[null,null,null,null,null,null,null,null,null,null,null,null,null,null,null,null,null,null,null,null,null,null,null,null,null,null,null,null,null,null,null,null,"13:15:00"]
[null,null,null,null,null,null,null,null,null,null,null,null,null,null,null,null,null,null,null,null,null,null,null,null,null,null,null,null,null,null,null,null,"13:20:00"]
[null,null,null,null,null,null,null,null,null,null,null,null,null,null,null,null,null,null,null,null,null,null,null,null,null,null,null,null,null,null,null,null,"13:25:00"]
[null,null,null,null,null,null,null,null,null,null,null,null,null,null,null,null,null,null,null,null,null,null,null,null,null,null,null,null,null,null,null,null,"13:30:00"]
[null,null,null,null,null,null,null,null,null,null,null,null,null,null,null,null,null,null,null,null,null,null,null,null,null,null,null,null,null,null,null,null,"13:35:00"]
[null,null,null,null,null,null,null,null,null,null,null,null,null,null,null,null,null,null,null,null,null,null,null,null,null,null,null,null,null,null,null,null,"13:40:00"]
[null,null,null,null,null,null,null,null,null,null,null,null,null,null,null,null,null,null,null,null,null,null,null,null,null,null,null,null,null,null,null,null,"13:45:00"]
[null,null,null,null,null,null,null,null,null,null,null,null,null,null,null,null,null,null,null,null,null,null,null,null,null,null,null,null,null,null,null,null,"13:50:00"]
[null,null,null,null,null,null,null,null,null,null,null,null,null,null,null,null,null,null,null,null,null,null,null,null,null,null,null,null,null,null,null,null,"13:55:00"]
[null,null,null,null,null,null,null,null,null,null,null,null,null,null,null,null,null,null,null,null,null,null,null,null,null,null,null,null,null,null,null,null,"14:00:00"]
[null,null,null,null,null,null,null,null,null,null,null,null,null,null,null,null,null,null,null,null,null,null,null,null,null,null,null,null,null,null,null,null,"14:05:00"]
[null,null,null,null,null,null,null,null,null,null,null,null,null,null,null,null,null,null,null,null,null,null,null,null,null,null,null,null,null,null,null,null,"14:10:00"]
[null,null,null,null,null,null,null,null,null,null,null,null,null,null,null,null,null,null,null,null,null,null,null,null,null,null,null,null,null,null,null,null,"14:15:00"]
[null,null,null,null,null,null,null,null,null,null,null,null,null,null,null,null,null,null,null,null,null,null,null,null,null,null,null,null,null,null,null,null,"14:20:00"]
[null,null,null,null,null,null,null,null,null,null,null,null,null,null,null,null,null,null,null,null,null,null,null,null,null,null,null,null,null,null,null,null,"14:25:00"]
[null,null,null,null,null,null,null,null,null,null,null,null,null,null,null,null,null,null,null,null,null,null,null,null,null,null,null,null,null,null,null,null,"14:30:00"]
[null,null,null,null,null,null,null,null,null,null,null,null,null,null,null,null,null,null,null,null,null,null,null,null,null,null,null,null,null,null,null,null,"14:35:00"]
[null,null,null,null,null,null,null,null,null,null,null,null,null,null,null,null,null,null,null,null,null,null,null,null,null,null,null,null,null,null,null,null,"14:40:00"]
[null,null,null,null,null,null,null,null,null,null,null,null,null,null,null,null,null,null,null,null,null,null,null,null,null,null,null,null,null,null,null,null,"14:45:00"]
[null,null,null,null,null,null,null,null,null,null,null,null,null,null,null,null,null,null,null,null,null,null,null,null,null,null,null,null,null,null,null,null,"14:50:00"]
[null,null,null,null,null,null,null,null,null,null,null,null,null,null,null,null,null,null,null,null,null,null,null,null,null,null,null,null,null,null,null,null,"14:55:00"]
[null,null,null,null,null,null,null,null,null,null,null,null,null,null,null,null,null,null,null,null,null,null,null,null,null,null,null,null,null,null,null,null,"15:00:00"]
[null,null,null,null,null,null,null,null,null,null,null,null,null,null,null,null,null,null,null,null,null,null,null,null,null,null,null,null,null,null,null,null,"15:05:00"]
[null,null,null,null,null,null,null,null,null,null,null,null,null,null,null,null,null,null,null,null,null,null,null,null,null,null,null,null,null,null,null,null,"15:10:00"]
[null,null,null,null,null,null,null,null,null,null,null,null,null,null,null,null,null,null,null,null,null,null,null,null,null,null,null,null,null,null,null,null,"15:15:00"]
[null,null,null,null,null,null,null,null,null,null,null,null,null,null,null,null,null,null,null,null,null,null,null,null,null,null,null,null,null,null,null,null,"15:20:00"]
[null,null,null,null,null,null,null,null,null,null,null,null,null,null,null,null,null,null,null,null,null,null,null,null,null,null,null,null,null,null,null,null,"15:25:00"]
[null,null,null,null,null,null,null,null,null,null,null,null,null,null,null,null,null,null,null,null,null,null,null,null,null,null,null,null,null,null,null,null,"15:30:00"]
[null,null,null,null,null,null,null,null,null,null,null,null,null,null,null,null,null,null,null,null,null,null,null,null,null,null,null,null,null,null,null,null,"15:35:00"]
[null,null,null,null,null,null,null,null,null,null,null,null,null,null,null,null,null,null,null,null,null,null,null,null,null,null,null,null,null,null,null,null,"15:40:00"]
[null,null,null,null,null,null,null,null,null,null,null,null,null,null,null,null,null,null,null,null,null,null,null,null,null,null,null,null,null,null,null,null,"15:45:00"]
[null,null,null,null,null,null,null,null,null,null,null,null,null,null,null,null,null,null,null,null,null,null,null,null,null,null,null,null,null,null,null,null,"15:50:00"]
[null,null,null,null,null,null,null,null,null,null,null,null,null,null,null,null,null,null,null,null,null,null,null,null,null,null,null,null,null,null,null,null,"15:55:00"]
[null,null,null,null,null,null,null,null,null,null,null,null,null,null,null,null,null,null,null,null,null,null,null,null,null,null,null,null,null,null,null,null,"16:00:00"]
[null,null,null,null,null,null,null,null,null,null,null,null,null,null,null,null,null,null,null,null,null,null,null,null,null,null,null,null,null,null,null,null,"16:05:00"]
[null,null,null,null,null,null,null,null,null,null,null,null,null,null,null,null,null,null,null,null,null,null,null,null,null,null,null,null,null,null,null,null,"16:10:00"]
[null,null,null,null,null,null,null,null,null,null,null,null,null,null,null,null,null,null,null,null,null,null,null,null,null,null,null,null,null,null,null,null,"16:15:00"]
[null,null,null,null,null,null,null,null,null,null,null,null,null,null,null,null,null,null,null,null,null,null,null,null,null,null,null,null,null,null,null,null,"16:20:00"]
[null,null,null,null,null,null,null,null,null,null,null,null,null,null,null,null,null,null,null,null,null,null,null,null,null,null,null,null,null,null,null,null,"16:25:00"]
[null,null,null,null,null,null,null,null,null,null,null,null,null,null,null,null,null,null,null,null,null,null,null,null,null,null,null,null,null,null,null,null,"16:30:00"]
[null,null,null,null,null,null,null,null,null,null,null,null,null,null,null,null,null,null,null,null,null,null,null,null,null,null,null,null,null,null,null,null,"16:35:00"]
[null,null,null,null,null,null,null,null,null,null,null,null,null,null,null,null,null,null,null,null,null,null,null,null,null,null,null,null,null,null,null,null,"16:40:00"]
[null,null,null,null,null,null,null,null,null,null,null,null,null,null,null,null,null,null,null,null,null,null,null,null,null,null,null,null,null,null,null,null,"16:45:00"]
[null,null,null,null,null,null,null,null,null,null,null,null,null,null,null,null,null,null,null,null,null,null,null,null,null,null,null,null,null,null,null,null,"16:50:00"]
[null,null,null,null,null,null,null,null,null,null,null,null,null,null,null,null,null,null,null,null,null,null,null,null,null,null,null,null,null,null,null,null,"16:55:00"]
[null,null,null,null,null,null,null,null,null,null,null,null,null,null,null,null,null,null,null,null,null,null,null,null,null,null,null,null,null,null,null,null,"17:00:00"]
[null,null,null,null,null,null,null,null,null,null,null,null,null,null,null,null,null,null,null,null,null,null,null,null,null,null,null,null,null,null,null,null,"17:05:00"]
[null,null,null,null,null,null,null,null,null,null,null,null,null,null,null,null,null,null,null,null,null,null,null,null,null,null,null,null,null,null,null,null,"17:10:00"]
[null,null,null,null,null,null,null,null,null,null,null,null,null,null,null,null,null,null,null,null,null,null,null,null,null,null,null,null,null,null,null,null,"17:15:00"]
[null,null,null,null,null,null,null,null,null,null,null,null,null,null,null,null,null,null,null,null,null,null,null,null,null,null,null,null,null,null,null,null,"17:20:00"]
[null,null,null,null,null,null,null,null,null,null,null,null,null,null,null,null,null,null,null,null,null,null,null,null,null,null,null,null,null,null,null,null,"17:25:00"]
[null,null,null,null,null,null,null,null,null,null,null,null,null,null,null,null,null,null,null,null,null,null,null,null,null,null,null,null,null,null,null,null,"17:30:00"]
[null,null,null,null,null,null,null,null,null,null,null,null,null,null,null,null,null,null,null,null,null,null,null,null,null,null,null,null,null,null,null,null,"17:35:00"]
[null,null,null,null,null,null,null,null,null,null,null,null,null,null,null,null,null,null,null,null,null,null,null,null,null,null,null,null,null,null,null,null,"17:40:00"]
[null,null,null,null,null,null,null,null,null,null,null,null,null,null,null,null,null,null,null,null,null,null,null,null,null,null,null,null,null,null,null,null,"17:45:00"]
[null,null,null,null,null,null,null,null,null,null,null,null,null,null,null,null,null,null,null,null,null,null,null,null,null,null,null,null,null,null,null,null,"17:50:00"]
[null,null,null,null,null,null,null,null,null,null,null,null,null,null,null,null,null,null,null,null,null,null,null,null,null,null,null,null,null,null,null,null,"17:55:00"]
[null,null,null,null,null,null,null,null,null,null,null,null,null,null,null,null,null,null,null,null,null,null,null,null,null,null,null,null,null,null,null,null,"18:00:00"]
[null,null,null,null,null,null,null,null,null,null,null,null,null,null,null,null,null,null,null,null,null,null,null,null,null,null,null,null,null,null,null,null,"18:05:00"]
[null,null,null,null,null,null,null,null,null,null,null,null,null,null,null,null,null,null,null,null,null,null,null,null,null,null,null,null,null,null,null,null,"18:10:00"]
[null,null,null,null,null,null,null,null,null,null,null,null,null,null,null,null,null,null,null,null,null,null,null,null,null,null,null,null,null,null,null,null,"18:15:00"]
[null,null,null,null,null,null,null,null,null,null,null,null,null,null,null,null,null,null,null,null,null,null,null,null,null,null,null,null,null,null,null,null,"18:20:00"]
[null,null,null,null,null,null,null,null,null,null,null,null,null,null,null,null,null,null,null,null,null,null,null,null,null,null,null,null,null,null,null,null,"18:25:00"]
[null,null,null,null,null,null,null,null,null,null,null,null,null,null,null,null,null,null,null,null,null,null,null,null,null,null,null,null,null,null,null,null,"18:30:00"]
[null,null,null,null,null,null,null,null,null,null,null,null,null,null,null,null,null,null,null,null,null,null,null,null,null,null,null,null,null,null,null,null,"18:35:00"]
[null,null,null,null,null,null,null,null,null,null,null,null,null,null,null,null,null,null,null,null,null,null,null,null,null,null,null,null,null,null,null,null,"18:40:00"]
[null,null,null,null,null,null,null,null,null,null,null,null,null,null,null,null,null,null,null,null,null,null,null,null,null,null,null,null,null,null,null,null,"18:45:00"]
[null,null,null,null,null,null,null,null,null,null,null,null,null,null,null,null,null,null,null,null,null,null,null,null,null,null,null,null,null,null,null,null,"18:50:00"]
[null,null,null,null,null,null,null,null,null,null,null,null,null,null,null,null,null,null,null,null,null,null,null,null,null,null,null,null,null,null,null,null,"18:55:00"]
[null,null,null,null,null,null,null,null,null,null,null,null,null,null,null,null,null,null,null,null,null,null,null,null,null,null,null,null,null,null,null,null,"19:00:00"]

{"sheet":"シート2-②-1","index":4,"n_rows":138,"n_cols":41,"rows_kept":138,"cut":false,"hidden":false,"merged":[[29,1,29,28],[30,1,30,28],[9,24,10,28],[10,12,10,15],[10,17,10,20],[12,1,13,2],[12,4,12,20],[12,21,13,23],[13,4,13,20],[15,1,16,14],[2,1,2,28],[5,1,5,2],[6,1,6,2],[9,1,10,2],[9,4,9,8],[9,17,9,20],[9,21,10,23],[6,3,6,28],[10,4,10,8],[5,3,5,28],[12,24,13,28],[9,9,10,10],[9,12,9,15],[15,36,15,37],[15,38,15,39],[15,33,16,33],[15,24,16,28],[17,38,17,39],[15,34,15,35],[15,15,16,17],[15,18,16,20],[15,21,16,23],[19,15,19,17],[19,18,19,20],[18,15,18,17],[18,18,18,20],[18,21,18,23],[17,15,17,17],[17,18,17,20],[17,1,17,14],[18,2,18,14],[19,2,19,14],[20,15,20,17],[17,36,17,37],[20,18,20,20],[20,21,20,23],[19,21,19,23],[19,24,19,28],[20,24,20,28],[18,24,18,28],[17,24,17,28],[17,21,17,23],[22,2,22,14],[21,15,21,17],[21,18,21,20],[21,21,21,23],[22,24,22,28],[21,24,21,28],[23,21,23,23],[23,15,23,17],[24,18,24,20],[24,15,24,17],[17,34,17,35],[20,2,20,14],[21,2,21,14],[25,21,25,23],[23,24,23,28],[26,2,26,14],[26,15,26,17],[26,18,26,20],[26,21,26,23],[26,24,26,28],[24,2,24,14],[24,21,24,23],[23,2,23,14],[22,15,22,17],[22,18,22,20],[22,21,22,23],[23,18,23,20],[25,24,25,28],[24,24,24,28],[27,2,27,14],[27,15,27,17],[27,18,27,20],[27,21,27,23],[27,24,27,28],[25,2,25,14],[25,15,25,17],[25,18,25,20]]}
[null,"研修記録シート2（評価）"]
[]
[null,"この振り返りシートは、科目の受講前後で各自の理解度を把握し、受講中の学習効果の向上と、受講後の学習のポイントを焦点化し、継続的な資質向上に役立てるものです。本科目を学習した時点で感じた事を書き留め、今後の学習方針や課題への取り組みを考える際に見返してみましょう。"]
[]
[]
[null,"研修名：",null,"専門研修Ⅱ",null,null,null,null,null,null,null,null,null,null,null,null,null,null,null,null,null,null,null,null,null,null,null,null,null,null,null,null,null,null,null,null,null,null,null,null,"このボタンをクリックするとTOPページへ移動します。"]
[null,"科目名：",null,"②-1ケアマネジメントにおける実践事例の研究及び発表「リハビリテーション及び福祉用具の活用に関する事例」"]
[]
[]
[null,"受講日",null,1,null,null,null,null,null,"時間",null,1,null,null,null,null,"～",null,null,null,null,"氏名",null,null,{"$f":"IF(ISBLANK(シート1!N7),\"\",シート1!N7)","v":""}]
[null,null,null,2,null,null,null,null,null,null,null,2,null,null,null,null,"～"]
[]
[null,"会場",null,1,null,null,null,null,null,null,null,null,null,null,null,null,null,null,null,null,null,"番号",null,null,{"$f":"IF(ISBLANK(シート1!N9),\"\",シート1!N9)","v":""}]
[null,null,null,2]
[]
[null,"項　　目 ",null,null,null,null,null,null,null,null,null,null,null,null,null,"受講前 ",null,null,"受講\n直後",null,null,"実践\n評価\n(3ヶ月後）",null,null,"備　　考 ",null,null,null,null,null,null,"リスト（課程区分）","リスト（時間）",null,"受講前",null,"受講後 ",null,"実践評価"]
[null,null,null,null,null,null,null,null,null,null,null,null,null,null,null,null,null,null,null,null,null,null,null,null,null,null,null,null,null,null,null,null,"リストから選択",null,"理解度","習得度","理解度","習得度","理解度","習得度"]
[null,"記入日（入力日）",null,null,null,null,null,null,null,null,null,null,null,null,null,null,null,null,null,null,null,null,null,null,null,null,null,null,null,null,null,"リスト（課程区分）","リスト（時間）",null,"受講前",null,"受講後 ",null,"実践評価"]
[null,"① ","リハビリテ―ション(口腔リハビリテーションを含む）福祉用具を組み入れた居宅サービス計画等の実践事例について意見交換を通して分析し、評価できる。",null,null,null,null,null,null,null,null,null,null,null,null,null,null,null,null,null,null,null,null,null,null,null,null,null,null,null,null,"Ⅰ","08:00:00"]
[null,"② ","分析し、評価した内容を受講者間で共有し、アセスメントや居宅サービス計画等の作成における留意点を判断できる。",null,null,null,null,null,null,null,null,null,null,null,null,null,null,null,null,null,null,null,null,null,null,null,null,null,null,null,null,"Ⅱ","08:05:00",4,"4．理解している ","-","4．非常に理解が深まった ","4．習得できた ","4．非常に理解が深まった","4．習得度が上がった "]
[null,"③ ","各種統計データを活用する等により、別の類似の事例等への応用を実施できる。",null,null,null,null,null,null,null,null,null,null,null,null,null,null,null,null,null,null,null,null,null,null,null,null,null,null,null,null,null,"08:10:00",3,"3．概ね理解している ","-","3．理解が深まった ","3．概ね習得できた ","3．理解が深まった","3．まあまあ習得度が上がった "]
[null,"④ ","地域の各種統計データを必要に応じて活用することにより、他の事例へも応用できる。",null,null,null,null,null,null,null,null,null,null,null,null,null,null,null,null,null,null,null,null,null,null,null,null,null,null,null,null,null,"08:15:00",2,"2．あまり理解していない ","-","2．あまり理解が進まなかった ","2．あまり習得できていない ","2．あまり理解度は変わらない ","2．習得度は変わらない "]
[null,"⑤ ","リハビリテーション(口腔リハビリテーションを含む）や福祉用具等に関する関連知識や歯科医師・リハビリテーション専門職・福祉用具専門相談員等との連携方法への応用を実施できる。",null,null,null,null,null,null,null,null,null,null,null,null,null,null,null,null,null,null,null,null,null,null,null,null,null,null,null,null,null,"08:20:00",1,"1．全く理解していない ","-","1．理解が進まなかった ","1．習得できていない ","1．理解度は変わらない。 ","1．理解度が深まり、習得度が後退した "]
[null,"⑥","リハビリテーションや福祉用具等の地域の社会資源（インフォーマルサービス等）を活用したケアマネジメントを実施できる。",null,null,null,null,null,null,null,null,null,null,null,null,null,null,null,null,null,null,null,null,null,null,null,null,null,null,null,null,null,"08:30:00"]
[null,null,null,null,null,null,null,null,null,null,null,null,null,null,null,null,null,null,null,null,null,null,null,null,null,null,null,null,null,null,null,null,"09:00:00"]
[null,null,null,null,null,null,null,null,null,null,null,null,null,null,null,null,null,null,null,null,null,null,null,null,null,null,null,null,null,null,null,null,"09:10:00"]
[null,null,null,null,null,null,null,null,null,null,null,null,null,null,null,null,null,null,null,null,null,null,null,null,null,null,null,null,null,null,null,null,"09:15:00"]
[null,null,null,null,null,null,null,null,null,null,null,null,null,null,null,null,null,null,null,null,null,null,null,null,null,null,null,null,null,null,null,null,"09:10:00"]
[null,null,null,null,null,null,null,null,null,null,null,null,null,null,null,null,null,null,null,null,null,null,null,null,null,null,null,null,null,null,null,null,"09:15:00"]
[null,"　※研修は自己評価とし、4段階評価で、数字が大きいほど高評価、数字が小さいほど低評価として記入してください。",null,null,null,null,null,null,null,null,null,null,null,null,null,null,null,null,null,null,null,null,null,null,null,null,null,null,null,null,null,null,"09:20:00"]
[null,"　　【選択肢】　　　4.　できる　　　　　3.　概ねできる　　　　　2.　ほとんどできない　　　　1.　全くできない",null,null,null,null,null,null,null,null,null,null,null,null,null,null,null,null,null,null,null,null,null,null,null,null,null,null,null,null,null,null,"09:25:00"]
[null,null,null,null,null,null,null,null,null,null,null,null,null,null,null,null,null,null,null,null,null,null,null,null,null,null,null,null,null,null,null,null,"10:10:00"]
[null,null,null,null,null,null,null,null,null,null,null,null,null,null,null,null,null,null,null,null,null,null,null,null,null,null,null,null,null,null,null,null,"10:15:00"]
[null,null,null,null,null,null,null,null,null,null,null,null,null,null,null,null,null,null,null,null,null,null,null,null,null,null,null,null,null,null,null,null,"10:20:00"]
[null,null,null,null,null,null,null,null,null,null,null,null,null,null,null,null,null,null,null,null,null,null,null,null,null,null,null,null,null,null,null,null,"10:25:00"]
[null,null,null,null,null,null,null,null,null,null,null,null,null,null,null,null,null,null,null,null,null,null,null,null,null,null,null,null,null,null,null,null,"10:30:00"]
[null,null,null,null,null,null,null,null,null,null,null,null,null,null,null,null,null,null,null,null,null,null,null,null,null,null,null,null,null,null,null,null,"10:35:00"]
[null,null,null,null,null,null,null,null,null,null,null,null,null,null,null,null,null,null,null,null,null,null,null,null,null,null,null,null,null,null,null,null,"10:40:00"]
[null,null,null,null,null,null,null,null,null,null,null,null,null,null,null,null,null,null,null,null,null,null,null,null,null,null,null,null,null,null,null,null,"10:45:00"]
[null,null,null,null,null,null,null,null,null,null,null,null,null,null,null,null,null,null,null,null,null,null,null,null,null,null,null,null,null,null,null,null,"10:50:00"]
[null,null,null,null,null,null,null,null,null,null,null,null,null,null,null,null,null,null,null,null,null,null,null,null,null,null,null,null,null,null,null,null,"10:55:00"]
[null,null,null,null,null,null,null,null,null,null,null,null,null,null,null,null,null,null,null,null,null,null,null,null,null,null,null,null,null,null,null,null,"11:00:00"]
[null,null,null,null,null,null,null,null,null,null,null,null,null,null,null,null,null,null,null,null,null,null,null,null,null,null,null,null,null,null,null,null,"11:05:00"]
[null,null,null,null,null,null,null,null,null,null,null,null,null,null,null,null,null,null,null,null,null,null,null,null,null,null,null,null,null,null,null,null,"11:10:00"]
[null,null,null,null,null,null,null,null,null,null,null,null,null,null,null,null,null,null,null,null,null,null,null,null,null,null,null,null,null,null,null,null,"11:15:00"]
[null,null,null,null,null,null,null,null,null,null,null,null,null,null,null,null,null,null,null,null,null,null,null,null,null,null,null,null,null,null,null,null,"11:20:00"]
[null,null,null,null,null,null,null,null,null,null,null,null,null,null,null,null,null,null,null,null,null,null,null,null,null,null,null,null,null,null,null,null,"11:25:00"]
[null,null,null,null,null,null,null,null,null,null,null,null,null,null,null,null,null,null,null,null,null,null,null,null,null,null,null,null,null,null,null,null,"11:30:00"]
[null,null,null,null,null,null,null,null,null,null,null,null,null,null,null,null,null,null,null,null,null,null,null,null,null,null,null,null,null,null,null,null,"11:35:00"]
[null,null,null,null,null,null,null,null,null,null,null,null,null,null,null,null,null,null,null,null,null,null,null,null,null,null,null,null,null,null,null,null,"11:40:00"]
[null,null,null,null,null,null,null,null,null,null,null,null,null,null,null,null,null,null,null,null,null,null,null,null,null,null,null,null,null,null,null,null,"11:45:00"]
[null,null,null,null,null,null,null,null,null,null,null,null,null,null,null,null,null,null,null,null,null,null,null,null,null,null,null,null,null,null,null,null,"11:50:00"]
[null,null,null,null,null,null,null,null,null,null,null,null,null,null,null,null,null,null,null,null,null,null,null,null,null,null,null,null,null,null,null,null,"11:55:00"]
[null,null,null,null,null,null,null,null,null,null,null,null,null,null,null,null,null,null,null,null,null,null,null,null,null,null,null,null,null,null,null,null,"12:00:00"]
[null,null,null,null,null,null,null,null,null,null,null,null,null,null,null,null,null,null,null,null,null,null,null,null,null,null,null,null,null,null,null,null,"12:05:00"]
[null,null,null,null,null,null,null,null,null,null,null,null,null,null,null,null,null,null,null,null,null,null,null,null,null,null,null,null,null,null,null,null,"12:10:00"]
[null,null,null,null,null,null,null,null,null,null,null,null,null,null,null,null,null,null,null,null,null,null,null,null,null,null,null,null,null,null,null,null,"12:15:00"]
[null,null,null,null,null,null,null,null,null,null,null,null,null,null,null,null,null,null,null,null,null,null,null,null,null,null,null,null,null,null,null,null,"12:20:00"]
[null,null,null,null,null,null,null,null,null,null,null,null,null,null,null,null,null,null,null,null,null,null,null,null,null,null,null,null,null,null,null,null,"12:25:00"]
[null,null,null,null,null,null,null,null,null,null,null,null,null,null,null,null,null,null,null,null,null,null,null,null,null,null,null,null,null,null,null,null,"12:30:00"]
[null,null,null,null,null,null,null,null,null,null,null,null,null,null,null,null,null,null,null,null,null,null,null,null,null,null,null,null,null,null,null,null,"12:35:00"]
[null,null,null,null,null,null,null,null,null,null,null,null,null,null,null,null,null,null,null,null,null,null,null,null,null,null,null,null,null,null,null,null,"12:40:00"]
[null,null,null,null,null,null,null,null,null,null,null,null,null,null,null,null,null,null,null,null,null,null,null,null,null,null,null,null,null,null,null,null,"12:45:00"]
[null,null,null,null,null,null,null,null,null,null,null,null,null,null,null,null,null,null,null,null,null,null,null,null,null,null,null,null,null,null,null,null,"12:50:00"]
[null,null,null,null,null,null,null,null,null,null,null,null,null,null,null,null,null,null,null,null,null,null,null,null,null,null,null,null,null,null,null,null,"12:55:00"]
[null,null,null,null,null,null,null,null,null,null,null,null,null,null,null,null,null,null,null,null,null,null,null,null,null,null,null,null,null,null,null,null,"13:00:00"]
[null,null,null,null,null,null,null,null,null,null,null,null,null,null,null,null,null,null,null,null,null,null,null,null,null,null,null,null,null,null,null,null,"13:05:00"]
[null,null,null,null,null,null,null,null,null,null,null,null,null,null,null,null,null,null,null,null,null,null,null,null,null,null,null,null,null,null,null,null,"13:10:00"]
[null,null,null,null,null,null,null,null,null,null,null,null,null,null,null,null,null,null,null,null,null,null,null,null,null,null,null,null,null,null,null,null,"13:15:00"]
[null,null,null,null,null,null,null,null,null,null,null,null,null,null,null,null,null,null,null,null,null,null,null,null,null,null,null,null,null,null,null,null,"13:20:00"]
[null,null,null,null,null,null,null,null,null,null,null,null,null,null,null,null,null,null,null,null,null,null,null,null,null,null,null,null,null,null,null,null,"13:25:00"]
[null,null,null,null,null,null,null,null,null,null,null,null,null,null,null,null,null,null,null,null,null,null,null,null,null,null,null,null,null,null,null,null,"13:30:00"]
[null,null,null,null,null,null,null,null,null,null,null,null,null,null,null,null,null,null,null,null,null,null,null,null,null,null,null,null,null,null,null,null,"13:35:00"]
[null,null,null,null,null,null,null,null,null,null,null,null,null,null,null,null,null,null,null,null,null,null,null,null,null,null,null,null,null,null,null,null,"13:40:00"]
[null,null,null,null,null,null,null,null,null,null,null,null,null,null,null,null,null,null,null,null,null,null,null,null,null,null,null,null,null,null,null,null,"13:45:00"]
[null,null,null,null,null,null,null,null,null,null,null,null,null,null,null,null,null,null,null,null,null,null,null,null,null,null,null,null,null,null,null,null,"13:50:00"]
[null,null,null,null,null,null,null,null,null,null,null,null,null,null,null,null,null,null,null,null,null,null,null,null,null,null,null,null,null,null,null,null,"13:55:00"]
[null,null,null,null,null,null,null,null,null,null,null,null,null,null,null,null,null,null,null,null,null,null,null,null,null,null,null,null,null,null,null,null,"14:00:00"]
[null,null,null,null,null,null,null,null,null,null,null,null,null,null,null,null,null,null,null,null,null,null,null,null,null,null,null,null,null,null,null,null,"14:05:00"]
[null,null,null,null,null,null,null,null,null,null,null,null,null,null,null,null,null,null,null,null,null,null,null,null,null,null,null,null,null,null,null,null,"14:10:00"]
[null,null,null,null,null,null,null,null,null,null,null,null,null,null,null,null,null,null,null,null,null,null,null,null,null,null,null,null,null,null,null,null,"14:15:00"]
[null,null,null,null,null,null,null,null,null,null,null,null,null,null,null,null,null,null,null,null,null,null,null,null,null,null,null,null,null,null,null,null,"14:20:00"]
[null,null,null,null,null,null,null,null,null,null,null,null,null,null,null,null,null,null,null,null,null,null,null,null,null,null,null,null,null,null,null,null,"14:25:00"]
[null,null,null,null,null,null,null,null,null,null,null,null,null,null,null,null,null,null,null,null,null,null,null,null,null,null,null,null,null,null,null,null,"14:30:00"]
[null,null,null,null,null,null,null,null,null,null,null,null,null,null,null,null,null,null,null,null,null,null,null,null,null,null,null,null,null,null,null,null,"14:35:00"]
[null,null,null,null,null,null,null,null,null,null,null,null,null,null,null,null,null,null,null,null,null,null,null,null,null,null,null,null,null,null,null,null,"14:40:00"]
[null,null,null,null,null,null,null,null,null,null,null,null,null,null,null,null,null,null,null,null,null,null,null,null,null,null,null,null,null,null,null,null,"14:45:00"]
[null,null,null,null,null,null,null,null,null,null,null,null,null,null,null,null,null,null,null,null,null,null,null,null,null,null,null,null,null,null,null,null,"14:50:00"]
[null,null,null,null,null,null,null,null,null,null,null,null,null,null,null,null,null,null,null,null,null,null,null,null,null,null,null,null,null,null,null,null,"14:55:00"]
[null,null,null,null,null,null,null,null,null,null,null,null,null,null,null,null,null,null,null,null,null,null,null,null,null,null,null,null,null,null,null,null,"15:00:00"]
[null,null,null,null,null,null,null,null,null,null,null,null,null,null,null,null,null,null,null,null,null,null,null,null,null,null,null,null,null,null,null,null,"15:05:00"]
[null,null,null,null,null,null,null,null,null,null,null,null,null,null,null,null,null,null,null,null,null,null,null,null,null,null,null,null,null,null,null,null,"15:10:00"]
[null,null,null,null,null,null,null,null,null,null,null,null,null,null,null,null,null,null,null,null,null,null,null,null,null,null,null,null,null,null,null,null,"15:15:00"]
[null,null,null,null,null,null,null,null,null,null,null,null,null,null,null,null,null,null,null,null,null,null,null,null,null,null,null,null,null,null,null,null,"15:20:00"]
[null,null,null,null,null,null,null,null,null,null,null,null,null,null,null,null,null,null,null,null,null,null,null,null,null,null,null,null,null,null,null,null,"15:25:00"]
[null,null,null,null,null,null,null,null,null,null,null,null,null,null,null,null,null,null,null,null,null,null,null,null,null,null,null,null,null,null,null,null,"15:30:00"]
[null,null,null,null,null,null,null,null,null,null,null,null,null,null,null,null,null,null,null,null,null,null,null,null,null,null,null,null,null,null,null,null,"15:35:00"]
[null,null,null,null,null,null,null,null,null,null,null,null,null,null,null,null,null,null,null,null,null,null,null,null,null,null,null,null,null,null,null,null,"15:40:00"]
[null,null,null,null,null,null,null,null,null,null,null,null,null,null,null,null,null,null,null,null,null,null,null,null,null,null,null,null,null,null,null,null,"15:45:00"]
[null,null,null,null,null,null,null,null,null,null,null,null,null,null,null,null,null,null,null,null,null,null,null,null,null,null,null,null,null,null,null,null,"15:50:00"]
[null,null,null,null,null,null,null,null,null,null,null,null,null,null,null,null,null,null,null,null,null,null,null,null,null,null,null,null,null,null,null,null,"15:55:00"]
[null,null,null,null,null,null,null,null,null,null,null,null,null,null,null,null,null,null,null,null,null,null,null,null,null,null,null,null,null,null,null,null,"16:00:00"]
[null,null,null,null,null,null,null,null,null,null,null,null,null,null,null,null,null,null,null,null,null,null,null,null,null,null,null,null,null,null,null,null,"16:05:00"]
[null,null,null,null,null,null,null,null,null,null,null,null,null,null,null,null,null,null,null,null,null,null,null,null,null,null,null,null,null,null,null,null,"16:10:00"]
[null,null,null,null,null,null,null,null,null,null,null,null,null,null,null,null,null,null,null,null,null,null,null,null,null,null,null,null,null,null,null,null,"16:15:00"]
[null,null,null,null,null,null,null,null,null,null,null,null,null,null,null,null,null,null,null,null,null,null,null,null,null,null,null,null,null,null,null,null,"16:20:00"]
[null,null,null,null,null,null,null,null,null,null,null,null,null,null,null,null,null,null,null,null,null,null,null,null,null,null,null,null,null,null,null,null,"16:25:00"]
[null,null,null,null,null,null,null,null,null,null,null,null,null,null,null,null,null,null,null,null,null,null,null,null,null,null,null,null,null,null,null,null,"16:30:00"]
[null,null,null,null,null,null,null,null,null,null,null,null,null,null,null,null,null,null,null,null,null,null,null,null,null,null,null,null,null,null,null,null,"16:35:00"]
[null,null,null,null,null,null,null,null,null,null,null,null,null,null,null,null,null,null,null,null,null,null,null,null,null,null,null,null,null,null,null,null,"16:40:00"]
[null,null,null,null,null,null,null,null,null,null,null,null,null,null,null,null,null,null,null,null,null,null,null,null,null,null,null,null,null,null,null,null,"16:45:00"]
[null,null,null,null,null,null,null,null,null,null,null,null,null,null,null,null,null,null,null,null,null,null,null,null,null,null,null,null,null,null,null,null,"16:50:00"]
[null,null,null,null,null,null,null,null,null,null,null,null,null,null,null,null,null,null,null,null,null,null,null,null,null,null,null,null,null,null,null,null,"16:55:00"]
[null,null,null,null,null,null,null,null,null,null,null,null,null,null,null,null,null,null,null,null,null,null,null,null,null,null,null,null,null,null,null,null,"17:00:00"]
[null,null,null,null,null,null,null,null,null,null,null,null,null,null,null,null,null,null,null,null,null,null,null,null,null,null,null,null,null,null,null,null,"17:05:00"]
[null,null,null,null,null,null,null,null,null,null,null,null,null,null,null,null,null,null,null,null,null,null,null,null,null,null,null,null,null,null,null,null,"17:10:00"]
[null,null,null,null,null,null,null,null,null,null,null,null,null,null,null,null,null,null,null,null,null,null,null,null,null,null,null,null,null,null,null,null,"17:15:00"]
[null,null,null,null,null,null,null,null,null,null,null,null,null,null,null,null,null,null,null,null,null,null,null,null,null,null,null,null,null,null,null,null,"17:20:00"]
[null,null,null,null,null,null,null,null,null,null,null,null,null,null,null,null,null,null,null,null,null,null,null,null,null,null,null,null,null,null,null,null,"17:25:00"]
[null,null,null,null,null,null,null,null,null,null,null,null,null,null,null,null,null,null,null,null,null,null,null,null,null,null,null,null,null,null,null,null,"17:30:00"]
[null,null,null,null,null,null,null,null,null,null,null,null,null,null,null,null,null,null,null,null,null,null,null,null,null,null,null,null,null,null,null,null,"17:35:00"]
[null,null,null,null,null,null,null,null,null,null,null,null,null,null,null,null,null,null,null,null,null,null,null,null,null,null,null,null,null,null,null,null,"17:40:00"]
[null,null,null,null,null,null,null,null,null,null,null,null,null,null,null,null,null,null,null,null,null,null,null,null,null,null,null,null,null,null,null,null,"17:45:00"]
[null,null,null,null,null,null,null,null,null,null,null,null,null,null,null,null,null,null,null,null,null,null,null,null,null,null,null,null,null,null,null,null,"17:50:00"]
[null,null,null,null,null,null,null,null,null,null,null,null,null,null,null,null,null,null,null,null,null,null,null,null,null,null,null,null,null,null,null,null,"17:55:00"]
[null,null,null,null,null,null,null,null,null,null,null,null,null,null,null,null,null,null,null,null,null,null,null,null,null,null,null,null,null,null,null,null,"18:00:00"]
[null,null,null,null,null,null,null,null,null,null,null,null,null,null,null,null,null,null,null,null,null,null,null,null,null,null,null,null,null,null,null,null,"18:05:00"]
[null,null,null,null,null,null,null,null,null,null,null,null,null,null,null,null,null,null,null,null,null,null,null,null,null,null,null,null,null,null,null,null,"18:10:00"]
[null,null,null,null,null,null,null,null,null,null,null,null,null,null,null,null,null,null,null,null,null,null,null,null,null,null,null,null,null,null,null,null,"18:15:00"]
[null,null,null,null,null,null,null,null,null,null,null,null,null,null,null,null,null,null,null,null,null,null,null,null,null,null,null,null,null,null,null,null,"18:20:00"]
[null,null,null,null,null,null,null,null,null,null,null,null,null,null,null,null,null,null,null,null,null,null,null,null,null,null,null,null,null,null,null,null,"18:25:00"]
[null,null,null,null,null,null,null,null,null,null,null,null,null,null,null,null,null,null,null,null,null,null,null,null,null,null,null,null,null,null,null,null,"18:30:00"]
[null,null,null,null,null,null,null,null,null,null,null,null,null,null,null,null,null,null,null,null,null,null,null,null,null,null,null,null,null,null,null,null,"18:35:00"]
[null,null,null,null,null,null,null,null,null,null,null,null,null,null,null,null,null,null,null,null,null,null,null,null,null,null,null,null,null,null,null,null,"18:40:00"]
[null,null,null,null,null,null,null,null,null,null,null,null,null,null,null,null,null,null,null,null,null,null,null,null,null,null,null,null,null,null,null,null,"18:45:00"]
[null,null,null,null,null,null,null,null,null,null,null,null,null,null,null,null,null,null,null,null,null,null,null,null,null,null,null,null,null,null,null,null,"18:50:00"]
[null,null,null,null,null,null,null,null,null,null,null,null,null,null,null,null,null,null,null,null,null,null,null,null,null,null,null,null,null,null,null,null,"18:55:00"]
[null,null,null,null,null,null,null,null,null,null,null,null,null,null,null,null,null,null,null,null,null,null,null,null,null,null,null,null,null,null,null,null,"19:00:00"]

{"sheet":"シート2-②-2","index":5,"n_rows":148,"n_cols":41,"rows_kept":148,"cut":false,"hidden":false,"merged":[[30,1,30,28],[31,1,31,28],[19,24,19,28],[20,24,20,28],[15,38,15,39],[15,33,16,33],[15,34,15,35],[15,36,15,37],[15,24,16,28],[17,38,17,39],[9,12,9,15],[9,17,9,20],[18,15,18,17],[18,18,18,20],[18,21,18,23],[17,15,17,17],[17,18,17,20],[18,2,18,14],[15,1,16,14],[10,12,10,15],[10,17,10,20],[17,36,17,37],[18,24,18,28],[17,24,17,28],[12,4,12,20],[12,21,13,23],[12,24,13,28],[13,4,13,20],[17,34,17,35],[2,1,2,28],[5,1,5,2],[5,3,5,28],[6,1,6,2],[6,3,6,28],[9,24,10,28],[12,1,13,2],[23,2,23,14],[21,21,21,23],[22,15,22,17],[19,2,19,14],[20,2,20,14],[19,15,19,17],[19,21,19,23],[15,18,16,20],[15,15,16,17],[9,1,10,2],[9,4,9,8],[9,9,10,10],[9,21,10,23],[10,4,10,8],[19,18,19,20],[15,21,16,23],[17,1,17,14],[17,21,17,23],[25,2,25,14],[24,15,24,17],[20,18,20,20],[20,21,20,23],[24,2,24,14],[23,21,23,23],[27,18,27,20],[22,18,22,20],[24,18,24,20],[26,2,26,14],[27,2,27,14],[21,2,21,14],[22,2,22,14],[21,15,21,17],[23,15,23,17],[21,18,21,20],[20,15,20,17],[23,24,23,28],[21,24,21,28],[24,21,24,23],[24,24,24,28],[22,21,22,23],[23,18,23,20],[22,24,22,28],[25,24,25,28],[28,2,28,14],[28,15,28,17],[28,18,28,20],[28,21,28,23],[28,24,28,28],[26,24,26,28],[27,24,27,28],[27,15,27,17],[27,21,27,23],[25,15,25,17],[25,18,25,20],[25,21,25,23],[26,15,26,17],[26,18,26,20],[26,21,26,23]]}
[null,"研修記録シート2（評価）"]
[]
[null,"この振り返りシートは、科目の受講前後で各自の理解度を把握し、受講中の学習効果の向上と、受講後の学習のポイントを焦点化し、継続的な資質向上に役立てるものです。本科目を学習した時点で感じた事を書き留め、今後の学習方針や課題への取り組みを考える際に見返してみましょう。"]
[]
[]
[null,"研修名：",null,"専門研修Ⅱ",null,null,null,null,null,null,null,null,null,null,null,null,null,null,null,null,null,null,null,null,null,null,null,null,null,null,null,null,null,null,null,null,null,null,null,null,"このボタンをクリックするとTOPページへ移動します。"]
[null,"科目名：",null,"②-2ケアマネジメントにおける実践事例の研究及び発表「看取り等における看護サービスの活用に関する事例」"]
[]
[]
[null,"受講日",null,1,null,null,null,null,null,"時間",null,1,null,null,null,null,"～",null,null,null,null,"氏名",null,null,{"$f":"IF(ISBLANK(シート1!N7),\"\",シート1!N7)","v":""}]
[null,null,null,2,null,null,null,null,null,null,null,2,null,null,null,null,"～"]
[]
[null,"会場",null,1,null,null,null,null,null,null,null,null,null,null,null,null,null,null,null,null,null,"番号",null,null,{"$f":"IF(ISBLANK(シート1!N9),\"\",シート1!N9)","v":""}]
[null,null,null,2]
[]
[null,"項　　目 ",null,null,null,null,null,null,null,null,null,null,null,null,null,"受講前 ",null,null,"受講\n直後",null,null,"実践\n評価\n(3ヶ月後）",null,null,"備　　考 ",null,null,null,null,null,null,"リスト（課程区分）","リスト（時間）",null,"受講前",null,"受講後 ",null,"実践評価"]
[null,null,null,null,null,null,null,null,null,null,null,null,null,null,null,null,null,null,null,null,null,null,null,null,null,null,null,null,null,null,null,null,"リストから選択",null,"理解度","習得度","理解度","習得度","理解度","習得度"]
[null,"記入日（入力日）",null,null,null,null,null,null,null,null,null,null,null,null,null,null,null,null,null,null,null,null,null,null,null,null,null,null,null,null,null,"リスト（課程区分）","リスト（時間）",null,"受講前",null,"受講後 ",null,"実践評価"]
[null,"① ","看護サービスを組み入れた居宅サービス計画等の実践事例について意見交換を通して分析し評価できる。",null,null,null,null,null,null,null,null,null,null,null,null,null,null,null,null,null,null,null,null,null,null,null,null,null,null,null,null,"Ⅰ","08:00:00"]
[null,"② ","分析し評価した内容を受講者間で共有し、アセスメントや居宅サービス計画等の作成における留意点を判断できる。",null,null,null,null,null,null,null,null,null,null,null,null,null,null,null,null,null,null,null,null,null,null,null,null,null,null,null,null,"Ⅱ","08:05:00",4,"4．理解している ","-","4．非常に理解が深まった ","4．習得できた ","4．非常に理解が深まった","4．習得度が上がった "]
[null,"③ ","各種統計データを活用する等により、別の類似の事例等への応用を実施できる。",null,null,null,null,null,null,null,null,null,null,null,null,null,null,null,null,null,null,null,null,null,null,null,null,null,null,null,null,null,"08:10:00",3,"3．概ね理解している ","-","3．理解が深まった ","3．概ね習得できた ","3．理解が深まった","3．まあまあ習得度が上がった "]
[null,"④ ","地域の各種統計データを必要に応じて活用することにより、他の事例へも応用できる",null,null,null,null,null,null,null,null,null,null,null,null,null,null,null,null,null,null,null,null,null,null,null,null,null,null,null,null,null,"08:15:00",2,"2．あまり理解していない ","-","2．あまり理解が進まなかった ","2．あまり習得できていない ","2．あまり理解度は変わらない ","2．習得度は変わらない "]
[null,"⑤ ","看取り等を含む看護サービスを活用するにあたって各種知識や医師、看護師等との連携方法への応用を実施できる。",null,null,null,null,null,null,null,null,null,null,null,null,null,null,null,null,null,null,null,null,null,null,null,null,null,null,null,null,null,"08:20:00",1,"1．全く理解していない ","-","1．理解が進まなかった ","1．習得できていない ","1．理解度は変わらない。 ","1．理解度が深まり、習得度が後退した "]
[null,"⑥","看取り等を含む看護サービスの地域の社会資源（インフォーマルサービス等）を活用したケアマネジメントを実施できる。",null,null,null,null,null,null,null,null,null,null,null,null,null,null,null,null,null,null,null,null,null,null,null,null,null,null,null,null,null,"08:30:00"]
[null,null,null,null,null,null,null,null,null,null,null,null,null,null,null,null,null,null,null,null,null,null,null,null,null,null,null,null,null,null,null,null,"08:45:00"]
[null,null,null,null,null,null,null,null,null,null,null,null,null,null,null,null,null,null,null,null,null,null,null,null,null,null,null,null,null,null,null,null,"08:50:00"]
[null,null,null,null,null,null,null,null,null,null,null,null,null,null,null,null,null,null,null,null,null,null,null,null,null,null,null,null,null,null,null,null,"08:55:00"]
[null,null,null,null,null,null,null,null,null,null,null,null,null,null,null,null,null,null,null,null,null,null,null,null,null,null,null,null,null,null,null,null,"09:00:00"]
[null,null,null,null,null,null,null,null,null,null,null,null,null,null,null,null,null,null,null,null,null,null,null,null,null,null,null,null,null,null,null,null,"09:10:00"]
[null,null,null,null,null,null,null,null,null,null,null,null,null,null,null,null,null,null,null,null,null,null,null,null,null,null,null,null,null,null,null,null,"09:15:00"]
[null,"　※研修は自己評価とし、4段階評価で、数字が大きいほど高評価、数字が小さいほど低評価として記入してください。",null,null,null,null,null,null,null,null,null,null,null,null,null,null,null,null,null,null,null,null,null,null,null,null,null,null,null,null,null,null,"09:20:00"]
[null,"　　【選択肢】　　　4.　できる　　　　　3.　概ねできる　　　　　2.　ほとんどできない　　　　1.　全くできない",null,null,null,null,null,null,null,null,null,null,null,null,null,null,null,null,null,null,null,null,null,null,null,null,null,null,null,null,null,null,"09:25:00"]
[null,null,null,null,null,null,null,null,null,null,null,null,null,null,null,null,null,null,null,null,null,null,null,null,null,null,null,null,null,null,null,null,"09:25:00"]
[null,null,null,null,null,null,null,null,null,null,null,null,null,null,null,null,null,null,null,null,null,null,null,null,null,null,null,null,null,null,null,null,"09:30:00"]
[null,null,null,null,null,null,null,null,null,null,null,null,null,null,null,null,null,null,null,null,null,null,null,null,null,null,null,null,null,null,null,null,"09:35:00"]
[null,null,null,null,null,null,null,null,null,null,null,null,null,null,null,null,null,null,null,null,null,null,null,null,null,null,null,null,null,null,null,null,"09:40:00"]
[null,null,null,null,null,null,null,null,null,null,null,null,null,null,null,null,null,null,null,null,null,null,null,null,null,null,null,null,null,null,null,null,"09:45:00"]
[null,null,null,null,null,null,null,null,null,null,null,null,null,null,null,null,null,null,null,null,null,null,null,null,null,null,null,null,null,null,null,null,"09:50:00"]
[null,null,null,null,null,null,null,null,null,null,null,null,null,null,null,null,null,null,null,null,null,null,null,null,null,null,null,null,null,null,null,null,"09:55:00"]
[null,null,null,null,null,null,null,null,null,null,null,null,null,null,null,null,null,null,null,null,null,null,null,null,null,null,null,null,null,null,null,null,"10:00:00"]
[null,null,null,null,null,null,null,null,null,null,null,null,null,null,null,null,null,null,null,null,null,null,null,null,null,null,null,null,null,null,null,null,"10:05:00"]
[null,null,null,null,null,null,null,null,null,null,null,null,null,null,null,null,null,null,null,null,null,null,null,null,null,null,null,null,null,null,null,null,"10:10:00"]
[null,null,null,null,null,null,null,null,null,null,null,null,null,null,null,null,null,null,null,null,null,null,null,null,null,null,null,null,null,null,null,null,"10:15:00"]
[null,null,null,null,null,null,null,null,null,null,null,null,null,null,null,null,null,null,null,null,null,null,null,null,null,null,null,null,null,null,null,null,"10:20:00"]
[null,null,null,null,null,null,null,null,null,null,null,null,null,null,null,null,null,null,null,null,null,null,null,null,null,null,null,null,null,null,null,null,"10:25:00"]
[null,null,null,null,null,null,null,null,null,null,null,null,null,null,null,null,null,null,null,null,null,null,null,null,null,null,null,null,null,null,null,null,"10:30:00"]
[null,null,null,null,null,null,null,null,null,null,null,null,null,null,null,null,null,null,null,null,null,null,null,null,null,null,null,null,null,null,null,null,"10:35:00"]
[null,null,null,null,null,null,null,null,null,null,null,null,null,null,null,null,null,null,null,null,null,null,null,null,null,null,null,null,null,null,null,null,"10:40:00"]
[null,null,null,null,null,null,null,null,null,null,null,null,null,null,null,null,null,null,null,null,null,null,null,null,null,null,null,null,null,null,null,null,"10:45:00"]
[null,null,null,null,null,null,null,null,null,null,null,null,null,null,null,null,null,null,null,null,null,null,null,null,null,null,null,null,null,null,null,null,"10:50:00"]
[null,null,null,null,null,null,null,null,null,null,null,null,null,null,null,null,null,null,null,null,null,null,null,null,null,null,null,null,null,null,null,null,"10:55:00"]
[null,null,null,null,null,null,null,null,null,null,null,null,null,null,null,null,null,null,null,null,null,null,null,null,null,null,null,null,null,null,null,null,"11:00:00"]
[null,null,null,null,null,null,null,null,null,null,null,null,null,null,null,null,null,null,null,null,null,null,null,null,null,null,null,null,null,null,null,null,"11:05:00"]
[null,null,null,null,null,null,null,null,null,null,null,null,null,null,null,null,null,null,null,null,null,null,null,null,null,null,null,null,null,null,null,null,"11:10:00"]
[null,null,null,null,null,null,null,null,null,null,null,null,null,null,null,null,null,null,null,null,null,null,null,null,null,null,null,null,null,null,null,null,"11:15:00"]
[null,null,null,null,null,null,null,null,null,null,null,null,null,null,null,null,null,null,null,null,null,null,null,null,null,null,null,null,null,null,null,null,"11:20:00"]
[null,null,null,null,null,null,null,null,null,null,null,null,null,null,null,null,null,null,null,null,null,null,null,null,null,null,null,null,null,null,null,null,"11:25:00"]
[null,null,null,null,null,null,null,null,null,null,null,null,null,null,null,null,null,null,null,null,null,null,null,null,null,null,null,null,null,null,null,null,"11:30:00"]
[null,null,null,null,null,null,null,null,null,null,null,null,null,null,null,null,null,null,null,null,null,null,null,null,null,null,null,null,null,null,null,null,"11:35:00"]
[null,null,null,null,null,null,null,null,null,null,null,null,null,null,null,null,null,null,null,null,null,null,null,null,null,null,null,null,null,null,null,null,"11:40:00"]
[null,null,null,null,null,null,null,null,null,null,null,null,null,null,null,null,null,null,null,null,null,null,null,null,null,null,null,null,null,null,null,null,"11:45:00"]
[null,null,null,null,null,null,null,null,null,null,null,null,null,null,null,null,null,null,null,null,null,null,null,null,null,null,null,null,null,null,null,null,"11:50:00"]
[null,null,null,null,null,null,null,null,null,null,null,null,null,null,null,null,null,null,null,null,null,null,null,null,null,null,null,null,null,null,null,null,"11:55:00"]
[null,null,null,null,null,null,null,null,null,null,null,null,null,null,null,null,null,null,null,null,null,null,null,null,null,null,null,null,null,null,null,null,"12:00:00"]
[null,null,null,null,null,null,null,null,null,null,null,null,null,null,null,null,null,null,null,null,null,null,null,null,null,null,null,null,null,null,null,null,"12:05:00"]
[null,null,null,null,null,null,null,null,null,null,null,null,null,null,null,null,null,null,null,null,null,null,null,null,null,null,null,null,null,null,null,null,"12:10:00"]
[null,null,null,null,null,null,null,null,null,null,null,null,null,null,null,null,null,null,null,null,null,null,null,null,null,null,null,null,null,null,null,null,"12:15:00"]
[null,null,null,null,null,null,null,null,null,null,null,null,null,null,null,null,null,null,null,null,null,null,null,null,null,null,null,null,null,null,null,null,"12:20:00"]
[null,null,null,null,null,null,null,null,null,null,null,null,null,null,null,null,null,null,null,null,null,null,null,null,null,null,null,null,null,null,null,null,"12:25:00"]
[null,null,null,null,null,null,null,null,null,null,null,null,null,null,null,null,null,null,null,null,null,null,null,null,null,null,null,null,null,null,null,null,"12:30:00"]
[null,null,null,null,null,null,null,null,null,null,null,null,null,null,null,null,null,null,null,null,null,null,null,null,null,null,null,null,null,null,null,null,"12:35:00"]
[null,null,null,null,null,null,null,null,null,null,null,null,null,null,null,null,null,null,null,null,null,null,null,null,null,null,null,null,null,null,null,null,"12:40:00"]
[null,null,null,null,null,null,null,null,null,null,null,null,null,null,null,null,null,null,null,null,null,null,null,null,null,null,null,null,null,null,null,null,"12:45:00"]
[null,null,null,null,null,null,null,null,null,null,null,null,null,null,null,null,null,null,null,null,null,null,null,null,null,null,null,null,null,null,null,null,"12:50:00"]
[null,null,null,null,null,null,null,null,null,null,null,null,null,null,null,null,null,null,null,null,null,null,null,null,null,null,null,null,null,null,null,null,"12:55:00"]
[null,null,null,null,null,null,null,null,null,null,null,null,null,null,null,null,null,null,null,null,null,null,null,null,null,null,null,null,null,null,null,null,"13:00:00"]
[null,null,null,null,null,null,null,null,null,null,null,null,null,null,null,null,null,null,null,null,null,null,null,null,null,null,null,null,null,null,null,null,"13:05:00"]
[null,null,null,null,null,null,null,null,null,null,null,null,null,null,null,null,null,null,null,null,null,null,null,null,null,null,null,null,null,null,null,null,"13:10:00"]
[null,null,null,null,null,null,null,null,null,null,null,null,null,null,null,null,null,null,null,null,null,null,null,null,null,null,null,null,null,null,null,null,"13:15:00"]
[null,null,null,null,null,null,null,null,null,null,null,null,null,null,null,null,null,null,null,null,null,null,null,null,null,null,null,null,null,null,null,null,"13:20:00"]
[null,null,null,null,null,null,null,null,null,null,null,null,null,null,null,null,null,null,null,null,null,null,null,null,null,null,null,null,null,null,null,null,"13:25:00"]
[null,null,null,null,null,null,null,null,null,null,null,null,null,null,null,null,null,null,null,null,null,null,null,null,null,null,null,null,null,null,null,null,"13:30:00"]
[null,null,null,null,null,null,null,null,null,null,null,null,null,null,null,null,null,null,null,null,null,null,null,null,null,null,null,null,null,null,null,null,"13:35:00"]
[null,null,null,null,null,null,null,null,null,null,null,null,null,null,null,null,null,null,null,null,null,null,null,null,null,null,null,null,null,null,null,null,"13:40:00"]
[null,null,null,null,null,null,null,null,null,null,null,null,null,null,null,null,null,null,null,null,null,null,null,null,null,null,null,null,null,null,null,null,"13:45:00"]
[null,null,null,null,null,null,null,null,null,null,null,null,null,null,null,null,null,null,null,null,null,null,null,null,null,null,null,null,null,null,null,null,"13:50:00"]
[null,null,null,null,null,null,null,null,null,null,null,null,null,null,null,null,null,null,null,null,null,null,null,null,null,null,null,null,null,null,null,null,"13:55:00"]
[null,null,null,null,null,null,null,null,null,null,null,null,null,null,null,null,null,null,null,null,null,null,null,null,null,null,null,null,null,null,null,null,"14:00:00"]
[null,null,null,null,null,null,null,null,null,null,null,null,null,null,null,null,null,null,null,null,null,null,null,null,null,null,null,null,null,null,null,null,"14:05:00"]
[null,null,null,null,null,null,null,null,null,null,null,null,null,null,null,null,null,null,null,null,null,null,null,null,null,null,null,null,null,null,null,null,"14:10:00"]
[null,null,null,null,null,null,null,null,null,null,null,null,null,null,null,null,null,null,null,null,null,null,null,null,null,null,null,null,null,null,null,null,"14:15:00"]
[null,null,null,null,null,null,null,null,null,null,null,null,null,null,null,null,null,null,null,null,null,null,null,null,null,null,null,null,null,null,null,null,"14:20:00"]
[null,null,null,null,null,null,null,null,null,null,null,null,null,null,null,null,null,null,null,null,null,null,null,null,null,null,null,null,null,null,null,null,"14:25:00"]
[null,null,null,null,null,null,null,null,null,null,null,null,null,null,null,null,null,null,null,null,null,null,null,null,null,null,null,null,null,null,null,null,"14:30:00"]
[null,null,null,null,null,null,null,null,null,null,null,null,null,null,null,null,null,null,null,null,null,null,null,null,null,null,null,null,null,null,null,null,"14:35:00"]
[null,null,null,null,null,null,null,null,null,null,null,null,null,null,null,null,null,null,null,null,null,null,null,null,null,null,null,null,null,null,null,null,"14:40:00"]
[null,null,null,null,null,null,null,null,null,null,null,null,null,null,null,null,null,null,null,null,null,null,null,null,null,null,null,null,null,null,null,null,"14:45:00"]
[null,null,null,null,null,null,null,null,null,null,null,null,null,null,null,null,null,null,null,null,null,null,null,null,null,null,null,null,null,null,null,null,"14:50:00"]
[null,null,null,null,null,null,null,null,null,null,null,null,null,null,null,null,null,null,null,null,null,null,null,null,null,null,null,null,null,null,null,null,"14:55:00"]
[null,null,null,null,null,null,null,null,null,null,null,null,null,null,null,null,null,null,null,null,null,null,null,null,null,null,null,null,null,null,null,null,"15:00:00"]
[null,null,null,null,null,null,null,null,null,null,null,null,null,null,null,null,null,null,null,null,null,null,null,null,null,null,null,null,null,null,null,null,"15:05:00"]
[null,null,null,null,null,null,null,null,null,null,null,null,null,null,null,null,null,null,null,null,null,null,null,null,null,null,null,null,null,null,null,null,"15:10:00"]
[null,null,null,null,null,null,null,null,null,null,null,null,null,null,null,null,null,null,null,null,null,null,null,null,null,null,null,null,null,null,null,null,"15:15:00"]
[null,null,null,null,null,null,null,null,null,null,null,null,null,null,null,null,null,null,null,null,null,null,null,null,null,null,null,null,null,null,null,null,"15:20:00"]
[null,null,null,null,null,null,null,null,null,null,null,null,null,null,null,null,null,null,null,null,null,null,null,null,null,null,null,null,null,null,null,null,"15:25:00"]
[null,null,null,null,null,null,null,null,null,null,null,null,null,null,null,null,null,null,null,null,null,null,null,null,null,null,null,null,null,null,null,null,"15:30:00"]
[null,null,null,null,null,null,null,null,null,null,null,null,null,null,null,null,null,null,null,null,null,null,null,null,null,null,null,null,null,null,null,null,"15:35:00"]
[null,null,null,null,null,null,null,null,null,null,null,null,null,null,null,null,null,null,null,null,null,null,null,null,null,null,null,null,null,null,null,null,"15:40:00"]
[null,null,null,null,null,null,null,null,null,null,null,null,null,null,null,null,null,null,null,null,null,null,null,null,null,null,null,null,null,null,null,null,"15:45:00"]
[null,null,null,null,null,null,null,null,null,null,null,null,null,null,null,null,null,null,null,null,null,null,null,null,null,null,null,null,null,null,null,null,"15:50:00"]
[null,null,null,null,null,null,null,null,null,null,null,null,null,null,null,null,null,null,null,null,null,null,null,null,null,null,null,null,null,null,null,null,"15:55:00"]
[null,null,null,null,null,null,null,null,null,null,null,null,null,null,null,null,null,null,null,null,null,null,null,null,null,null,null,null,null,null,null,null,"16:00:00"]
[null,null,null,null,null,null,null,null,null,null,null,null,null,null,null,null,null,null,null,null,null,null,null,null,null,null,null,null,null,null,null,null,"16:05:00"]
[null,null,null,null,null,null,null,null,null,null,null,null,null,null,null,null,null,null,null,null,null,null,null,null,null,null,null,null,null,null,null,null,"16:10:00"]
[null,null,null,null,null,null,null,null,null,null,null,null,null,null,null,null,null,null,null,null,null,null,null,null,null,null,null,null,null,null,null,null,"16:15:00"]
[null,null,null,null,null,null,null,null,null,null,null,null,null,null,null,null,null,null,null,null,null,null,null,null,null,null,null,null,null,null,null,null,"16:20:00"]
[null,null,null,null,null,null,null,null,null,null,null,null,null,null,null,null,null,null,null,null,null,null,null,null,null,null,null,null,null,null,null,null,"16:25:00"]
[null,null,null,null,null,null,null,null,null,null,null,null,null,null,null,null,null,null,null,null,null,null,null,null,null,null,null,null,null,null,null,null,"16:30:00"]
[null,null,null,null,null,null,null,null,null,null,null,null,null,null,null,null,null,null,null,null,null,null,null,null,null,null,null,null,null,null,null,null,"16:35:00"]
[null,null,null,null,null,null,null,null,null,null,null,null,null,null,null,null,null,null,null,null,null,null,null,null,null,null,null,null,null,null,null,null,"16:40:00"]
[null,null,null,null,null,null,null,null,null,null,null,null,null,null,null,null,null,null,null,null,null,null,null,null,null,null,null,null,null,null,null,null,"16:45:00"]
[null,null,null,null,null,null,null,null,null,null,null,null,null,null,null,null,null,null,null,null,null,null,null,null,null,null,null,null,null,null,null,null,"16:50:00"]
[null,null,null,null,null,null,null,null,null,null,null,null,null,null,null,null,null,null,null,null,null,null,null,null,null,null,null,null,null,null,null,null,"16:55:00"]
[null,null,null,null,null,null,null,null,null,null,null,null,null,null,null,null,null,null,null,null,null,null,null,null,null,null,null,null,null,null,null,null,"17:00:00"]
[null,null,null,null,null,null,null,null,null,null,null,null,null,null,null,null,null,null,null,null,null,null,null,null,null,null,null,null,null,null,null,null,"17:05:00"]
[null,null,null,null,null,null,null,null,null,null,null,null,null,null,null,null,null,null,null,null,null,null,null,null,null,null,null,null,null,null,null,null,"17:10:00"]
[null,null,null,null,null,null,null,null,null,null,null,null,null,null,null,null,null,null,null,null,null,null,null,null,null,null,null,null,null,null,null,null,"17:15:00"]
[null,null,null,null,null,null,null,null,null,null,null,null,null,null,null,null,null,null,null,null,null,null,null,null,null,null,null,null,null,null,null,null,"17:20:00"]
[null,null,null,null,null,null,null,null,null,null,null,null,null,null,null,null,null,null,null,null,null,null,null,null,null,null,null,null,null,null,null,null,"17:25:00"]
[null,null,null,null,null,null,null,null,null,null,null,null,null,null,null,null,null,null,null,null,null,null,null,null,null,null,null,null,null,null,null,null,"17:30:00"]
[null,null,null,null,null,null,null,null,null,null,null,null,null,null,null,null,null,null,null,null,null,null,null,null,null,null,null,null,null,null,null,null,"17:35:00"]
[null,null,null,null,null,null,null,null,null,null,null,null,null,null,null,null,null,null,null,null,null,null,null,null,null,null,null,null,null,null,null,null,"17:40:00"]
[null,null,null,null,null,null,null,null,null,null,null,null,null,null,null,null,null,null,null,null,null,null,null,null,null,null,null,null,null,null,null,null,"17:45:00"]
[null,null,null,null,null,null,null,null,null,null,null,null,null,null,null,null,null,null,null,null,null,null,null,null,null,null,null,null,null,null,null,null,"17:50:00"]
[null,null,null,null,null,null,null,null,null,null,null,null,null,null,null,null,null,null,null,null,null,null,null,null,null,null,null,null,null,null,null,null,"17:55:00"]
[null,null,null,null,null,null,null,null,null,null,null,null,null,null,null,null,null,null,null,null,null,null,null,null,null,null,null,null,null,null,null,null,"18:00:00"]
[null,null,null,null,null,null,null,null,null,null,null,null,null,null,null,null,null,null,null,null,null,null,null,null,null,null,null,null,null,null,null,null,"18:05:00"]
[null,null,null,null,null,null,null,null,null,null,null,null,null,null,null,null,null,null,null,null,null,null,null,null,null,null,null,null,null,null,null,null,"18:10:00"]
[null,null,null,null,null,null,null,null,null,null,null,null,null,null,null,null,null,null,null,null,null,null,null,null,null,null,null,null,null,null,null,null,"18:15:00"]
[null,null,null,null,null,null,null,null,null,null,null,null,null,null,null,null,null,null,null,null,null,null,null,null,null,null,null,null,null,null,null,null,"18:20:00"]
[null,null,null,null,null,null,null,null,null,null,null,null,null,null,null,null,null,null,null,null,null,null,null,null,null,null,null,null,null,null,null,null,"18:25:00"]
[null,null,null,null,null,null,null,null,null,null,null,null,null,null,null,null,null,null,null,null,null,null,null,null,null,null,null,null,null,null,null,null,"18:30:00"]
[null,null,null,null,null,null,null,null,null,null,null,null,null,null,null,null,null,null,null,null,null,null,null,null,null,null,null,null,null,null,null,null,"18:35:00"]
[null,null,null,null,null,null,null,null,null,null,null,null,null,null,null,null,null,null,null,null,null,null,null,null,null,null,null,null,null,null,null,null,"18:40:00"]
[null,null,null,null,null,null,null,null,null,null,null,null,null,null,null,null,null,null,null,null,null,null,null,null,null,null,null,null,null,null,null,null,"18:45:00"]
[null,null,null,null,null,null,null,null,null,null,null,null,null,null,null,null,null,null,null,null,null,null,null,null,null,null,null,null,null,null,null,null,"18:50:00"]
[null,null,null,null,null,null,null,null,null,null,null,null,null,null,null,null,null,null,null,null,null,null,null,null,null,null,null,null,null,null,null,null,"18:55:00"]
[null,null,null,null,null,null,null,null,null,null,null,null,null,null,null,null,null,null,null,null,null,null,null,null,null,null,null,null,null,null,null,null,"19:00:00"]

{"sheet":"シート2-②-3","index":6,"n_rows":147,"n_cols":41,"rows_kept":147,"cut":false,"hidden":false,"merged":[[30,1,30,28],[31,1,31,28],[18,41,22,53],[9,21,10,23],[9,24,10,28],[10,4,10,8],[10,12,10,15],[10,17,10,20],[15,38,15,39],[15,33,16,33],[9,1,10,2],[9,4,9,8],[9,9,10,10],[9,12,9,15],[9,17,9,20],[2,1,2,28],[5,1,5,2],[5,3,5,28],[6,1,6,2],[6,3,6,28],[17,38,17,39],[18,15,18,17],[18,18,18,20],[18,21,18,23],[17,1,17,14],[17,15,17,17],[17,18,17,20],[17,21,17,23],[17,36,17,37],[19,2,19,14],[18,2,18,14],[17,34,17,35],[15,1,16,14],[15,15,16,17],[15,18,16,20],[15,21,16,23],[15,24,16,28],[17,24,17,28],[18,24,18,28],[12,1,13,2],[12,4,12,20],[12,21,13,23],[12,24,13,28],[13,4,13,20],[15,36,15,37],[21,24,21,28],[22,24,22,28],[19,15,19,17],[19,18,19,20],[19,21,19,23],[19,24,19,28],[20,24,20,28],[20,15,20,17],[20,18,20,20],[15,34,15,35],[20,21,20,23],[20,2,20,14],[22,15,22,17],[22,18,22,20],[22,21,22,23],[21,2,21,14],[22,2,22,14],[21,15,21,17],[21,18,21,20],[21,21,21,23],[23,24,23,28],[25,2,25,14],[27,2,27,14],[27,15,27,17],[27,18,27,20],[27,21,27,23],[27,24,27,28],[23,2,23,14],[24,2,24,14],[24,15,24,17],[24,18,24,20],[24,21,24,23],[23,15,23,17],[23,18,23,20],[23,21,23,23],[24,24,24,28],[28,2,28,14],[28,15,28,17],[28,18,28,20],[28,21,28,23],[28,24,28,28],[26,2,26,14],[26,24,26,28],[25,21,25,23],[25,24,25,28],[26,15,26,17],[26,18,26,20],[26,21,26,23],[25,15,25,17],[25,18,25,20]]}
[null,"研修記録シート2（評価）"]
[]
[null,"この振り返りシートは、科目の受講前後で各自の理解度を把握し、受講中の学習効果の向上と、受講後の学習のポイントを焦点化し、継続的な資質向上に役立てるものです。本科目を学習した時点で感じた事を書き留め、今後の学習方針や課題への取り組みを考える際に見返してみましょう。"]
[]
[]
[null,"研修名：",null,"専門研修Ⅱ",null,null,null,null,null,null,null,null,null,null,null,null,null,null,null,null,null,null,null,null,null,null,null,null,null,null,null,null,null,null,null,null,null,null,null,null,"このボタンをクリックするとTOPページへ移動します。"]
[null,"科目名：",null,"②-3ケアマネジメントにおける実践事例の研究及び発表「認知症に関する事例」"]
[]
[]
[null,"受講日",null,1,null,null,null,null,null,"時間",null,1,null,null,null,null,"～",null,null,null,null,"氏名",null,null,{"$f":"IF(ISBLANK(シート1!N7),\"\",シート1!N7)","v":""}]
[null,null,null,2,null,null,null,null,null,null,null,2,null,null,null,null,"～"]
[]
[null,"会場",null,1,null,null,null,null,null,null,null,null,null,null,null,null,null,null,null,null,null,"番号",null,null,{"$f":"IF(ISBLANK(シート1!N9),\"\",シート1!N9)","v":""}]
[null,null,null,2]
[]
[null,"項　　目 ",null,null,null,null,null,null,null,null,null,null,null,null,null,"受講前 ",null,null,"受講\n直後",null,null,"実践\n評価\n(3ヶ月後）",null,null,"備　　考 ",null,null,null,null,null,null,"リスト（課程区分）","リスト（時間）",null,"受講前",null,"受講後 ",null,"実践評価"]
[null,null,null,null,null,null,null,null,null,null,null,null,null,null,null,null,null,null,null,null,null,null,null,null,null,null,null,null,null,null,null,null,"リストから選択",null,"理解度","習得度","理解度","習得度","理解度","習得度"]
[null,"記入日（入力日）",null,null,null,null,null,null,null,null,null,null,null,null,null,null,null,null,null,null,null,null,null,null,null,null,null,null,null,null,null,"リスト（課程区分）","リスト（時間）",null,"受講前",null,"受講後 ",null,"実践評価"]
[null,"① ","認知症である要介護者等の居宅サービス計画等の実践事例について意見交換を通して分析し評価できる。",null,null,null,null,null,null,null,null,null,null,null,null,null,null,null,null,null,null,null,null,null,null,null,null,null,null,null,null,"Ⅰ","08:00:00"]
[null,"② ","分析し評価した内容を受講者間で共有し、アセスメントや居宅サービス計画等の作成における留意点を判断できる。",null,null,null,null,null,null,null,null,null,null,null,null,null,null,null,null,null,null,null,null,null,null,null,null,null,null,null,null,"Ⅱ","08:05:00",4,"4．理解している ","-","4．非常に理解が深まった ","4．習得できた ","4．非常に理解が深まった","4．習得度が上がった "]
[null,"③ ","各種統計データを活用する等により、別の類似の事例等への応用を実施できる。",null,null,null,null,null,null,null,null,null,null,null,null,null,null,null,null,null,null,null,null,null,null,null,null,null,null,null,null,null,"08:10:00",3,"3．概ね理解している ","-","3．理解が深まった ","3．概ね習得できた ","3．理解が深まった","3．まあまあ習得度が上がった "]
[null,"④ ","地域の各種統計データを必要に応じて活用することにより、他の事例へも応用できる。",null,null,null,null,null,null,null,null,null,null,null,null,null,null,null,null,null,null,null,null,null,null,null,null,null,null,null,null,null,"08:15:00",2,"2．あまり理解していない ","-","2．あまり理解が進まなかった ","2．あまり習得できていない ","2．あまり理解度は変わらない ","2．習得度は変わらない "]
[null,"⑤ ","医療職をはじめとする多職種や、地域住民との連携方法への応用を実施できる。",null,null,null,null,null,null,null,null,null,null,null,null,null,null,null,null,null,null,null,null,null,null,null,null,null,null,null,null,null,"08:20:00",1,"1．全く理解していない ","-","1．理解が進まなかった ","1．習得できていない ","1．理解度は変わらない。 ","1．理解度が深まり、習得度が後退した "]
[null,"⑥","地域の社会資源（インフォーマルサービス等）を活用したケアマネジメントを実施できる。",null,null,null,null,null,null,null,null,null,null,null,null,null,null,null,null,null,null,null,null,null,null,null,null,null,null,null,null,null,"08:25:00"]
[null,null,null,null,null,null,null,null,null,null,null,null,null,null,null,null,null,null,null,null,null,null,null,null,null,null,null,null,null,null,null,null,"08:30:00"]
[null,null,null,null,null,null,null,null,null,null,null,null,null,null,null,null,null,null,null,null,null,null,null,null,null,null,null,null,null,null,null,null,"08:35:00"]
[null,null,null,null,null,null,null,null,null,null,null,null,null,null,null,null,null,null,null,null,null,null,null,null,null,null,null,null,null,null,null,null,"08:40:00"]
[null,null,null,null,null,null,null,null,null,null,null,null,null,null,null,null,null,null,null,null,null,null,null,null,null,null,null,null,null,null,null,null,"08:45:00"]
[null,null,null,null,null,null,null,null,null,null,null,null,null,null,null,null,null,null,null,null,null,null,null,null,null,null,null,null,null,null,null,null,"09:10:00"]
[null,null,null,null,null,null,null,null,null,null,null,null,null,null,null,null,null,null,null,null,null,null,null,null,null,null,null,null,null,null,null,null,"09:15:00"]
[null,"　※研修は自己評価とし、4段階評価で、数字が大きいほど高評価、数字が小さいほど低評価として記入してください。",null,null,null,null,null,null,null,null,null,null,null,null,null,null,null,null,null,null,null,null,null,null,null,null,null,null,null,null,null,null,"09:20:00"]
[null,"　　【選択肢】　　　4.　できる　　　　　3.　概ねできる　　　　　2.　ほとんどできない　　　　1.　全くできない",null,null,null,null,null,null,null,null,null,null,null,null,null,null,null,null,null,null,null,null,null,null,null,null,null,null,null,null,null,null,"09:25:00"]
[null,null,null,null,null,null,null,null,null,null,null,null,null,null,null,null,null,null,null,null,null,null,null,null,null,null,null,null,null,null,null,null,"09:30:00"]
[null,null,null,null,null,null,null,null,null,null,null,null,null,null,null,null,null,null,null,null,null,null,null,null,null,null,null,null,null,null,null,null,"09:35:00"]
[null,null,null,null,null,null,null,null,null,null,null,null,null,null,null,null,null,null,null,null,null,null,null,null,null,null,null,null,null,null,null,null,"09:40:00"]
[null,null,null,null,null,null,null,null,null,null,null,null,null,null,null,null,null,null,null,null,null,null,null,null,null,null,null,null,null,null,null,null,"09:45:00"]
[null,null,null,null,null,null,null,null,null,null,null,null,null,null,null,null,null,null,null,null,null,null,null,null,null,null,null,null,null,null,null,null,"09:50:00"]
[null,null,null,null,null,null,null,null,null,null,null,null,null,null,null,null,null,null,null,null,null,null,null,null,null,null,null,null,null,null,null,null,"09:55:00"]
[null,null,null,null,null,null,null,null,null,null,null,null,null,null,null,null,null,null,null,null,null,null,null,null,null,null,null,null,null,null,null,null,"10:00:00"]
[null,null,null,null,null,null,null,null,null,null,null,null,null,null,null,null,null,null,null,null,null,null,null,null,null,null,null,null,null,null,null,null,"10:05:00"]
[null,null,null,null,null,null,null,null,null,null,null,null,null,null,null,null,null,null,null,null,null,null,null,null,null,null,null,null,null,null,null,null,"10:10:00"]
[null,null,null,null,null,null,null,null,null,null,null,null,null,null,null,null,null,null,null,null,null,null,null,null,null,null,null,null,null,null,null,null,"10:15:00"]
[null,null,null,null,null,null,null,null,null,null,null,null,null,null,null,null,null,null,null,null,null,null,null,null,null,null,null,null,null,null,null,null,"10:20:00"]
[null,null,null,null,null,null,null,null,null,null,null,null,null,null,null,null,null,null,null,null,null,null,null,null,null,null,null,null,null,null,null,null,"10:25:00"]
[null,null,null,null,null,null,null,null,null,null,null,null,null,null,null,null,null,null,null,null,null,null,null,null,null,null,null,null,null,null,null,null,"10:30:00"]
[null,null,null,null,null,null,null,null,null,null,null,null,null,null,null,null,null,null,null,null,null,null,null,null,null,null,null,null,null,null,null,null,"10:35:00"]
[null,null,null,null,null,null,null,null,null,null,null,null,null,null,null,null,null,null,null,null,null,null,null,null,null,null,null,null,null,null,null,null,"10:40:00"]
[null,null,null,null,null,null,null,null,null,null,null,null,null,null,null,null,null,null,null,null,null,null,null,null,null,null,null,null,null,null,null,null,"10:45:00"]
[null,null,null,null,null,null,null,null,null,null,null,null,null,null,null,null,null,null,null,null,null,null,null,null,null,null,null,null,null,null,null,null,"10:50:00"]
[null,null,null,null,null,null,null,null,null,null,null,null,null,null,null,null,null,null,null,null,null,null,null,null,null,null,null,null,null,null,null,null,"10:55:00"]
[null,null,null,null,null,null,null,null,null,null,null,null,null,null,null,null,null,null,null,null,null,null,null,null,null,null,null,null,null,null,null,null,"11:00:00"]
[null,null,null,null,null,null,null,null,null,null,null,null,null,null,null,null,null,null,null,null,null,null,null,null,null,null,null,null,null,null,null,null,"11:05:00"]
[null,null,null,null,null,null,null,null,null,null,null,null,null,null,null,null,null,null,null,null,null,null,null,null,null,null,null,null,null,null,null,null,"11:10:00"]
[null,null,null,null,null,null,null,null,null,null,null,null,null,null,null,null,null,null,null,null,null,null,null,null,null,null,null,null,null,null,null,null,"11:15:00"]
[null,null,null,null,null,null,null,null,null,null,null,null,null,null,null,null,null,null,null,null,null,null,null,null,null,null,null,null,null,null,null,null,"11:20:00"]
[null,null,null,null,null,null,null,null,null,null,null,null,null,null,null,null,null,null,null,null,null,null,null,null,null,null,null,null,null,null,null,null,"11:25:00"]
[null,null,null,null,null,null,null,null,null,null,null,null,null,null,null,null,null,null,null,null,null,null,null,null,null,null,null,null,null,null,null,null,"11:30:00"]
[null,null,null,null,null,null,null,null,null,null,null,null,null,null,null,null,null,null,null,null,null,null,null,null,null,null,null,null,null,null,null,null,"11:35:00"]
[null,null,null,null,null,null,null,null,null,null,null,null,null,null,null,null,null,null,null,null,null,null,null,null,null,null,null,null,null,null,null,null,"11:40:00"]
[null,null,null,null,null,null,null,null,null,null,null,null,null,null,null,null,null,null,null,null,null,null,null,null,null,null,null,null,null,null,null,null,"11:45:00"]
[null,null,null,null,null,null,null,null,null,null,null,null,null,null,null,null,null,null,null,null,null,null,null,null,null,null,null,null,null,null,null,null,"11:50:00"]
[null,null,null,null,null,null,null,null,null,null,null,null,null,null,null,null,null,null,null,null,null,null,null,null,null,null,null,null,null,null,null,null,"11:55:00"]
[null,null,null,null,null,null,null,null,null,null,null,null,null,null,null,null,null,null,null,null,null,null,null,null,null,null,null,null,null,null,null,null,"12:00:00"]
[null,null,null,null,null,null,null,null,null,null,null,null,null,null,null,null,null,null,null,null,null,null,null,null,null,null,null,null,null,null,null,null,"12:05:00"]
[null,null,null,null,null,null,null,null,null,null,null,null,null,null,null,null,null,null,null,null,null,null,null,null,null,null,null,null,null,null,null,null,"12:10:00"]
[null,null,null,null,null,null,null,null,null,null,null,null,null,null,null,null,null,null,null,null,null,null,null,null,null,null,null,null,null,null,null,null,"12:15:00"]
[null,null,null,null,null,null,null,null,null,null,null,null,null,null,null,null,null,null,null,null,null,null,null,null,null,null,null,null,null,null,null,null,"12:20:00"]
[null,null,null,null,null,null,null,null,null,null,null,null,null,null,null,null,null,null,null,null,null,null,null,null,null,null,null,null,null,null,null,null,"12:25:00"]
[null,null,null,null,null,null,null,null,null,null,null,null,null,null,null,null,null,null,null,null,null,null,null,null,null,null,null,null,null,null,null,null,"12:30:00"]
[null,null,null,null,null,null,null,null,null,null,null,null,null,null,null,null,null,null,null,null,null,null,null,null,null,null,null,null,null,null,null,null,"12:35:00"]
[null,null,null,null,null,null,null,null,null,null,null,null,null,null,null,null,null,null,null,null,null,null,null,null,null,null,null,null,null,null,null,null,"12:40:00"]
[null,null,null,null,null,null,null,null,null,null,null,null,null,null,null,null,null,null,null,null,null,null,null,null,null,null,null,null,null,null,null,null,"12:45:00"]
[null,null,null,null,null,null,null,null,null,null,null,null,null,null,null,null,null,null,null,null,null,null,null,null,null,null,null,null,null,null,null,null,"12:50:00"]
[null,null,null,null,null,null,null,null,null,null,null,null,null,null,null,null,null,null,null,null,null,null,null,null,null,null,null,null,null,null,null,null,"12:55:00"]
[null,null,null,null,null,null,null,null,null,null,null,null,null,null,null,null,null,null,null,null,null,null,null,null,null,null,null,null,null,null,null,null,"13:00:00"]
[null,null,null,null,null,null,null,null,null,null,null,null,null,null,null,null,null,null,null,null,null,null,null,null,null,null,null,null,null,null,null,null,"13:05:00"]
[null,null,null,null,null,null,null,null,null,null,null,null,null,null,null,null,null,null,null,null,null,null,null,null,null,null,null,null,null,null,null,null,"13:10:00"]
[null,null,null,null,null,null,null,null,null,null,null,null,null,null,null,null,null,null,null,null,null,null,null,null,null,null,null,null,null,null,null,null,"13:15:00"]
[null,null,null,null,null,null,null,null,null,null,null,null,null,null,null,null,null,null,null,null,null,null,null,null,null,null,null,null,null,null,null,null,"13:20:00"]
[null,null,null,null,null,null,null,null,null,null,null,null,null,null,null,null,null,null,null,null,null,null,null,null,null,null,null,null,null,null,null,null,"13:25:00"]
[null,null,null,null,null,null,null,null,null,null,null,null,null,null,null,null,null,null,null,null,null,null,null,null,null,null,null,null,null,null,null,null,"13:30:00"]
[null,null,null,null,null,null,null,null,null,null,null,null,null,null,null,null,null,null,null,null,null,null,null,null,null,null,null,null,null,null,null,null,"13:35:00"]
[null,null,null,null,null,null,null,null,null,null,null,null,null,null,null,null,null,null,null,null,null,null,null,null,null,null,null,null,null,null,null,null,"13:40:00"]
[null,null,null,null,null,null,null,null,null,null,null,null,null,null,null,null,null,null,null,null,null,null,null,null,null,null,null,null,null,null,null,null,"13:45:00"]
[null,null,null,null,null,null,null,null,null,null,null,null,null,null,null,null,null,null,null,null,null,null,null,null,null,null,null,null,null,null,null,null,"13:50:00"]
[null,null,null,null,null,null,null,null,null,null,null,null,null,null,null,null,null,null,null,null,null,null,null,null,null,null,null,null,null,null,null,null,"13:55:00"]
[null,null,null,null,null,null,null,null,null,null,null,null,null,null,null,null,null,null,null,null,null,null,null,null,null,null,null,null,null,null,null,null,"14:00:00"]
[null,null,null,null,null,null,null,null,null,null,null,null,null,null,null,null,null,null,null,null,null,null,null,null,null,null,null,null,null,null,null,null,"14:05:00"]
[null,null,null,null,null,null,null,null,null,null,null,null,null,null,null,null,null,null,null,null,null,null,null,null,null,null,null,null,null,null,null,null,"14:10:00"]
[null,null,null,null,null,null,null,null,null,null,null,null,null,null,null,null,null,null,null,null,null,null,null,null,null,null,null,null,null,null,null,null,"14:15:00"]
[null,null,null,null,null,null,null,null,null,null,null,null,null,null,null,null,null,null,null,null,null,null,null,null,null,null,null,null,null,null,null,null,"14:20:00"]
[null,null,null,null,null,null,null,null,null,null,null,null,null,null,null,null,null,null,null,null,null,null,null,null,null,null,null,null,null,null,null,null,"14:25:00"]
[null,null,null,null,null,null,null,null,null,null,null,null,null,null,null,null,null,null,null,null,null,null,null,null,null,null,null,null,null,null,null,null,"14:30:00"]
[null,null,null,null,null,null,null,null,null,null,null,null,null,null,null,null,null,null,null,null,null,null,null,null,null,null,null,null,null,null,null,null,"14:35:00"]
[null,null,null,null,null,null,null,null,null,null,null,null,null,null,null,null,null,null,null,null,null,null,null,null,null,null,null,null,null,null,null,null,"14:40:00"]
[null,null,null,null,null,null,null,null,null,null,null,null,null,null,null,null,null,null,null,null,null,null,null,null,null,null,null,null,null,null,null,null,"14:45:00"]
[null,null,null,null,null,null,null,null,null,null,null,null,null,null,null,null,null,null,null,null,null,null,null,null,null,null,null,null,null,null,null,null,"14:50:00"]
[null,null,null,null,null,null,null,null,null,null,null,null,null,null,null,null,null,null,null,null,null,null,null,null,null,null,null,null,null,null,null,null,"14:55:00"]
[null,null,null,null,null,null,null,null,null,null,null,null,null,null,null,null,null,null,null,null,null,null,null,null,null,null,null,null,null,null,null,null,"15:00:00"]
[null,null,null,null,null,null,null,null,null,null,null,null,null,null,null,null,null,null,null,null,null,null,null,null,null,null,null,null,null,null,null,null,"15:05:00"]
[null,null,null,null,null,null,null,null,null,null,null,null,null,null,null,null,null,null,null,null,null,null,null,null,null,null,null,null,null,null,null,null,"15:10:00"]
[null,null,null,null,null,null,null,null,null,null,null,null,null,null,null,null,null,null,null,null,null,null,null,null,null,null,null,null,null,null,null,null,"15:15:00"]
[null,null,null,null,null,null,null,null,null,null,null,null,null,null,null,null,null,null,null,null,null,null,null,null,null,null,null,null,null,null,null,null,"15:20:00"]
[null,null,null,null,null,null,null,null,null,null,null,null,null,null,null,null,null,null,null,null,null,null,null,null,null,null,null,null,null,null,null,null,"15:25:00"]
[null,null,null,null,null,null,null,null,null,null,null,null,null,null,null,null,null,null,null,null,null,null,null,null,null,null,null,null,null,null,null,null,"15:30:00"]
[null,null,null,null,null,null,null,null,null,null,null,null,null,null,null,null,null,null,null,null,null,null,null,null,null,null,null,null,null,null,null,null,"15:35:00"]
[null,null,null,null,null,null,null,null,null,null,null,null,null,null,null,null,null,null,null,null,null,null,null,null,null,null,null,null,null,null,null,null,"15:40:00"]
[null,null,null,null,null,null,null,null,null,null,null,null,null,null,null,null,null,null,null,null,null,null,null,null,null,null,null,null,null,null,null,null,"15:45:00"]
[null,null,null,null,null,null,null,null,null,null,null,null,null,null,null,null,null,null,null,null,null,null,null,null,null,null,null,null,null,null,null,null,"15:50:00"]
[null,null,null,null,null,null,null,null,null,null,null,null,null,null,null,null,null,null,null,null,null,null,null,null,null,null,null,null,null,null,null,null,"15:55:00"]
[null,null,null,null,null,null,null,null,null,null,null,null,null,null,null,null,null,null,null,null,null,null,null,null,null,null,null,null,null,null,null,null,"16:00:00"]
[null,null,null,null,null,null,null,null,null,null,null,null,null,null,null,null,null,null,null,null,null,null,null,null,null,null,null,null,null,null,null,null,"16:05:00"]
[null,null,null,null,null,null,null,null,null,null,null,null,null,null,null,null,null,null,null,null,null,null,null,null,null,null,null,null,null,null,null,null,"16:10:00"]
[null,null,null,null,null,null,null,null,null,null,null,null,null,null,null,null,null,null,null,null,null,null,null,null,null,null,null,null,null,null,null,null,"16:15:00"]
[null,null,null,null,null,null,null,null,null,null,null,null,null,null,null,null,null,null,null,null,null,null,null,null,null,null,null,null,null,null,null,null,"16:20:00"]
[null,null,null,null,null,null,null,null,null,null,null,null,null,null,null,null,null,null,null,null,null,null,null,null,null,null,null,null,null,null,null,null,"16:25:00"]
[null,null,null,null,null,null,null,null,null,null,null,null,null,null,null,null,null,null,null,null,null,null,null,null,null,null,null,null,null,null,null,null,"16:30:00"]
[null,null,null,null,null,null,null,null,null,null,null,null,null,null,null,null,null,null,null,null,null,null,null,null,null,null,null,null,null,null,null,null,"16:35:00"]
[null,null,null,null,null,null,null,null,null,null,null,null,null,null,null,null,null,null,null,null,null,null,null,null,null,null,null,null,null,null,null,null,"16:40:00"]
[null,null,null,null,null,null,null,null,null,null,null,null,null,null,null,null,null,null,null,null,null,null,null,null,null,null,null,null,null,null,null,null,"16:45:00"]
[null,null,null,null,null,null,null,null,null,null,null,null,null,null,null,null,null,null,null,null,null,null,null,null,null,null,null,null,null,null,null,null,"16:50:00"]
[null,null,null,null,null,null,null,null,null,null,null,null,null,null,null,null,null,null,null,null,null,null,null,null,null,null,null,null,null,null,null,null,"16:55:00"]
[null,null,null,null,null,null,null,null,null,null,null,null,null,null,null,null,null,null,null,null,null,null,null,null,null,null,null,null,null,null,null,null,"17:00:00"]
[null,null,null,null,null,null,null,null,null,null,null,null,null,null,null,null,null,null,null,null,null,null,null,null,null,null,null,null,null,null,null,null,"17:05:00"]
[null,null,null,null,null,null,null,null,null,null,null,null,null,null,null,null,null,null,null,null,null,null,null,null,null,null,null,null,null,null,null,null,"17:10:00"]
[null,null,null,null,null,null,null,null,null,null,null,null,null,null,null,null,null,null,null,null,null,null,null,null,null,null,null,null,null,null,null,null,"17:15:00"]
[null,null,null,null,null,null,null,null,null,null,null,null,null,null,null,null,null,null,null,null,null,null,null,null,null,null,null,null,null,null,null,null,"17:20:00"]
[null,null,null,null,null,null,null,null,null,null,null,null,null,null,null,null,null,null,null,null,null,null,null,null,null,null,null,null,null,null,null,null,"17:25:00"]
[null,null,null,null,null,null,null,null,null,null,null,null,null,null,null,null,null,null,null,null,null,null,null,null,null,null,null,null,null,null,null,null,"17:30:00"]
[null,null,null,null,null,null,null,null,null,null,null,null,null,null,null,null,null,null,null,null,null,null,null,null,null,null,null,null,null,null,null,null,"17:35:00"]
[null,null,null,null,null,null,null,null,null,null,null,null,null,null,null,null,null,null,null,null,null,null,null,null,null,null,null,null,null,null,null,null,"17:40:00"]
[null,null,null,null,null,null,null,null,null,null,null,null,null,null,null,null,null,null,null,null,null,null,null,null,null,null,null,null,null,null,null,null,"17:45:00"]
[null,null,null,null,null,null,null,null,null,null,null,null,null,null,null,null,null,null,null,null,null,null,null,null,null,null,null,null,null,null,null,null,"17:50:00"]
[null,null,null,null,null,null,null,null,null,null,null,null,null,null,null,null,null,null,null,null,null,null,null,null,null,null,null,null,null,null,null,null,"17:55:00"]
[null,null,null,null,null,null,null,null,null,null,null,null,null,null,null,null,null,null,null,null,null,null,null,null,null,null,null,null,null,null,null,null,"18:00:00"]
[null,null,null,null,null,null,null,null,null,null,null,null,null,null,null,null,null,null,null,null,null,null,null,null,null,null,null,null,null,null,null,null,"18:05:00"]
[null,null,null,null,null,null,null,null,null,null,null,null,null,null,null,null,null,null,null,null,null,null,null,null,null,null,null,null,null,null,null,null,"18:10:00"]
[null,null,null,null,null,null,null,null,null,null,null,null,null,null,null,null,null,null,null,null,null,null,null,null,null,null,null,null,null,null,null,null,"18:15:00"]
[null,null,null,null,null,null,null,null,null,null,null,null,null,null,null,null,null,null,null,null,null,null,null,null,null,null,null,null,null,null,null,null,"18:20:00"]
[null,null,null,null,null,null,null,null,null,null,null,null,null,null,null,null,null,null,null,null,null,null,null,null,null,null,null,null,null,null,null,null,"18:25:00"]
[null,null,null,null,null,null,null,null,null,null,null,null,null,null,null,null,null,null,null,null,null,null,null,null,null,null,null,null,null,null,null,null,"18:30:00"]
[null,null,null,null,null,null,null,null,null,null,null,null,null,null,null,null,null,null,null,null,null,null,null,null,null,null,null,null,null,null,null,null,"18:35:00"]
[null,null,null,null,null,null,null,null,null,null,null,null,null,null,null,null,null,null,null,null,null,null,null,null,null,null,null,null,null,null,null,null,"18:40:00"]
[null,null,null,null,null,null,null,null,null,null,null,null,null,null,null,null,null,null,null,null,null,null,null,null,null,null,null,null,null,null,null,null,"18:45:00"]
[null,null,null,null,null,null,null,null,null,null,null,null,null,null,null,null,null,null,null,null,null,null,null,null,null,null,null,null,null,null,null,null,"18:50:00"]
[null,null,null,null,null,null,null,null,null,null,null,null,null,null,null,null,null,null,null,null,null,null,null,null,null,null,null,null,null,null,null,null,"18:55:00"]
[null,null,null,null,null,null,null,null,null,null,null,null,null,null,null,null,null,null,null,null,null,null,null,null,null,null,null,null,null,null,null,null,"19:00:00"]

{"sheet":"シート2-②-4","index":7,"n_rows":146,"n_cols":41,"rows_kept":146,"cut":false,"hidden":false,"merged":[[31,1,31,28],[25,24,25,28],[24,24,24,28],[26,2,26,14],[26,15,26,17],[26,18,26,20],[26,21,26,23],[26,24,26,28],[25,2,25,14],[25,15,25,17],[30,1,30,28],[12,1,13,2],[12,4,12,20],[12,24,13,28],[13,4,13,20],[2,1,2,28],[5,1,5,2],[5,3,5,28],[6,1,6,2],[6,3,6,28],[15,34,15,35],[15,36,15,37],[15,38,15,39],[15,33,16,33],[15,24,16,28],[15,1,16,14],[17,1,17,14],[18,2,18,14],[9,21,10,23],[9,24,10,28],[12,21,13,23],[9,1,10,2],[9,12,9,15],[9,17,9,20],[10,4,10,8],[10,12,10,15],[10,17,10,20],[9,4,9,8],[9,9,10,10],[15,15,16,17],[15,18,16,20],[15,21,16,23],[18,15,18,17],[18,18,18,20],[18,21,18,23],[17,15,17,17],[17,18,17,20],[19,2,19,14],[21,24,21,28],[17,24,17,28],[17,21,17,23],[21,21,21,23],[18,24,18,28],[19,24,19,28],[20,2,20,14],[21,2,21,14],[19,15,19,17],[19,21,19,23],[20,15,20,17],[20,18,20,20],[20,21,20,23],[22,2,22,14],[17,34,17,35],[17,36,17,37],[17,38,17,39],[23,2,23,14],[23,15,23,17],[23,18,23,20],[23,21,23,23],[22,15,22,17],[22,18,22,20],[21,15,21,17],[21,18,21,20],[20,24,20,28],[19,18,19,20],[22,21,22,23],[22,24,22,28],[28,2,28,14],[28,15,28,17],[28,18,28,20],[28,21,28,23],[28,24,28,28],[27,21,27,23],[23,24,23,28],[27,2,27,14],[27,15,27,17],[27,24,27,28],[27,18,27,20],[24,2,24,14],[24,15,24,17],[24,18,24,20],[24,21,24,23],[25,18,25,20],[25,21,25,23]]}
[null,"研修記録シート2（評価）"]
[]
[null,"この振り返りシートは、科目の受講前後で各自の理解度を把握し、受講中の学習効果の向上と、受講後の学習のポイントを焦点化し、継続的な資質向上に役立てるものです。本科目を学習した時点で感じた事を書き留め、今後の学習方針や課題への取り組みを考える際に見返してみましょう。"]
[]
[]
[null,"研修名：",null,"専門研修Ⅱ",null,null,null,null,null,null,null,null,null,null,null,null,null,null,null,null,null,null,null,null,null,null,null,null,null,null,null,null,null,null,null,null,null,null,null,null,"このボタンをクリックするとTOPページへ移動します。"]
[null,"科目名：",null,"②-4ケアマネジメントにおける実践事例の研究及び発表「入退院時等における医療との連携に関する事例」"]
[]
[]
[null,"受講日",null,1,null,null,null,null,null,"時間",null,1,null,null,null,null,"～",null,null,null,null,"氏名",null,null,{"$f":"IF(ISBLANK(シート1!N7),\"\",シート1!N7)","v":""}]
[null,null,null,2,null,null,null,null,null,null,null,2,null,null,null,null,"～"]
[]
[null,"会場",null,1,null,null,null,null,null,null,null,null,null,null,null,null,null,null,null,null,null,"番号",null,null,{"$f":"IF(ISBLANK(シート1!N9),\"\",シート1!N9)","v":""}]
[null,null,null,2]
[]
[null,"項　　目 ",null,null,null,null,null,null,null,null,null,null,null,null,null,"受講前 ",null,null,"受講\n直後",null,null,"実践\n評価\n(3ヶ月後）",null,null,"備　　考 ",null,null,null,null,null,null,"リスト（課程区分）","リスト（時間）",null,"受講前",null,"受講後 ",null,"実践評価"]
[null,null,null,null,null,null,null,null,null,null,null,null,null,null,null,null,null,null,null,null,null,null,null,null,null,null,null,null,null,null,null,null,"リストから選択",null,"理解度","習得度","理解度","習得度","理解度","習得度"]
[null,"記入日（入力日）",null,null,null,null,null,null,null,null,null,null,null,null,null,null,null,null,null,null,null,null,null,null,null,null,null,null,null,null,null,"リスト（課程区分）","リスト（時間）",null,"受講前",null,"受講後 ",null,"実践評価"]
[null,"① ","入退院時におけるケースの居宅サービス計画等の実践事例について意見交換を通して分析し評価できる。\n",null,null,null,null,null,null,null,null,null,null,null,null,null,null,null,null,null,null,null,null,null,null,null,null,null,null,null,null,"Ⅰ","08:00:00"]
[null,"② ","分析し評価した内容を受講者間で共有し、アセスメントや居宅サービス計画等の作成における留意点を判断できる。",null,null,null,null,null,null,null,null,null,null,null,null,null,null,null,null,null,null,null,null,null,null,null,null,null,null,null,null,"Ⅱ","08:05:00",4,"4．理解している ","-","4．非常に理解が深まった ","4．習得できた ","4．非常に理解が深まった","4．習得度が上がった "]
[null,"③ ","各種統計データを活用する等により、別の類似の事例等への応用を実施できる。",null,null,null,null,null,null,null,null,null,null,null,null,null,null,null,null,null,null,null,null,null,null,null,null,null,null,null,null,null,"08:10:00",3,"3．概ね理解している ","-","3．理解が深まった ","3．概ね習得できた ","3．理解が深まった","3．まあまあ習得度が上がった "]
[null,"④ ","地域の各種統計データを必要に応じて活用することにより、他の事例へも応用できる。",null,null,null,null,null,null,null,null,null,null,null,null,null,null,null,null,null,null,null,null,null,null,null,null,null,null,null,null,null,"08:15:00",2,"2．あまり理解していない ","-","2．あまり理解が進まなかった ","2．あまり習得できていない ","2．あまり理解度は変わらない ","2．習得度は変わらない "]
[null,"⑤ ","医療職をはじめとする多職種との連携方法への応用を実施できる。",null,null,null,null,null,null,null,null,null,null,null,null,null,null,null,null,null,null,null,null,null,null,null,null,null,null,null,null,null,"08:20:00",1,"1．全く理解していない ","-","1．理解が進まなかった ","1．習得できていない ","1．理解度は変わらない。 ","1．理解度が深まり、習得度が後退した "]
[null,"⑥","地域の社会資源（インフォーマルサービス等）を活用したケアマネジメントを実施できる。",null,null,null,null,null,null,null,null,null,null,null,null,null,null,null,null,null,null,null,null,null,null,null,null,null,null,null,null,null,"08:30:00"]
[null,null,null,null,null,null,null,null,null,null,null,null,null,null,null,null,null,null,null,null,null,null,null,null,null,null,null,null,null,null,null,null,"08:55:00"]
[null,null,null,null,null,null,null,null,null,null,null,null,null,null,null,null,null,null,null,null,null,null,null,null,null,null,null,null,null,null,null,null,"09:00:00"]
[null,null,null,null,null,null,null,null,null,null,null,null,null,null,null,null,null,null,null,null,null,null,null,null,null,null,null,null,null,null,null,null,"09:05:00"]
[null,null,null,null,null,null,null,null,null,null,null,null,null,null,null,null,null,null,null,null,null,null,null,null,null,null,null,null,null,null,null,null,"09:10:00"]
[null,null,null,null,null,null,null,null,null,null,null,null,null,null,null,null,null,null,null,null,null,null,null,null,null,null,null,null,null,null,null,null,"09:10:00"]
[null,null,null,null,null,null,null,null,null,null,null,null,null,null,null,null,null,null,null,null,null,null,null,null,null,null,null,null,null,null,null,null,"09:15:00"]
[null,"　※研修は自己評価とし、4段階評価で、数字が大きいほど高評価、数字が小さいほど低評価として記入してください。",null,null,null,null,null,null,null,null,null,null,null,null,null,null,null,null,null,null,null,null,null,null,null,null,null,null,null,null,null,null,"09:20:00"]
[null,"　　【選択肢】　　　4.　できる　　　　　3.　概ねできる　　　　　2.　ほとんどできない　　　　1.　全くできない",null,null,null,null,null,null,null,null,null,null,null,null,null,null,null,null,null,null,null,null,null,null,null,null,null,null,null,null,null,null,"09:25:00"]
[null,null,null,null,null,null,null,null,null,null,null,null,null,null,null,null,null,null,null,null,null,null,null,null,null,null,null,null,null,null,null,null,"09:35:00"]
[null,null,null,null,null,null,null,null,null,null,null,null,null,null,null,null,null,null,null,null,null,null,null,null,null,null,null,null,null,null,null,null,"09:40:00"]
[null,null,null,null,null,null,null,null,null,null,null,null,null,null,null,null,null,null,null,null,null,null,null,null,null,null,null,null,null,null,null,null,"09:45:00"]
[null,null,null,null,null,null,null,null,null,null,null,null,null,null,null,null,null,null,null,null,null,null,null,null,null,null,null,null,null,null,null,null,"09:50:00"]
[null,null,null,null,null,null,null,null,null,null,null,null,null,null,null,null,null,null,null,null,null,null,null,null,null,null,null,null,null,null,null,null,"09:55:00"]
[null,null,null,null,null,null,null,null,null,null,null,null,null,null,null,null,null,null,null,null,null,null,null,null,null,null,null,null,null,null,null,null,"10:00:00"]
[null,null,null,null,null,null,null,null,null,null,null,null,null,null,null,null,null,null,null,null,null,null,null,null,null,null,null,null,null,null,null,null,"10:05:00"]
[null,null,null,null,null,null,null,null,null,null,null,null,null,null,null,null,null,null,null,null,null,null,null,null,null,null,null,null,null,null,null,null,"10:10:00"]
[null,null,null,null,null,null,null,null,null,null,null,null,null,null,null,null,null,null,null,null,null,null,null,null,null,null,null,null,null,null,null,null,"10:15:00"]
[null,null,null,null,null,null,null,null,null,null,null,null,null,null,null,null,null,null,null,null,null,null,null,null,null,null,null,null,null,null,null,null,"10:20:00"]
[null,null,null,null,null,null,null,null,null,null,null,null,null,null,null,null,null,null,null,null,null,null,null,null,null,null,null,null,null,null,null,null,"10:25:00"]
[null,null,null,null,null,null,null,null,null,null,null,null,null,null,null,null,null,null,null,null,null,null,null,null,null,null,null,null,null,null,null,null,"10:30:00"]
[null,null,null,null,null,null,null,null,null,null,null,null,null,null,null,null,null,null,null,null,null,null,null,null,null,null,null,null,null,null,null,null,"10:35:00"]
[null,null,null,null,null,null,null,null,null,null,null,null,null,null,null,null,null,null,null,null,null,null,null,null,null,null,null,null,null,null,null,null,"10:40:00"]
[null,null,null,null,null,null,null,null,null,null,null,null,null,null,null,null,null,null,null,null,null,null,null,null,null,null,null,null,null,null,null,null,"10:45:00"]
[null,null,null,null,null,null,null,null,null,null,null,null,null,null,null,null,null,null,null,null,null,null,null,null,null,null,null,null,null,null,null,null,"10:50:00"]
[null,null,null,null,null,null,null,null,null,null,null,null,null,null,null,null,null,null,null,null,null,null,null,null,null,null,null,null,null,null,null,null,"10:55:00"]
[null,null,null,null,null,null,null,null,null,null,null,null,null,null,null,null,null,null,null,null,null,null,null,null,null,null,null,null,null,null,null,null,"11:00:00"]
[null,null,null,null,null,null,null,null,null,null,null,null,null,null,null,null,null,null,null,null,null,null,null,null,null,null,null,null,null,null,null,null,"11:05:00"]
[null,null,null,null,null,null,null,null,null,null,null,null,null,null,null,null,null,null,null,null,null,null,null,null,null,null,null,null,null,null,null,null,"11:10:00"]
[null,null,null,null,null,null,null,null,null,null,null,null,null,null,null,null,null,null,null,null,null,null,null,null,null,null,null,null,null,null,null,null,"11:15:00"]
[null,null,null,null,null,null,null,null,null,null,null,null,null,null,null,null,null,null,null,null,null,null,null,null,null,null,null,null,null,null,null,null,"11:20:00"]
[null,null,null,null,null,null,null,null,null,null,null,null,null,null,null,null,null,null,null,null,null,null,null,null,null,null,null,null,null,null,null,null,"11:25:00"]
[null,null,null,null,null,null,null,null,null,null,null,null,null,null,null,null,null,null,null,null,null,null,null,null,null,null,null,null,null,null,null,null,"11:30:00"]
[null,null,null,null,null,null,null,null,null,null,null,null,null,null,null,null,null,null,null,null,null,null,null,null,null,null,null,null,null,null,null,null,"11:35:00"]
[null,null,null,null,null,null,null,null,null,null,null,null,null,null,null,null,null,null,null,null,null,null,null,null,null,null,null,null,null,null,null,null,"11:40:00"]
[null,null,null,null,null,null,null,null,null,null,null,null,null,null,null,null,null,null,null,null,null,null,null,null,null,null,null,null,null,null,null,null,"11:45:00"]
[null,null,null,null,null,null,null,null,null,null,null,null,null,null,null,null,null,null,null,null,null,null,null,null,null,null,null,null,null,null,null,null,"11:50:00"]
[null,null,null,null,null,null,null,null,null,null,null,null,null,null,null,null,null,null,null,null,null,null,null,null,null,null,null,null,null,null,null,null,"11:55:00"]
[null,null,null,null,null,null,null,null,null,null,null,null,null,null,null,null,null,null,null,null,null,null,null,null,null,null,null,null,null,null,null,null,"12:00:00"]
[null,null,null,null,null,null,null,null,null,null,null,null,null,null,null,null,null,null,null,null,null,null,null,null,null,null,null,null,null,null,null,null,"12:05:00"]
[null,null,null,null,null,null,null,null,null,null,null,null,null,null,null,null,null,null,null,null,null,null,null,null,null,null,null,null,null,null,null,null,"12:10:00"]
[null,null,null,null,null,null,null,null,null,null,null,null,null,null,null,null,null,null,null,null,null,null,null,null,null,null,null,null,null,null,null,null,"12:15:00"]
[null,null,null,null,null,null,null,null,null,null,null,null,null,null,null,null,null,null,null,null,null,null,null,null,null,null,null,null,null,null,null,null,"12:20:00"]
[null,null,null,null,null,null,null,null,null,null,null,null,null,null,null,null,null,null,null,null,null,null,null,null,null,null,null,null,null,null,null,null,"12:25:00"]
[null,null,null,null,null,null,null,null,null,null,null,null,null,null,null,null,null,null,null,null,null,null,null,null,null,null,null,null,null,null,null,null,"12:30:00"]
[null,null,null,null,null,null,null,null,null,null,null,null,null,null,null,null,null,null,null,null,null,null,null,null,null,null,null,null,null,null,null,null,"12:35:00"]
[null,null,null,null,null,null,null,null,null,null,null,null,null,null,null,null,null,null,null,null,null,null,null,null,null,null,null,null,null,null,null,null,"12:40:00"]
[null,null,null,null,null,null,null,null,null,null,null,null,null,null,null,null,null,null,null,null,null,null,null,null,null,null,null,null,null,null,null,null,"12:45:00"]
[null,null,null,null,null,null,null,null,null,null,null,null,null,null,null,null,null,null,null,null,null,null,null,null,null,null,null,null,null,null,null,null,"12:50:00"]
[null,null,null,null,null,null,null,null,null,null,null,null,null,null,null,null,null,null,null,null,null,null,null,null,null,null,null,null,null,null,null,null,"12:55:00"]
[null,null,null,null,null,null,null,null,null,null,null,null,null,null,null,null,null,null,null,null,null,null,null,null,null,null,null,null,null,null,null,null,"13:00:00"]
[null,null,null,null,null,null,null,null,null,null,null,null,null,null,null,null,null,null,null,null,null,null,null,null,null,null,null,null,null,null,null,null,"13:05:00"]
[null,null,null,null,null,null,null,null,null,null,null,null,null,null,null,null,null,null,null,null,null,null,null,null,null,null,null,null,null,null,null,null,"13:10:00"]
[null,null,null,null,null,null,null,null,null,null,null,null,null,null,null,null,null,null,null,null,null,null,null,null,null,null,null,null,null,null,null,null,"13:15:00"]
[null,null,null,null,null,null,null,null,null,null,null,null,null,null,null,null,null,null,null,null,null,null,null,null,null,null,null,null,null,null,null,null,"13:20:00"]
[null,null,null,null,null,null,null,null,null,null,null,null,null,null,null,null,null,null,null,null,null,null,null,null,null,null,null,null,null,null,null,null,"13:25:00"]
[null,null,null,null,null,null,null,null,null,null,null,null,null,null,null,null,null,null,null,null,null,null,null,null,null,null,null,null,null,null,null,null,"13:30:00"]
[null,null,null,null,null,null,null,null,null,null,null,null,null,null,null,null,null,null,null,null,null,null,null,null,null,null,null,null,null,null,null,null,"13:35:00"]
[null,null,null,null,null,null,null,null,null,null,null,null,null,null,null,null,null,null,null,null,null,null,null,null,null,null,null,null,null,null,null,null,"13:40:00"]
[null,null,null,null,null,null,null,null,null,null,null,null,null,null,null,null,null,null,null,null,null,null,null,null,null,null,null,null,null,null,null,null,"13:45:00"]
[null,null,null,null,null,null,null,null,null,null,null,null,null,null,null,null,null,null,null,null,null,null,null,null,null,null,null,null,null,null,null,null,"13:50:00"]
[null,null,null,null,null,null,null,null,null,null,null,null,null,null,null,null,null,null,null,null,null,null,null,null,null,null,null,null,null,null,null,null,"13:55:00"]
[null,null,null,null,null,null,null,null,null,null,null,null,null,null,null,null,null,null,null,null,null,null,null,null,null,null,null,null,null,null,null,null,"14:00:00"]
[null,null,null,null,null,null,null,null,null,null,null,null,null,null,null,null,null,null,null,null,null,null,null,null,null,null,null,null,null,null,null,null,"14:05:00"]
[null,null,null,null,null,null,null,null,null,null,null,null,null,null,null,null,null,null,null,null,null,null,null,null,null,null,null,null,null,null,null,null,"14:10:00"]
[null,null,null,null,null,null,null,null,null,null,null,null,null,null,null,null,null,null,null,null,null,null,null,null,null,null,null,null,null,null,null,null,"14:15:00"]
[null,null,null,null,null,null,null,null,null,null,null,null,null,null,null,null,null,null,null,null,null,null,null,null,null,null,null,null,null,null,null,null,"14:20:00"]
[null,null,null,null,null,null,null,null,null,null,null,null,null,null,null,null,null,null,null,null,null,null,null,null,null,null,null,null,null,null,null,null,"14:25:00"]
[null,null,null,null,null,null,null,null,null,null,null,null,null,null,null,null,null,null,null,null,null,null,null,null,null,null,null,null,null,null,null,null,"14:30:00"]
[null,null,null,null,null,null,null,null,null,null,null,null,null,null,null,null,null,null,null,null,null,null,null,null,null,null,null,null,null,null,null,null,"14:35:00"]
[null,null,null,null,null,null,null,null,null,null,null,null,null,null,null,null,null,null,null,null,null,null,null,null,null,null,null,null,null,null,null,null,"14:40:00"]
[null,null,null,null,null,null,null,null,null,null,null,null,null,null,null,null,null,null,null,null,null,null,null,null,null,null,null,null,null,null,null,null,"14:45:00"]
[null,null,null,null,null,null,null,null,null,null,null,null,null,null,null,null,null,null,null,null,null,null,null,null,null,null,null,null,null,null,null,null,"14:50:00"]
[null,null,null,null,null,null,null,null,null,null,null,null,null,null,null,null,null,null,null,null,null,null,null,null,null,null,null,null,null,null,null,null,"14:55:00"]
[null,null,null,null,null,null,null,null,null,null,null,null,null,null,null,null,null,null,null,null,null,null,null,null,null,null,null,null,null,null,null,null,"15:00:00"]
[null,null,null,null,null,null,null,null,null,null,null,null,null,null,null,null,null,null,null,null,null,null,null,null,null,null,null,null,null,null,null,null,"15:05:00"]
[null,null,null,null,null,null,null,null,null,null,null,null,null,null,null,null,null,null,null,null,null,null,null,null,null,null,null,null,null,null,null,null,"15:10:00"]
[null,null,null,null,null,null,null,null,null,null,null,null,null,null,null,null,null,null,null,null,null,null,null,null,null,null,null,null,null,null,null,null,"15:15:00"]
[null,null,null,null,null,null,null,null,null,null,null,null,null,null,null,null,null,null,null,null,null,null,null,null,null,null,null,null,null,null,null,null,"15:20:00"]
[null,null,null,null,null,null,null,null,null,null,null,null,null,null,null,null,null,null,null,null,null,null,null,null,null,null,null,null,null,null,null,null,"15:25:00"]
[null,null,null,null,null,null,null,null,null,null,null,null,null,null,null,null,null,null,null,null,null,null,null,null,null,null,null,null,null,null,null,null,"15:30:00"]
[null,null,null,null,null,null,null,null,null,null,null,null,null,null,null,null,null,null,null,null,null,null,null,null,null,null,null,null,null,null,null,null,"15:35:00"]
[null,null,null,null,null,null,null,null,null,null,null,null,null,null,null,null,null,null,null,null,null,null,null,null,null,null,null,null,null,null,null,null,"15:40:00"]
[null,null,null,null,null,null,null,null,null,null,null,null,null,null,null,null,null,null,null,null,null,null,null,null,null,null,null,null,null,null,null,null,"15:45:00"]
[null,null,null,null,null,null,null,null,null,null,null,null,null,null,null,null,null,null,null,null,null,null,null,null,null,null,null,null,null,null,null,null,"15:50:00"]
[null,null,null,null,null,null,null,null,null,null,null,null,null,null,null,null,null,null,null,null,null,null,null,null,null,null,null,null,null,null,null,null,"15:55:00"]
[null,null,null,null,null,null,null,null,null,null,null,null,null,null,null,null,null,null,null,null,null,null,null,null,null,null,null,null,null,null,null,null,"16:00:00"]
[null,null,null,null,null,null,null,null,null,null,null,null,null,null,null,null,null,null,null,null,null,null,null,null,null,null,null,null,null,null,null,null,"16:05:00"]
[null,null,null,null,null,null,null,null,null,null,null,null,null,null,null,null,null,null,null,null,null,null,null,null,null,null,null,null,null,null,null,null,"16:10:00"]
[null,null,null,null,null,null,null,null,null,null,null,null,null,null,null,null,null,null,null,null,null,null,null,null,null,null,null,null,null,null,null,null,"16:15:00"]
[null,null,null,null,null,null,null,null,null,null,null,null,null,null,null,null,null,null,null,null,null,null,null,null,null,null,null,null,null,null,null,null,"16:20:00"]
[null,null,null,null,null,null,null,null,null,null,null,null,null,null,null,null,null,null,null,null,null,null,null,null,null,null,null,null,null,null,null,null,"16:25:00"]
[null,null,null,null,null,null,null,null,null,null,null,null,null,null,null,null,null,null,null,null,null,null,null,null,null,null,null,null,null,null,null,null,"16:30:00"]
[null,null,null,null,null,null,null,null,null,null,null,null,null,null,null,null,null,null,null,null,null,null,null,null,null,null,null,null,null,null,null,null,"16:35:00"]
[null,null,null,null,null,null,null,null,null,null,null,null,null,null,null,null,null,null,null,null,null,null,null,null,null,null,null,null,null,null,null,null,"16:40:00"]
[null,null,null,null,null,null,null,null,null,null,null,null,null,null,null,null,null,null,null,null,null,null,null,null,null,null,null,null,null,null,null,null,"16:45:00"]
[null,null,null,null,null,null,null,null,null,null,null,null,null,null,null,null,null,null,null,null,null,null,null,null,null,null,null,null,null,null,null,null,"16:50:00"]
[null,null,null,null,null,null,null,null,null,null,null,null,null,null,null,null,null,null,null,null,null,null,null,null,null,null,null,null,null,null,null,null,"16:55:00"]
[null,null,null,null,null,null,null,null,null,null,null,null,null,null,null,null,null,null,null,null,null,null,null,null,null,null,null,null,null,null,null,null,"17:00:00"]
[null,null,null,null,null,null,null,null,null,null,null,null,null,null,null,null,null,null,null,null,null,null,null,null,null,null,null,null,null,null,null,null,"17:05:00"]
[null,null,null,null,null,null,null,null,null,null,null,null,null,null,null,null,null,null,null,null,null,null,null,null,null,null,null,null,null,null,null,null,"17:10:00"]
[null,null,null,null,null,null,null,null,null,null,null,null,null,null,null,null,null,null,null,null,null,null,null,null,null,null,null,null,null,null,null,null,"17:15:00"]
[null,null,null,null,null,null,null,null,null,null,null,null,null,null,null,null,null,null,null,null,null,null,null,null,null,null,null,null,null,null,null,null,"17:20:00"]
[null,null,null,null,null,null,null,null,null,null,null,null,null,null,null,null,null,null,null,null,null,null,null,null,null,null,null,null,null,null,null,null,"17:25:00"]
[null,null,null,null,null,null,null,null,null,null,null,null,null,null,null,null,null,null,null,null,null,null,null,null,null,null,null,null,null,null,null,null,"17:30:00"]
[null,null,null,null,null,null,null,null,null,null,null,null,null,null,null,null,null,null,null,null,null,null,null,null,null,null,null,null,null,null,null,null,"17:35:00"]
[null,null,null,null,null,null,null,null,null,null,null,null,null,null,null,null,null,null,null,null,null,null,null,null,null,null,null,null,null,null,null,null,"17:40:00"]
[null,null,null,null,null,null,null,null,null,null,null,null,null,null,null,null,null,null,null,null,null,null,null,null,null,null,null,null,null,null,null,null,"17:45:00"]
[null,null,null,null,null,null,null,null,null,null,null,null,null,null,null,null,null,null,null,null,null,null,null,null,null,null,null,null,null,null,null,null,"17:50:00"]
[null,null,null,null,null,null,null,null,null,null,null,null,null,null,null,null,null,null,null,null,null,null,null,null,null,null,null,null,null,null,null,null,"17:55:00"]
[null,null,null,null,null,null,null,null,null,null,null,null,null,null,null,null,null,null,null,null,null,null,null,null,null,null,null,null,null,null,null,null,"18:00:00"]
[null,null,null,null,null,null,null,null,null,null,null,null,null,null,null,null,null,null,null,null,null,null,null,null,null,null,null,null,null,null,null,null,"18:05:00"]
[null,null,null,null,null,null,null,null,null,null,null,null,null,null,null,null,null,null,null,null,null,null,null,null,null,null,null,null,null,null,null,null,"18:10:00"]
[null,null,null,null,null,null,null,null,null,null,null,null,null,null,null,null,null,null,null,null,null,null,null,null,null,null,null,null,null,null,null,null,"18:15:00"]
[null,null,null,null,null,null,null,null,null,null,null,null,null,null,null,null,null,null,null,null,null,null,null,null,null,null,null,null,null,null,null,null,"18:20:00"]
[null,null,null,null,null,null,null,null,null,null,null,null,null,null,null,null,null,null,null,null,null,null,null,null,null,null,null,null,null,null,null,null,"18:25:00"]
[null,null,null,null,null,null,null,null,null,null,null,null,null,null,null,null,null,null,null,null,null,null,null,null,null,null,null,null,null,null,null,null,"18:30:00"]
[null,null,null,null,null,null,null,null,null,null,null,null,null,null,null,null,null,null,null,null,null,null,null,null,null,null,null,null,null,null,null,null,"18:35:00"]
[null,null,null,null,null,null,null,null,null,null,null,null,null,null,null,null,null,null,null,null,null,null,null,null,null,null,null,null,null,null,null,null,"18:40:00"]
[null,null,null,null,null,null,null,null,null,null,null,null,null,null,null,null,null,null,null,null,null,null,null,null,null,null,null,null,null,null,null,null,"18:45:00"]
[null,null,null,null,null,null,null,null,null,null,null,null,null,null,null,null,null,null,null,null,null,null,null,null,null,null,null,null,null,null,null,null,"18:50:00"]
[null,null,null,null,null,null,null,null,null,null,null,null,null,null,null,null,null,null,null,null,null,null,null,null,null,null,null,null,null,null,null,null,"18:55:00"]
[null,null,null,null,null,null,null,null,null,null,null,null,null,null,null,null,null,null,null,null,null,null,null,null,null,null,null,null,null,null,null,null,"19:00:00"]

{"sheet":"シート2-②-5","index":8,"n_rows":147,"n_cols":41,"rows_kept":147,"cut":false,"hidden":false,"merged":[[31,1,31,28],[24,2,24,14],[24,15,24,17],[24,18,24,20],[24,21,24,23],[24,24,24,28],[27,15,27,17],[27,18,27,20],[27,21,27,23],[27,24,27,28],[25,2,25,14],[25,15,25,17],[25,18,25,20],[25,21,25,23],[25,24,25,28],[12,24,13,28],[13,4,13,20],[23,2,23,14],[23,15,23,17],[23,18,23,20],[12,21,13,23],[17,18,17,20],[23,24,23,28],[15,18,16,20],[19,18,19,20],[23,21,23,23],[19,21,19,23],[18,15,18,17],[10,17,10,20],[9,1,10,2],[9,4,9,8],[9,9,10,10],[9,12,9,15],[9,17,9,20],[17,15,17,17],[19,15,19,17],[18,18,18,20],[18,21,18,23],[2,1,2,28],[5,1,5,2],[5,3,5,28],[6,1,6,2],[6,3,6,28],[9,21,10,23],[9,24,10,28],[12,1,13,2],[12,4,12,20],[17,21,17,23],[10,4,10,8],[10,12,10,15],[30,1,30,28],[17,24,17,28],[15,33,16,33],[15,34,15,35],[15,36,15,37],[17,34,17,35],[21,21,21,23],[20,15,20,17],[20,18,20,20],[20,21,20,23],[18,2,18,14],[19,2,19,14],[15,21,16,23],[15,1,16,14],[15,15,16,17],[17,1,17,14],[15,38,15,39],[22,24,22,28],[20,24,20,28],[21,24,21,28],[18,24,18,28],[19,24,19,28],[15,24,16,28],[17,36,17,37],[17,38,17,39],[20,2,20,14],[21,2,21,14],[22,2,22,14],[21,15,21,17],[21,18,21,20],[22,15,22,17],[22,18,22,20],[22,21,22,23],[27,2,27,14],[28,2,28,14],[28,15,28,17],[28,18,28,20],[28,21,28,23],[28,24,28,28],[26,2,26,14],[26,15,26,17],[26,18,26,20],[26,21,26,23],[26,24,26,28]]}
[null,"研修記録シート2（評価）"]
[]
[null,"この振り返りシートは、科目の受講前後で各自の理解度を把握し、受講中の学習効果の向上と、受講後の学習のポイントを焦点化し、継続的な資質向上に役立てるものです。本科目を学習した時点で感じた事を書き留め、今後の学習方針や課題への取り組みを考える際に見返してみましょう。"]
[]
[]
[null,"研修名：",null,"専門研修Ⅱ",null,null,null,null,null,null,null,null,null,null,null,null,null,null,null,null,null,null,null,null,null,null,null,null,null,null,null,null,null,null,null,null,null,null,null,null,"このボタンをクリックするとTOPページへ移動します。"]
[null,"科目名：",null,"②-5ケアマネジメントにおける実践事例の研究及び発表「家族への支援の視点が必要な事例」"]
[]
[]
[null,"受講日",null,1,null,null,null,null,null,"時間",null,1,null,null,null,null,"～",null,null,null,null,"氏名",null,null,{"$f":"IF(ISBLANK(シート1!N7),\"\",シート1!N7)","v":""}]
[null,null,null,2,null,null,null,null,null,null,null,2,null,null,null,null,"～"]
[]
[null,"会場",null,1,null,null,null,null,null,null,null,null,null,null,null,null,null,null,null,null,null,"番号",null,null,{"$f":"IF(ISBLANK(シート1!N9),\"\",シート1!N9)","v":""}]
[null,null,null,2]
[]
[null,"項　　目 ",null,null,null,null,null,null,null,null,null,null,null,null,null,"受講前 ",null,null,"受講\n直後",null,null,"実践\n評価\n(3ヶ月後）",null,null,"備　　考 ",null,null,null,null,null,null,"リスト（課程区分）","リスト（時間）",null,"受講前",null,"受講後 ",null,"実践評価"]
[null,null,null,null,null,null,null,null,null,null,null,null,null,null,null,null,null,null,null,null,null,null,null,null,null,null,null,null,null,null,null,null,"リストから選択",null,"理解度","習得度","理解度","習得度","理解度","習得度"]
[null,"記入日（入力日）",null,null,null,null,null,null,null,null,null,null,null,null,null,null,null,null,null,null,null,null,null,null,null,null,null,null,null,null,null,"リスト（課程区分）","リスト（時間）",null,"受講前",null,"受講後 ",null,"実践評価"]
[null,"① ","家族支援が特に必要なケースの居宅サービス計画等の実践事例について意見交換を通して分析し評価できる。",null,null,null,null,null,null,null,null,null,null,null,null,null,null,null,null,null,null,null,null,null,null,null,null,null,null,null,null,"Ⅰ","08:00:00"]
[null,"② ","分析し評価した内容を受講者間で共有し、アセスメントや居宅サービス計画等の作成における留意点を判断できる。",null,null,null,null,null,null,null,null,null,null,null,null,null,null,null,null,null,null,null,null,null,null,null,null,null,null,null,null,"Ⅱ","08:05:00",4,"4．理解している ","-","4．非常に理解が深まった ","4．習得できた ","4．非常に理解が深まった","4．習得度が上がった "]
[null,"③ ","各種統計データを活用する等により、別の類似の事例等への応用を実施できる。",null,null,null,null,null,null,null,null,null,null,null,null,null,null,null,null,null,null,null,null,null,null,null,null,null,null,null,null,null,"08:10:00",3,"3．概ね理解している ","-","3．理解が深まった ","3．概ね習得できた ","3．理解が深まった","3．まあまあ習得度が上がった "]
[null,"④ ","地域の各種統計データ必要に応じて活用することにより、他の事例へも応用できる。",null,null,null,null,null,null,null,null,null,null,null,null,null,null,null,null,null,null,null,null,null,null,null,null,null,null,null,null,null,"08:15:00",2,"2．あまり理解していない ","-","2．あまり理解が進まなかった ","2．あまり習得できていない ","2．あまり理解度は変わらない ","2．習得度は変わらない "]
[null,"⑤ ","家族に対する支援にあたり、重要となる各種知識や関係機関、地域住民をはじめとする多職種との連携方法への応用を実施できる。",null,null,null,null,null,null,null,null,null,null,null,null,null,null,null,null,null,null,null,null,null,null,null,null,null,null,null,null,null,"08:20:00",1,"1．全く理解していない ","-","1．理解が進まなかった ","1．習得できていない ","1．理解度は変わらない。 ","1．理解度が深まり、習得度が後退した "]
[null,"⑥","地域の社会資源（インフォーマルサービス等）を活用したケアマネジメントを実施できる。",null,null,null,null,null,null,null,null,null,null,null,null,null,null,null,null,null,null,null,null,null,null,null,null,null,null,null,null,null,"08:35:00"]
[null,null,null,null,null,null,null,null,null,null,null,null,null,null,null,null,null,null,null,null,null,null,null,null,null,null,null,null,null,null,null,null,"08:50:00"]
[null,null,null,null,null,null,null,null,null,null,null,null,null,null,null,null,null,null,null,null,null,null,null,null,null,null,null,null,null,null,null,null,"08:55:00"]
[null,null,null,null,null,null,null,null,null,null,null,null,null,null,null,null,null,null,null,null,null,null,null,null,null,null,null,null,null,null,null,null,"09:00:00"]
[null,null,null,null,null,null,null,null,null,null,null,null,null,null,null,null,null,null,null,null,null,null,null,null,null,null,null,null,null,null,null,null,"09:05:00"]
[null,null,null,null,null,null,null,null,null,null,null,null,null,null,null,null,null,null,null,null,null,null,null,null,null,null,null,null,null,null,null,null,"09:10:00"]
[null,null,null,null,null,null,null,null,null,null,null,null,null,null,null,null,null,null,null,null,null,null,null,null,null,null,null,null,null,null,null,null,"09:15:00"]
[null,"　※研修は自己評価とし、4段階評価で、数字が大きいほど高評価、数字が小さいほど低評価として記入してください。",null,null,null,null,null,null,null,null,null,null,null,null,null,null,null,null,null,null,null,null,null,null,null,null,null,null,null,null,null,null,"09:20:00"]
[null,"　　【選択肢】　　　4.　できる　　　　　3.　概ねできる　　　　　2.　ほとんどできない　　　　1.　全くできない",null,null,null,null,null,null,null,null,null,null,null,null,null,null,null,null,null,null,null,null,null,null,null,null,null,null,null,null,null,null,"09:25:00"]
[null,null,null,null,null,null,null,null,null,null,null,null,null,null,null,null,null,null,null,null,null,null,null,null,null,null,null,null,null,null,null,null,"09:30:00"]
[null,null,null,null,null,null,null,null,null,null,null,null,null,null,null,null,null,null,null,null,null,null,null,null,null,null,null,null,null,null,null,null,"09:35:00"]
[null,null,null,null,null,null,null,null,null,null,null,null,null,null,null,null,null,null,null,null,null,null,null,null,null,null,null,null,null,null,null,null,"09:40:00"]
[null,null,null,null,null,null,null,null,null,null,null,null,null,null,null,null,null,null,null,null,null,null,null,null,null,null,null,null,null,null,null,null,"09:45:00"]
[null,null,null,null,null,null,null,null,null,null,null,null,null,null,null,null,null,null,null,null,null,null,null,null,null,null,null,null,null,null,null,null,"09:50:00"]
[null,null,null,null,null,null,null,null,null,null,null,null,null,null,null,null,null,null,null,null,null,null,null,null,null,null,null,null,null,null,null,null,"09:55:00"]
[null,null,null,null,null,null,null,null,null,null,null,null,null,null,null,null,null,null,null,null,null,null,null,null,null,null,null,null,null,null,null,null,"10:00:00"]
[null,null,null,null,null,null,null,null,null,null,null,null,null,null,null,null,null,null,null,null,null,null,null,null,null,null,null,null,null,null,null,null,"10:05:00"]
[null,null,null,null,null,null,null,null,null,null,null,null,null,null,null,null,null,null,null,null,null,null,null,null,null,null,null,null,null,null,null,null,"10:10:00"]
[null,null,null,null,null,null,null,null,null,null,null,null,null,null,null,null,null,null,null,null,null,null,null,null,null,null,null,null,null,null,null,null,"10:15:00"]
[null,null,null,null,null,null,null,null,null,null,null,null,null,null,null,null,null,null,null,null,null,null,null,null,null,null,null,null,null,null,null,null,"10:20:00"]
[null,null,null,null,null,null,null,null,null,null,null,null,null,null,null,null,null,null,null,null,null,null,null,null,null,null,null,null,null,null,null,null,"10:25:00"]
[null,null,null,null,null,null,null,null,null,null,null,null,null,null,null,null,null,null,null,null,null,null,null,null,null,null,null,null,null,null,null,null,"10:30:00"]
[null,null,null,null,null,null,null,null,null,null,null,null,null,null,null,null,null,null,null,null,null,null,null,null,null,null,null,null,null,null,null,null,"10:35:00"]
[null,null,null,null,null,null,null,null,null,null,null,null,null,null,null,null,null,null,null,null,null,null,null,null,null,null,null,null,null,null,null,null,"10:40:00"]
[null,null,null,null,null,null,null,null,null,null,null,null,null,null,null,null,null,null,null,null,null,null,null,null,null,null,null,null,null,null,null,null,"10:45:00"]
[null,null,null,null,null,null,null,null,null,null,null,null,null,null,null,null,null,null,null,null,null,null,null,null,null,null,null,null,null,null,null,null,"10:50:00"]
[null,null,null,null,null,null,null,null,null,null,null,null,null,null,null,null,null,null,null,null,null,null,null,null,null,null,null,null,null,null,null,null,"10:55:00"]
[null,null,null,null,null,null,null,null,null,null,null,null,null,null,null,null,null,null,null,null,null,null,null,null,null,null,null,null,null,null,null,null,"11:00:00"]
[null,null,null,null,null,null,null,null,null,null,null,null,null,null,null,null,null,null,null,null,null,null,null,null,null,null,null,null,null,null,null,null,"11:05:00"]
[null,null,null,null,null,null,null,null,null,null,null,null,null,null,null,null,null,null,null,null,null,null,null,null,null,null,null,null,null,null,null,null,"11:10:00"]
[null,null,null,null,null,null,null,null,null,null,null,null,null,null,null,null,null,null,null,null,null,null,null,null,null,null,null,null,null,null,null,null,"11:15:00"]
[null,null,null,null,null,null,null,null,null,null,null,null,null,null,null,null,null,null,null,null,null,null,null,null,null,null,null,null,null,null,null,null,"11:20:00"]
[null,null,null,null,null,null,null,null,null,null,null,null,null,null,null,null,null,null,null,null,null,null,null,null,null,null,null,null,null,null,null,null,"11:25:00"]
[null,null,null,null,null,null,null,null,null,null,null,null,null,null,null,null,null,null,null,null,null,null,null,null,null,null,null,null,null,null,null,null,"11:30:00"]
[null,null,null,null,null,null,null,null,null,null,null,null,null,null,null,null,null,null,null,null,null,null,null,null,null,null,null,null,null,null,null,null,"11:35:00"]
[null,null,null,null,null,null,null,null,null,null,null,null,null,null,null,null,null,null,null,null,null,null,null,null,null,null,null,null,null,null,null,null,"11:40:00"]
[null,null,null,null,null,null,null,null,null,null,null,null,null,null,null,null,null,null,null,null,null,null,null,null,null,null,null,null,null,null,null,null,"11:45:00"]
[null,null,null,null,null,null,null,null,null,null,null,null,null,null,null,null,null,null,null,null,null,null,null,null,null,null,null,null,null,null,null,null,"11:50:00"]
[null,null,null,null,null,null,null,null,null,null,null,null,null,null,null,null,null,null,null,null,null,null,null,null,null,null,null,null,null,null,null,null,"11:55:00"]
[null,null,null,null,null,null,null,null,null,null,null,null,null,null,null,null,null,null,null,null,null,null,null,null,null,null,null,null,null,null,null,null,"12:00:00"]
[null,null,null,null,null,null,null,null,null,null,null,null,null,null,null,null,null,null,null,null,null,null,null,null,null,null,null,null,null,null,null,null,"12:05:00"]
[null,null,null,null,null,null,null,null,null,null,null,null,null,null,null,null,null,null,null,null,null,null,null,null,null,null,null,null,null,null,null,null,"12:10:00"]
[null,null,null,null,null,null,null,null,null,null,null,null,null,null,null,null,null,null,null,null,null,null,null,null,null,null,null,null,null,null,null,null,"12:15:00"]
[null,null,null,null,null,null,null,null,null,null,null,null,null,null,null,null,null,null,null,null,null,null,null,null,null,null,null,null,null,null,null,null,"12:20:00"]
[null,null,null,null,null,null,null,null,null,null,null,null,null,null,null,null,null,null,null,null,null,null,null,null,null,null,null,null,null,null,null,null,"12:25:00"]
[null,null,null,null,null,null,null,null,null,null,null,null,null,null,null,null,null,null,null,null,null,null,null,null,null,null,null,null,null,null,null,null,"12:30:00"]
[null,null,null,null,null,null,null,null,null,null,null,null,null,null,null,null,null,null,null,null,null,null,null,null,null,null,null,null,null,null,null,null,"12:35:00"]
[null,null,null,null,null,null,null,null,null,null,null,null,null,null,null,null,null,null,null,null,null,null,null,null,null,null,null,null,null,null,null,null,"12:40:00"]
[null,null,null,null,null,null,null,null,null,null,null,null,null,null,null,null,null,null,null,null,null,null,null,null,null,null,null,null,null,null,null,null,"12:45:00"]
[null,null,null,null,null,null,null,null,null,null,null,null,null,null,null,null,null,null,null,null,null,null,null,null,null,null,null,null,null,null,null,null,"12:50:00"]
[null,null,null,null,null,null,null,null,null,null,null,null,null,null,null,null,null,null,null,null,null,null,null,null,null,null,null,null,null,null,null,null,"12:55:00"]
[null,null,null,null,null,null,null,null,null,null,null,null,null,null,null,null,null,null,null,null,null,null,null,null,null,null,null,null,null,null,null,null,"13:00:00"]
[null,null,null,null,null,null,null,null,null,null,null,null,null,null,null,null,null,null,null,null,null,null,null,null,null,null,null,null,null,null,null,null,"13:05:00"]
[null,null,null,null,null,null,null,null,null,null,null,null,null,null,null,null,null,null,null,null,null,null,null,null,null,null,null,null,null,null,null,null,"13:10:00"]
[null,null,null,null,null,null,null,null,null,null,null,null,null,null,null,null,null,null,null,null,null,null,null,null,null,null,null,null,null,null,null,null,"13:15:00"]
[null,null,null,null,null,null,null,null,null,null,null,null,null,null,null,null,null,null,null,null,null,null,null,null,null,null,null,null,null,null,null,null,"13:20:00"]
[null,null,null,null,null,null,null,null,null,null,null,null,null,null,null,null,null,null,null,null,null,null,null,null,null,null,null,null,null,null,null,null,"13:25:00"]
[null,null,null,null,null,null,null,null,null,null,null,null,null,null,null,null,null,null,null,null,null,null,null,null,null,null,null,null,null,null,null,null,"13:30:00"]
[null,null,null,null,null,null,null,null,null,null,null,null,null,null,null,null,null,null,null,null,null,null,null,null,null,null,null,null,null,null,null,null,"13:35:00"]
[null,null,null,null,null,null,null,null,null,null,null,null,null,null,null,null,null,null,null,null,null,null,null,null,null,null,null,null,null,null,null,null,"13:40:00"]
[null,null,null,null,null,null,null,null,null,null,null,null,null,null,null,null,null,null,null,null,null,null,null,null,null,null,null,null,null,null,null,null,"13:45:00"]
[null,null,null,null,null,null,null,null,null,null,null,null,null,null,null,null,null,null,null,null,null,null,null,null,null,null,null,null,null,null,null,null,"13:50:00"]
[null,null,null,null,null,null,null,null,null,null,null,null,null,null,null,null,null,null,null,null,null,null,null,null,null,null,null,null,null,null,null,null,"13:55:00"]
[null,null,null,null,null,null,null,null,null,null,null,null,null,null,null,null,null,null,null,null,null,null,null,null,null,null,null,null,null,null,null,null,"14:00:00"]
[null,null,null,null,null,null,null,null,null,null,null,null,null,null,null,null,null,null,null,null,null,null,null,null,null,null,null,null,null,null,null,null,"14:05:00"]
[null,null,null,null,null,null,null,null,null,null,null,null,null,null,null,null,null,null,null,null,null,null,null,null,null,null,null,null,null,null,null,null,"14:10:00"]
[null,null,null,null,null,null,null,null,null,null,null,null,null,null,null,null,null,null,null,null,null,null,null,null,null,null,null,null,null,null,null,null,"14:15:00"]
[null,null,null,null,null,null,null,null,null,null,null,null,null,null,null,null,null,null,null,null,null,null,null,null,null,null,null,null,null,null,null,null,"14:20:00"]
[null,null,null,null,null,null,null,null,null,null,null,null,null,null,null,null,null,null,null,null,null,null,null,null,null,null,null,null,null,null,null,null,"14:25:00"]
[null,null,null,null,null,null,null,null,null,null,null,null,null,null,null,null,null,null,null,null,null,null,null,null,null,null,null,null,null,null,null,null,"14:30:00"]
[null,null,null,null,null,null,null,null,null,null,null,null,null,null,null,null,null,null,null,null,null,null,null,null,null,null,null,null,null,null,null,null,"14:35:00"]
[null,null,null,null,null,null,null,null,null,null,null,null,null,null,null,null,null,null,null,null,null,null,null,null,null,null,null,null,null,null,null,null,"14:40:00"]
[null,null,null,null,null,null,null,null,null,null,null,null,null,null,null,null,null,null,null,null,null,null,null,null,null,null,null,null,null,null,null,null,"14:45:00"]
[null,null,null,null,null,null,null,null,null,null,null,null,null,null,null,null,null,null,null,null,null,null,null,null,null,null,null,null,null,null,null,null,"14:50:00"]
[null,null,null,null,null,null,null,null,null,null,null,null,null,null,null,null,null,null,null,null,null,null,null,null,null,null,null,null,null,null,null,null,"14:55:00"]
[null,null,null,null,null,null,null,null,null,null,null,null,null,null,null,null,null,null,null,null,null,null,null,null,null,null,null,null,null,null,null,null,"15:00:00"]
[null,null,null,null,null,null,null,null,null,null,null,null,null,null,null,null,null,null,null,null,null,null,null,null,null,null,null,null,null,null,null,null,"15:05:00"]
[null,null,null,null,null,null,null,null,null,null,null,null,null,null,null,null,null,null,null,null,null,null,null,null,null,null,null,null,null,null,null,null,"15:10:00"]
[null,null,null,null,null,null,null,null,null,null,null,null,null,null,null,null,null,null,null,null,null,null,null,null,null,null,null,null,null,null,null,null,"15:15:00"]
[null,null,null,null,null,null,null,null,null,null,null,null,null,null,null,null,null,null,null,null,null,null,null,null,null,null,null,null,null,null,null,null,"15:20:00"]
[null,null,null,null,null,null,null,null,null,null,null,null,null,null,null,null,null,null,null,null,null,null,null,null,null,null,null,null,null,null,null,null,"15:25:00"]
[null,null,null,null,null,null,null,null,null,null,null,null,null,null,null,null,null,null,null,null,null,null,null,null,null,null,null,null,null,null,null,null,"15:30:00"]
[null,null,null,null,null,null,null,null,null,null,null,null,null,null,null,null,null,null,null,null,null,null,null,null,null,null,null,null,null,null,null,null,"15:35:00"]
[null,null,null,null,null,null,null,null,null,null,null,null,null,null,null,null,null,null,null,null,null,null,null,null,null,null,null,null,null,null,null,null,"15:40:00"]
[null,null,null,null,null,null,null,null,null,null,null,null,null,null,null,null,null,null,null,null,null,null,null,null,null,null,null,null,null,null,null,null,"15:45:00"]
[null,null,null,null,null,null,null,null,null,null,null,null,null,null,null,null,null,null,null,null,null,null,null,null,null,null,null,null,null,null,null,null,"15:50:00"]
[null,null,null,null,null,null,null,null,null,null,null,null,null,null,null,null,null,null,null,null,null,null,null,null,null,null,null,null,null,null,null,null,"15:55:00"]
[null,null,null,null,null,null,null,null,null,null,null,null,null,null,null,null,null,null,null,null,null,null,null,null,null,null,null,null,null,null,null,null,"16:00:00"]
[null,null,null,null,null,null,null,null,null,null,null,null,null,null,null,null,null,null,null,null,null,null,null,null,null,null,null,null,null,null,null,null,"16:05:00"]
[null,null,null,null,null,null,null,null,null,null,null,null,null,null,null,null,null,null,null,null,null,null,null,null,null,null,null,null,null,null,null,null,"16:10:00"]
[null,null,null,null,null,null,null,null,null,null,null,null,null,null,null,null,null,null,null,null,null,null,null,null,null,null,null,null,null,null,null,null,"16:15:00"]
[null,null,null,null,null,null,null,null,null,null,null,null,null,null,null,null,null,null,null,null,null,null,null,null,null,null,null,null,null,null,null,null,"16:20:00"]
[null,null,null,null,null,null,null,null,null,null,null,null,null,null,null,null,null,null,null,null,null,null,null,null,null,null,null,null,null,null,null,null,"16:25:00"]
[null,null,null,null,null,null,null,null,null,null,null,null,null,null,null,null,null,null,null,null,null,null,null,null,null,null,null,null,null,null,null,null,"16:30:00"]
[null,null,null,null,null,null,null,null,null,null,null,null,null,null,null,null,null,null,null,null,null,null,null,null,null,null,null,null,null,null,null,null,"16:35:00"]
[null,null,null,null,null,null,null,null,null,null,null,null,null,null,null,null,null,null,null,null,null,null,null,null,null,null,null,null,null,null,null,null,"16:40:00"]
[null,null,null,null,null,null,null,null,null,null,null,null,null,null,null,null,null,null,null,null,null,null,null,null,null,null,null,null,null,null,null,null,"16:45:00"]
[null,null,null,null,null,null,null,null,null,null,null,null,null,null,null,null,null,null,null,null,null,null,null,null,null,null,null,null,null,null,null,null,"16:50:00"]
[null,null,null,null,null,null,null,null,null,null,null,null,null,null,null,null,null,null,null,null,null,null,null,null,null,null,null,null,null,null,null,null,"16:55:00"]
[null,null,null,null,null,null,null,null,null,null,null,null,null,null,null,null,null,null,null,null,null,null,null,null,null,null,null,null,null,null,null,null,"17:00:00"]
[null,null,null,null,null,null,null,null,null,null,null,null,null,null,null,null,null,null,null,null,null,null,null,null,null,null,null,null,null,null,null,null,"17:05:00"]
[null,null,null,null,null,null,null,null,null,null,null,null,null,null,null,null,null,null,null,null,null,null,null,null,null,null,null,null,null,null,null,null,"17:10:00"]
[null,null,null,null,null,null,null,null,null,null,null,null,null,null,null,null,null,null,null,null,null,null,null,null,null,null,null,null,null,null,null,null,"17:15:00"]
[null,null,null,null,null,null,null,null,null,null,null,null,null,null,null,null,null,null,null,null,null,null,null,null,null,null,null,null,null,null,null,null,"17:20:00"]
[null,null,null,null,null,null,null,null,null,null,null,null,null,null,null,null,null,null,null,null,null,null,null,null,null,null,null,null,null,null,null,null,"17:25:00"]
[null,null,null,null,null,null,null,null,null,null,null,null,null,null,null,null,null,null,null,null,null,null,null,null,null,null,null,null,null,null,null,null,"17:30:00"]
[null,null,null,null,null,null,null,null,null,null,null,null,null,null,null,null,null,null,null,null,null,null,null,null,null,null,null,null,null,null,null,null,"17:35:00"]
[null,null,null,null,null,null,null,null,null,null,null,null,null,null,null,null,null,null,null,null,null,null,null,null,null,null,null,null,null,null,null,null,"17:40:00"]
[null,null,null,null,null,null,null,null,null,null,null,null,null,null,null,null,null,null,null,null,null,null,null,null,null,null,null,null,null,null,null,null,"17:45:00"]
[null,null,null,null,null,null,null,null,null,null,null,null,null,null,null,null,null,null,null,null,null,null,null,null,null,null,null,null,null,null,null,null,"17:50:00"]
[null,null,null,null,null,null,null,null,null,null,null,null,null,null,null,null,null,null,null,null,null,null,null,null,null,null,null,null,null,null,null,null,"17:55:00"]
[null,null,null,null,null,null,null,null,null,null,null,null,null,null,null,null,null,null,null,null,null,null,null,null,null,null,null,null,null,null,null,null,"18:00:00"]
[null,null,null,null,null,null,null,null,null,null,null,null,null,null,null,null,null,null,null,null,null,null,null,null,null,null,null,null,null,null,null,null,"18:05:00"]
[null,null,null,null,null,null,null,null,null,null,null,null,null,null,null,null,null,null,null,null,null,null,null,null,null,null,null,null,null,null,null,null,"18:10:00"]
[null,null,null,null,null,null,null,null,null,null,null,null,null,null,null,null,null,null,null,null,null,null,null,null,null,null,null,null,null,null,null,null,"18:15:00"]
[null,null,null,null,null,null,null,null,null,null,null,null,null,null,null,null,null,null,null,null,null,null,null,null,null,null,null,null,null,null,null,null,"18:20:00"]
[null,null,null,null,null,null,null,null,null,null,null,null,null,null,null,null,null,null,null,null,null,null,null,null,null,null,null,null,null,null,null,null,"18:25:00"]
[null,null,null,null,null,null,null,null,null,null,null,null,null,null,null,null,null,null,null,null,null,null,null,null,null,null,null,null,null,null,null,null,"18:30:00"]
[null,null,null,null,null,null,null,null,null,null,null,null,null,null,null,null,null,null,null,null,null,null,null,null,null,null,null,null,null,null,null,null,"18:35:00"]
[null,null,null,null,null,null,null,null,null,null,null,null,null,null,null,null,null,null,null,null,null,null,null,null,null,null,null,null,null,null,null,null,"18:40:00"]
[null,null,null,null,null,null,null,null,null,null,null,null,null,null,null,null,null,null,null,null,null,null,null,null,null,null,null,null,null,null,null,null,"18:45:00"]
[null,null,null,null,null,null,null,null,null,null,null,null,null,null,null,null,null,null,null,null,null,null,null,null,null,null,null,null,null,null,null,null,"18:50:00"]
[null,null,null,null,null,null,null,null,null,null,null,null,null,null,null,null,null,null,null,null,null,null,null,null,null,null,null,null,null,null,null,null,"18:55:00"]
[null,null,null,null,null,null,null,null,null,null,null,null,null,null,null,null,null,null,null,null,null,null,null,null,null,null,null,null,null,null,null,null,"19:00:00"]

{"sheet":"シート2-②-6","index":9,"n_rows":145,"n_cols":41,"rows_kept":145,"cut":false,"hidden":false,"merged":[[9,1,10,2],[9,17,9,20],[12,24,13,28],[29,1,29,28],[30,1,30,28],[12,1,13,2],[12,4,12,20],[12,21,13,23],[13,4,13,20],[9,21,10,23],[9,24,10,28],[10,17,10,20],[17,18,17,20],[9,4,9,8],[9,9,10,10],[9,12,9,15],[10,4,10,8],[10,12,10,15],[18,18,18,20],[18,2,18,14],[15,18,16,20],[19,2,19,14],[19,15,19,17],[15,1,16,14],[15,15,16,17],[17,1,17,14],[17,15,17,17],[18,15,18,17],[2,1,2,28],[5,1,5,2],[5,3,5,28],[6,1,6,2],[6,3,6,28],[15,36,15,37],[17,34,17,35],[20,18,20,20],[15,38,15,39],[23,24,23,28],[20,24,20,28],[22,24,22,28],[18,24,18,28],[19,24,19,28],[15,24,16,28],[17,21,17,23],[15,33,16,33],[15,34,15,35],[22,21,22,23],[15,21,16,23],[19,21,19,23],[17,36,17,37],[17,38,17,39],[20,2,20,14],[22,2,22,14],[23,2,23,14],[22,15,22,17],[21,2,21,14],[21,15,21,17],[20,15,20,17],[22,18,22,20],[18,21,18,23],[17,24,17,28],[23,15,23,17],[20,21,20,23],[21,24,21,28],[19,18,19,20],[23,18,23,20],[23,21,23,23],[21,18,21,20],[21,21,21,23],[26,18,26,20],[26,21,26,23],[26,24,26,28],[24,2,24,14],[24,15,24,17],[24,18,24,20],[24,21,24,23],[24,24,24,28],[26,2,26,14],[26,15,26,17],[25,2,25,14],[25,15,25,17],[25,18,25,20],[25,21,25,23],[25,24,25,28],[27,2,27,14],[27,15,27,17],[27,18,27,20],[27,21,27,23],[27,24,27,28]]}
[null,"研修記録シート2（評価）"]
[]
[null,"この振り返りシートは、科目の受講前後で各自の理解度を把握し、受講中の学習効果の向上と、受講後の学習のポイントを焦点化し、継続的な資質向上に役立てるものです。本科目を学習した時点で感じた事を書き留め、今後の学習方針や課題への取り組みを考える際に見返してみましょう。"]
[]
[]
[null,"研修名：",null,"専門研修Ⅱ",null,null,null,null,null,null,null,null,null,null,null,null,null,null,null,null,null,null,null,null,null,null,null,null,null,null,null,null,null,null,null,null,null,null,null,null,"このボタンをクリックするとTOPページへ移動します。"]
[null,"科目名：",null,"②-6ケアマネジメントにおける実践事例の研究及び発表「社会資源の活用に向けた関係機関との連携に関する事例」"]
[]
[]
[null,"受講日",null,1,null,null,null,null,null,"時間",null,1,null,null,null,null,"～",null,null,null,null,"氏名",null,null,{"$f":"IF(ISBLANK(シート1!N7),\"\",シート1!N7)","v":""}]
[null,null,null,2,null,null,null,null,null,null,null,2,null,null,null,null,"～"]
[]
[null,"会場",null,1,null,null,null,null,null,null,null,null,null,null,null,null,null,null,null,null,null,"番号",null,null,{"$f":"IF(ISBLANK(シート1!N9),\"\",シート1!N9)","v":""}]
[null,null,null,2]
[]
[null,"項　　目 ",null,null,null,null,null,null,null,null,null,null,null,null,null,"受講前 ",null,null,"受講\n直後",null,null,"実践\n評価\n(3ヶ月後）",null,null,"備　　考 ",null,null,null,null,null,null,"リスト（課程区分）","リスト（時間）",null,"受講前",null,"受講後 ",null,"実践評価"]
[null,null,null,null,null,null,null,null,null,null,null,null,null,null,null,null,null,null,null,null,null,null,null,null,null,null,null,null,null,null,null,null,"リストから選択",null,"理解度","習得度","理解度","習得度","理解度","習得度"]
[null,"記入日（入力日）",null,null,null,null,null,null,null,null,null,null,null,null,null,null,null,null,null,null,null,null,null,null,null,null,null,null,null,null,null,"リスト（課程区分）","リスト（時間）",null,"受講前",null,"受講後 ",null,"実践評価"]
[null,"① ","他の制度（生活保護制度、成年後見制度等）を活用している事例、インフォーマルサービスを提供する事業者との連携が必要な事例等の居宅サービス計画等について意見交換を通して分析し評価できる。",null,null,null,null,null,null,null,null,null,null,null,null,null,null,null,null,null,null,null,null,null,null,null,null,null,null,null,null,"Ⅰ","08:00:00"]
[null,"② ","分析し評価した内容を受講者間で共有し、アセスメントや居宅サービス計画等の作成における留意点を再確認できる。",null,null,null,null,null,null,null,null,null,null,null,null,null,null,null,null,null,null,null,null,null,null,null,null,null,null,null,null,"Ⅱ","08:05:00",4,"4．理解している ","-","4．非常に理解が深まった ","4．習得できた ","4．非常に理解が深まった","4．習得度が上がった "]
[null,"③ ","各種統計データを活用する等により、別の類似の事例等に応用することができる。",null,null,null,null,null,null,null,null,null,null,null,null,null,null,null,null,null,null,null,null,null,null,null,null,null,null,null,null,null,"08:10:00",3,"3．概ね理解している ","-","3．理解が深まった ","3．概ね習得できた ","3．理解が深まった","3．まあまあ習得度が上がった "]
[null,"④ ","地域の各種統計データを必要に応じて活用することにより、他の事例へも応用できる。",null,null,null,null,null,null,null,null,null,null,null,null,null,null,null,null,null,null,null,null,null,null,null,null,null,null,null,null,null,"08:15:00",2,"2．あまり理解していない ","-","2．あまり理解が進まなかった ","2．あまり習得できていない ","2．あまり理解度は変わらない ","2．習得度は変わらない "]
[null,"⑤","他の制度を活用するにあたり重要となる各種知識や関係機関、多職種との連携方法に応用できる。",null,null,null,null,null,null,null,null,null,null,null,null,null,null,null,null,null,null,null,null,null,null,null,null,null,null,null,null,null,"08:20:00",1,"1．全く理解していない ","-","1．理解が進まなかった ","1．習得できていない ","1．理解度は変わらない。 ","1．理解度が深まり、習得度が後退した "]
[null,"⑥","地域の社会資源（インフォーマルサービス等）を活用したケアマネジメントを実践できる。",null,null,null,null,null,null,null,null,null,null,null,null,null,null,null,null,null,null,null,null,null,null,null,null,null,null,null,null,null,"08:25:00"]
[null,null,null,null,null,null,null,null,null,null,null,null,null,null,null,null,null,null,null,null,null,null,null,null,null,null,null,null,null,null,null,null,"08:50:00"]
[null,null,null,null,null,null,null,null,null,null,null,null,null,null,null,null,null,null,null,null,null,null,null,null,null,null,null,null,null,null,null,null,"09:00:00"]
[null,null,null,null,null,null,null,null,null,null,null,null,null,null,null,null,null,null,null,null,null,null,null,null,null,null,null,null,null,null,null,null,"09:05:00"]
[null,null,null,null,null,null,null,null,null,null,null,null,null,null,null,null,null,null,null,null,null,null,null,null,null,null,null,null,null,null,null,null,"09:10:00"]
[null,null,null,null,null,null,null,null,null,null,null,null,null,null,null,null,null,null,null,null,null,null,null,null,null,null,null,null,null,null,null,null,"09:15:00"]
[null,"　※研修は自己評価とし、4段階評価で、数字が大きいほど高評価、数字が小さいほど低評価として記入してください。",null,null,null,null,null,null,null,null,null,null,null,null,null,null,null,null,null,null,null,null,null,null,null,null,null,null,null,null,null,null,"09:20:00"]
[null,"　　【選択肢】　　　4.　できる　　　　　3.　概ねできる　　　　　2.　ほとんどできない　　　　1.　全くできない",null,null,null,null,null,null,null,null,null,null,null,null,null,null,null,null,null,null,null,null,null,null,null,null,null,null,null,null,null,null,"09:25:00"]
[null,null,null,null,null,null,null,null,null,null,null,null,null,null,null,null,null,null,null,null,null,null,null,null,null,null,null,null,null,null,null,null,"09:35:00"]
[null,null,null,null,null,null,null,null,null,null,null,null,null,null,null,null,null,null,null,null,null,null,null,null,null,null,null,null,null,null,null,null,"09:40:00"]
[null,null,null,null,null,null,null,null,null,null,null,null,null,null,null,null,null,null,null,null,null,null,null,null,null,null,null,null,null,null,null,null,"09:45:00"]
[null,null,null,null,null,null,null,null,null,null,null,null,null,null,null,null,null,null,null,null,null,null,null,null,null,null,null,null,null,null,null,null,"09:50:00"]
[null,null,null,null,null,null,null,null,null,null,null,null,null,null,null,null,null,null,null,null,null,null,null,null,null,null,null,null,null,null,null,null,"09:55:00"]
[null,null,null,null,null,null,null,null,null,null,null,null,null,null,null,null,null,null,null,null,null,null,null,null,null,null,null,null,null,null,null,null,"10:00:00"]
[null,null,null,null,null,null,null,null,null,null,null,null,null,null,null,null,null,null,null,null,null,null,null,null,null,null,null,null,null,null,null,null,"10:05:00"]
[null,null,null,null,null,null,null,null,null,null,null,null,null,null,null,null,null,null,null,null,null,null,null,null,null,null,null,null,null,null,null,null,"10:10:00"]
[null,null,null,null,null,null,null,null,null,null,null,null,null,null,null,null,null,null,null,null,null,null,null,null,null,null,null,null,null,null,null,null,"10:15:00"]
[null,null,null,null,null,null,null,null,null,null,null,null,null,null,null,null,null,null,null,null,null,null,null,null,null,null,null,null,null,null,null,null,"10:20:00"]
[null,null,null,null,null,null,null,null,null,null,null,null,null,null,null,null,null,null,null,null,null,null,null,null,null,null,null,null,null,null,null,null,"10:25:00"]
[null,null,null,null,null,null,null,null,null,null,null,null,null,null,null,null,null,null,null,null,null,null,null,null,null,null,null,null,null,null,null,null,"10:30:00"]
[null,null,null,null,null,null,null,null,null,null,null,null,null,null,null,null,null,null,null,null,null,null,null,null,null,null,null,null,null,null,null,null,"10:35:00"]
[null,null,null,null,null,null,null,null,null,null,null,null,null,null,null,null,null,null,null,null,null,null,null,null,null,null,null,null,null,null,null,null,"10:40:00"]
[null,null,null,null,null,null,null,null,null,null,null,null,null,null,null,null,null,null,null,null,null,null,null,null,null,null,null,null,null,null,null,null,"10:45:00"]
[null,null,null,null,null,null,null,null,null,null,null,null,null,null,null,null,null,null,null,null,null,null,null,null,null,null,null,null,null,null,null,null,"10:50:00"]
[null,null,null,null,null,null,null,null,null,null,null,null,null,null,null,null,null,null,null,null,null,null,null,null,null,null,null,null,null,null,null,null,"10:55:00"]
[null,null,null,null,null,null,null,null,null,null,null,null,null,null,null,null,null,null,null,null,null,null,null,null,null,null,null,null,null,null,null,null,"11:00:00"]
[null,null,null,null,null,null,null,null,null,null,null,null,null,null,null,null,null,null,null,null,null,null,null,null,null,null,null,null,null,null,null,null,"11:05:00"]
[null,null,null,null,null,null,null,null,null,null,null,null,null,null,null,null,null,null,null,null,null,null,null,null,null,null,null,null,null,null,null,null,"11:10:00"]
[null,null,null,null,null,null,null,null,null,null,null,null,null,null,null,null,null,null,null,null,null,null,null,null,null,null,null,null,null,null,null,null,"11:15:00"]
[null,null,null,null,null,null,null,null,null,null,null,null,null,null,null,null,null,null,null,null,null,null,null,null,null,null,null,null,null,null,null,null,"11:20:00"]
[null,null,null,null,null,null,null,null,null,null,null,null,null,null,null,null,null,null,null,null,null,null,null,null,null,null,null,null,null,null,null,null,"11:25:00"]
[null,null,null,null,null,null,null,null,null,null,null,null,null,null,null,null,null,null,null,null,null,null,null,null,null,null,null,null,null,null,null,null,"11:30:00"]
[null,null,null,null,null,null,null,null,null,null,null,null,null,null,null,null,null,null,null,null,null,null,null,null,null,null,null,null,null,null,null,null,"11:35:00"]
[null,null,null,null,null,null,null,null,null,null,null,null,null,null,null,null,null,null,null,null,null,null,null,null,null,null,null,null,null,null,null,null,"11:40:00"]
[null,null,null,null,null,null,null,null,null,null,null,null,null,null,null,null,null,null,null,null,null,null,null,null,null,null,null,null,null,null,null,null,"11:45:00"]
[null,null,null,null,null,null,null,null,null,null,null,null,null,null,null,null,null,null,null,null,null,null,null,null,null,null,null,null,null,null,null,null,"11:50:00"]
[null,null,null,null,null,null,null,null,null,null,null,null,null,null,null,null,null,null,null,null,null,null,null,null,null,null,null,null,null,null,null,null,"11:55:00"]
[null,null,null,null,null,null,null,null,null,null,null,null,null,null,null,null,null,null,null,null,null,null,null,null,null,null,null,null,null,null,null,null,"12:00:00"]
[null,null,null,null,null,null,null,null,null,null,null,null,null,null,null,null,null,null,null,null,null,null,null,null,null,null,null,null,null,null,null,null,"12:05:00"]
[null,null,null,null,null,null,null,null,null,null,null,null,null,null,null,null,null,null,null,null,null,null,null,null,null,null,null,null,null,null,null,null,"12:10:00"]
[null,null,null,null,null,null,null,null,null,null,null,null,null,null,null,null,null,null,null,null,null,null,null,null,null,null,null,null,null,null,null,null,"12:15:00"]
[null,null,null,null,null,null,null,null,null,null,null,null,null,null,null,null,null,null,null,null,null,null,null,null,null,null,null,null,null,null,null,null,"12:20:00"]
[null,null,null,null,null,null,null,null,null,null,null,null,null,null,null,null,null,null,null,null,null,null,null,null,null,null,null,null,null,null,null,null,"12:25:00"]
[null,null,null,null,null,null,null,null,null,null,null,null,null,null,null,null,null,null,null,null,null,null,null,null,null,null,null,null,null,null,null,null,"12:30:00"]
[null,null,null,null,null,null,null,null,null,null,null,null,null,null,null,null,null,null,null,null,null,null,null,null,null,null,null,null,null,null,null,null,"12:35:00"]
[null,null,null,null,null,null,null,null,null,null,null,null,null,null,null,null,null,null,null,null,null,null,null,null,null,null,null,null,null,null,null,null,"12:40:00"]
[null,null,null,null,null,null,null,null,null,null,null,null,null,null,null,null,null,null,null,null,null,null,null,null,null,null,null,null,null,null,null,null,"12:45:00"]
[null,null,null,null,null,null,null,null,null,null,null,null,null,null,null,null,null,null,null,null,null,null,null,null,null,null,null,null,null,null,null,null,"12:50:00"]
[null,null,null,null,null,null,null,null,null,null,null,null,null,null,null,null,null,null,null,null,null,null,null,null,null,null,null,null,null,null,null,null,"12:55:00"]
[null,null,null,null,null,null,null,null,null,null,null,null,null,null,null,null,null,null,null,null,null,null,null,null,null,null,null,null,null,null,null,null,"13:00:00"]
[null,null,null,null,null,null,null,null,null,null,null,null,null,null,null,null,null,null,null,null,null,null,null,null,null,null,null,null,null,null,null,null,"13:05:00"]
[null,null,null,null,null,null,null,null,null,null,null,null,null,null,null,null,null,null,null,null,null,null,null,null,null,null,null,null,null,null,null,null,"13:10:00"]
[null,null,null,null,null,null,null,null,null,null,null,null,null,null,null,null,null,null,null,null,null,null,null,null,null,null,null,null,null,null,null,null,"13:15:00"]
[null,null,null,null,null,null,null,null,null,null,null,null,null,null,null,null,null,null,null,null,null,null,null,null,null,null,null,null,null,null,null,null,"13:20:00"]
[null,null,null,null,null,null,null,null,null,null,null,null,null,null,null,null,null,null,null,null,null,null,null,null,null,null,null,null,null,null,null,null,"13:25:00"]
[null,null,null,null,null,null,null,null,null,null,null,null,null,null,null,null,null,null,null,null,null,null,null,null,null,null,null,null,null,null,null,null,"13:30:00"]
[null,null,null,null,null,null,null,null,null,null,null,null,null,null,null,null,null,null,null,null,null,null,null,null,null,null,null,null,null,null,null,null,"13:35:00"]
[null,null,null,null,null,null,null,null,null,null,null,null,null,null,null,null,null,null,null,null,null,null,null,null,null,null,null,null,null,null,null,null,"13:40:00"]
[null,null,null,null,null,null,null,null,null,null,null,null,null,null,null,null,null,null,null,null,null,null,null,null,null,null,null,null,null,null,null,null,"13:45:00"]
[null,null,null,null,null,null,null,null,null,null,null,null,null,null,null,null,null,null,null,null,null,null,null,null,null,null,null,null,null,null,null,null,"13:50:00"]
[null,null,null,null,null,null,null,null,null,null,null,null,null,null,null,null,null,null,null,null,null,null,null,null,null,null,null,null,null,null,null,null,"13:55:00"]
[null,null,null,null,null,null,null,null,null,null,null,null,null,null,null,null,null,null,null,null,null,null,null,null,null,null,null,null,null,null,null,null,"14:00:00"]
[null,null,null,null,null,null,null,null,null,null,null,null,null,null,null,null,null,null,null,null,null,null,null,null,null,null,null,null,null,null,null,null,"14:05:00"]
[null,null,null,null,null,null,null,null,null,null,null,null,null,null,null,null,null,null,null,null,null,null,null,null,null,null,null,null,null,null,null,null,"14:10:00"]
[null,null,null,null,null,null,null,null,null,null,null,null,null,null,null,null,null,null,null,null,null,null,null,null,null,null,null,null,null,null,null,null,"14:15:00"]
[null,null,null,null,null,null,null,null,null,null,null,null,null,null,null,null,null,null,null,null,null,null,null,null,null,null,null,null,null,null,null,null,"14:20:00"]
[null,null,null,null,null,null,null,null,null,null,null,null,null,null,null,null,null,null,null,null,null,null,null,null,null,null,null,null,null,null,null,null,"14:25:00"]
[null,null,null,null,null,null,null,null,null,null,null,null,null,null,null,null,null,null,null,null,null,null,null,null,null,null,null,null,null,null,null,null,"14:30:00"]
[null,null,null,null,null,null,null,null,null,null,null,null,null,null,null,null,null,null,null,null,null,null,null,null,null,null,null,null,null,null,null,null,"14:35:00"]
[null,null,null,null,null,null,null,null,null,null,null,null,null,null,null,null,null,null,null,null,null,null,null,null,null,null,null,null,null,null,null,null,"14:40:00"]
[null,null,null,null,null,null,null,null,null,null,null,null,null,null,null,null,null,null,null,null,null,null,null,null,null,null,null,null,null,null,null,null,"14:45:00"]
[null,null,null,null,null,null,null,null,null,null,null,null,null,null,null,null,null,null,null,null,null,null,null,null,null,null,null,null,null,null,null,null,"14:50:00"]
[null,null,null,null,null,null,null,null,null,null,null,null,null,null,null,null,null,null,null,null,null,null,null,null,null,null,null,null,null,null,null,null,"14:55:00"]
[null,null,null,null,null,null,null,null,null,null,null,null,null,null,null,null,null,null,null,null,null,null,null,null,null,null,null,null,null,null,null,null,"15:00:00"]
[null,null,null,null,null,null,null,null,null,null,null,null,null,null,null,null,null,null,null,null,null,null,null,null,null,null,null,null,null,null,null,null,"15:05:00"]
[null,null,null,null,null,null,null,null,null,null,null,null,null,null,null,null,null,null,null,null,null,null,null,null,null,null,null,null,null,null,null,null,"15:10:00"]
[null,null,null,null,null,null,null,null,null,null,null,null,null,null,null,null,null,null,null,null,null,null,null,null,null,null,null,null,null,null,null,null,"15:15:00"]
[null,null,null,null,null,null,null,null,null,null,null,null,null,null,null,null,null,null,null,null,null,null,null,null,null,null,null,null,null,null,null,null,"15:20:00"]
[null,null,null,null,null,null,null,null,null,null,null,null,null,null,null,null,null,null,null,null,null,null,null,null,null,null,null,null,null,null,null,null,"15:25:00"]
[null,null,null,null,null,null,null,null,null,null,null,null,null,null,null,null,null,null,null,null,null,null,null,null,null,null,null,null,null,null,null,null,"15:30:00"]
[null,null,null,null,null,null,null,null,null,null,null,null,null,null,null,null,null,null,null,null,null,null,null,null,null,null,null,null,null,null,null,null,"15:35:00"]
[null,null,null,null,null,null,null,null,null,null,null,null,null,null,null,null,null,null,null,null,null,null,null,null,null,null,null,null,null,null,null,null,"15:40:00"]
[null,null,null,null,null,null,null,null,null,null,null,null,null,null,null,null,null,null,null,null,null,null,null,null,null,null,null,null,null,null,null,null,"15:45:00"]
[null,null,null,null,null,null,null,null,null,null,null,null,null,null,null,null,null,null,null,null,null,null,null,null,null,null,null,null,null,null,null,null,"15:50:00"]
[null,null,null,null,null,null,null,null,null,null,null,null,null,null,null,null,null,null,null,null,null,null,null,null,null,null,null,null,null,null,null,null,"15:55:00"]
[null,null,null,null,null,null,null,null,null,null,null,null,null,null,null,null,null,null,null,null,null,null,null,null,null,null,null,null,null,null,null,null,"16:00:00"]
[null,null,null,null,null,null,null,null,null,null,null,null,null,null,null,null,null,null,null,null,null,null,null,null,null,null,null,null,null,null,null,null,"16:05:00"]
[null,null,null,null,null,null,null,null,null,null,null,null,null,null,null,null,null,null,null,null,null,null,null,null,null,null,null,null,null,null,null,null,"16:10:00"]
[null,null,null,null,null,null,null,null,null,null,null,null,null,null,null,null,null,null,null,null,null,null,null,null,null,null,null,null,null,null,null,null,"16:15:00"]
[null,null,null,null,null,null,null,null,null,null,null,null,null,null,null,null,null,null,null,null,null,null,null,null,null,null,null,null,null,null,null,null,"16:20:00"]
[null,null,null,null,null,null,null,null,null,null,null,null,null,null,null,null,null,null,null,null,null,null,null,null,null,null,null,null,null,null,null,null,"16:25:00"]
[null,null,null,null,null,null,null,null,null,null,null,null,null,null,null,null,null,null,null,null,null,null,null,null,null,null,null,null,null,null,null,null,"16:30:00"]
[null,null,null,null,null,null,null,null,null,null,null,null,null,null,null,null,null,null,null,null,null,null,null,null,null,null,null,null,null,null,null,null,"16:35:00"]
[null,null,null,null,null,null,null,null,null,null,null,null,null,null,null,null,null,null,null,null,null,null,null,null,null,null,null,null,null,null,null,null,"16:40:00"]
[null,null,null,null,null,null,null,null,null,null,null,null,null,null,null,null,null,null,null,null,null,null,null,null,null,null,null,null,null,null,null,null,"16:45:00"]
[null,null,null,null,null,null,null,null,null,null,null,null,null,null,null,null,null,null,null,null,null,null,null,null,null,null,null,null,null,null,null,null,"16:50:00"]
[null,null,null,null,null,null,null,null,null,null,null,null,null,null,null,null,null,null,null,null,null,null,null,null,null,null,null,null,null,null,null,null,"16:55:00"]
[null,null,null,null,null,null,null,null,null,null,null,null,null,null,null,null,null,null,null,null,null,null,null,null,null,null,null,null,null,null,null,null,"17:00:00"]
[null,null,null,null,null,null,null,null,null,null,null,null,null,null,null,null,null,null,null,null,null,null,null,null,null,null,null,null,null,null,null,null,"17:05:00"]
[null,null,null,null,null,null,null,null,null,null,null,null,null,null,null,null,null,null,null,null,null,null,null,null,null,null,null,null,null,null,null,null,"17:10:00"]
[null,null,null,null,null,null,null,null,null,null,null,null,null,null,null,null,null,null,null,null,null,null,null,null,null,null,null,null,null,null,null,null,"17:15:00"]
[null,null,null,null,null,null,null,null,null,null,null,null,null,null,null,null,null,null,null,null,null,null,null,null,null,null,null,null,null,null,null,null,"17:20:00"]
[null,null,null,null,null,null,null,null,null,null,null,null,null,null,null,null,null,null,null,null,null,null,null,null,null,null,null,null,null,null,null,null,"17:25:00"]
[null,null,null,null,null,null,null,null,null,null,null,null,null,null,null,null,null,null,null,null,null,null,null,null,null,null,null,null,null,null,null,null,"17:30:00"]
[null,null,null,null,null,null,null,null,null,null,null,null,null,null,null,null,null,null,null,null,null,null,null,null,null,null,null,null,null,null,null,null,"17:35:00"]
[null,null,null,null,null,null,null,null,null,null,null,null,null,null,null,null,null,null,null,null,null,null,null,null,null,null,null,null,null,null,null,null,"17:40:00"]
[null,null,null,null,null,null,null,null,null,null,null,null,null,null,null,null,null,null,null,null,null,null,null,null,null,null,null,null,null,null,null,null,"17:45:00"]
[null,null,null,null,null,null,null,null,null,null,null,null,null,null,null,null,null,null,null,null,null,null,null,null,null,null,null,null,null,null,null,null,"17:50:00"]
[null,null,null,null,null,null,null,null,null,null,null,null,null,null,null,null,null,null,null,null,null,null,null,null,null,null,null,null,null,null,null,null,"17:55:00"]
[null,null,null,null,null,null,null,null,null,null,null,null,null,null,null,null,null,null,null,null,null,null,null,null,null,null,null,null,null,null,null,null,"18:00:00"]
[null,null,null,null,null,null,null,null,null,null,null,null,null,null,null,null,null,null,null,null,null,null,null,null,null,null,null,null,null,null,null,null,"18:05:00"]
[null,null,null,null,null,null,null,null,null,null,null,null,null,null,null,null,null,null,null,null,null,null,null,null,null,null,null,null,null,null,null,null,"18:10:00"]
[null,null,null,null,null,null,null,null,null,null,null,null,null,null,null,null,null,null,null,null,null,null,null,null,null,null,null,null,null,null,null,null,"18:15:00"]
[null,null,null,null,null,null,null,null,null,null,null,null,null,null,null,null,null,null,null,null,null,null,null,null,null,null,null,null,null,null,null,null,"18:20:00"]
[null,null,null,null,null,null,null,null,null,null,null,null,null,null,null,null,null,null,null,null,null,null,null,null,null,null,null,null,null,null,null,null,"18:25:00"]
[null,null,null,null,null,null,null,null,null,null,null,null,null,null,null,null,null,null,null,null,null,null,null,null,null,null,null,null,null,null,null,null,"18:30:00"]
[null,null,null,null,null,null,null,null,null,null,null,null,null,null,null,null,null,null,null,null,null,null,null,null,null,null,null,null,null,null,null,null,"18:35:00"]
[null,null,null,null,null,null,null,null,null,null,null,null,null,null,null,null,null,null,null,null,null,null,null,null,null,null,null,null,null,null,null,null,"18:40:00"]
[null,null,null,null,null,null,null,null,null,null,null,null,null,null,null,null,null,null,null,null,null,null,null,null,null,null,null,null,null,null,null,null,"18:45:00"]
[null,null,null,null,null,null,null,null,null,null,null,null,null,null,null,null,null,null,null,null,null,null,null,null,null,null,null,null,null,null,null,null,"18:50:00"]
[null,null,null,null,null,null,null,null,null,null,null,null,null,null,null,null,null,null,null,null,null,null,null,null,null,null,null,null,null,null,null,null,"18:55:00"]
[null,null,null,null,null,null,null,null,null,null,null,null,null,null,null,null,null,null,null,null,null,null,null,null,null,null,null,null,null,null,null,null,"19:00:00"]

{"sheet":"シート2-②-7","index":10,"n_rows":145,"n_cols":41,"rows_kept":145,"cut":false,"hidden":false,"merged":[[31,1,31,28],[2,1,2,28],[5,1,5,2],[5,3,5,28],[6,1,6,2],[6,3,6,28],[12,21,13,23],[9,17,9,20],[12,1,13,2],[12,4,12,20],[15,34,15,35],[15,18,16,20],[15,21,16,23],[15,38,15,39],[15,33,16,33],[15,24,16,28],[15,36,15,37],[9,1,10,2],[9,4,9,8],[9,9,10,10],[9,12,9,15],[9,21,10,23],[9,24,10,28],[10,4,10,8],[10,12,10,15],[10,17,10,20],[12,24,13,28],[15,1,16,14],[15,15,16,17],[13,4,13,20],[19,2,19,14],[19,15,19,17],[19,18,19,20],[17,1,17,14],[18,15,18,17],[18,18,18,20],[17,15,17,17],[19,21,19,23],[18,21,18,23],[17,18,17,20],[17,21,17,23],[23,24,23,28],[23,18,23,20],[23,21,23,23],[18,24,18,28],[20,2,20,14],[21,2,21,14],[20,15,20,17],[20,18,20,20],[18,2,18,14],[21,18,21,20],[23,15,23,17],[21,15,21,17],[21,21,21,23],[23,2,23,14],[22,2,22,14],[22,15,22,17],[30,1,30,28],[28,2,28,14],[28,15,28,17],[28,18,28,20],[28,21,28,23],[17,38,17,39],[17,34,17,35],[22,18,22,20],[22,21,22,23],[19,24,19,28],[22,24,22,28],[20,21,20,23],[20,24,20,28],[21,24,21,28],[17,36,17,37],[17,24,17,28],[25,2,25,14],[25,15,25,17],[25,18,25,20],[25,21,25,23],[28,24,28,28],[26,24,26,28],[25,24,25,28],[27,2,27,14],[27,15,27,17],[27,18,27,20],[27,21,27,23],[27,24,27,28],[26,2,26,14],[26,15,26,17],[26,18,26,20],[26,21,26,23],[24,2,24,14],[24,15,24,17],[24,18,24,20],[24,21,24,23],[24,24,24,28]]}
[null,"研修記録シート2（評価）"]
[]
[null,"この振り返りシートは、科目の受講前後で各自の理解度を把握し、受講中の学習効果の向上と、受講後の学習のポイントを焦点化し、継続的な資質向上に役立てるものです。本科目を学習した時点で感じた事を書き留め、今後の学習方針や課題への取り組みを考える際に見返してみましょう。"]
[]
[]
[null,"研修名：",null,"専門研修Ⅱ",null,null,null,null,null,null,null,null,null,null,null,null,null,null,null,null,null,null,null,null,null,null,null,null,null,null,null,null,null,null,null,null,null,null,null,null,"このボタンをクリックするとTOPページへ移動します。"]
[null,"科目名：",null,"②-7ケアマネジメントにおける実践事例の研究及び発表「状態に応じた多様なサービス（地域密着型サービスや施設サービス等）の活用に関する事例」"]
[]
[]
[null,"受講日",null,1,null,null,null,null,null,"時間",null,1,null,null,null,null,"～",null,null,null,null,"氏名",null,null,{"$f":"IF(ISBLANK(シート1!N7),\"\",シート1!N7)","v":""}]
[null,null,null,2,null,null,null,null,null,null,null,2,null,null,null,null,"～"]
[]
[null,"会場",null,1,null,null,null,null,null,null,null,null,null,null,null,null,null,null,null,null,null,"番号",null,null,{"$f":"IF(ISBLANK(シート1!N9),\"\",シート1!N9)","v":""}]
[null,null,null,2]
[]
[null,"項　　目 ",null,null,null,null,null,null,null,null,null,null,null,null,null,"受講前 ",null,null,"受講\n直後",null,null,"実践\n評価\n(3ヶ月後）",null,null,"備　　考 ",null,null,null,null,null,null,"リスト（課程区分）","リスト（時間）",null,"受講前",null,"受講後 ",null,"実践評価"]
[null,null,null,null,null,null,null,null,null,null,null,null,null,null,null,null,null,null,null,null,null,null,null,null,null,null,null,null,null,null,null,null,"リストから選択",null,"理解度","習得度","理解度","習得度","理解度","習得度"]
[null,"記入日（入力日）",null,null,null,null,null,null,null,null,null,null,null,null,null,null,null,null,null,null,null,null,null,null,null,null,null,null,null,null,null,"リスト（課程区分）","リスト（時間）",null,"受講前",null,"受講後 ",null,"実践評価"]
[null,"① ","地域密着型サービス等の多様なサービスを活用している事例等の居宅サービス計画等について意見交換を通して分析し評価できる。",null,null,null,null,null,null,null,null,null,null,null,null,null,null,null,null,null,null,null,null,null,null,null,null,null,null,null,null,"Ⅰ","08:00:00"]
[null,"②","分析し評価した内容を受講者間で共有し、アセスメントや居宅サービス計画等の作成における留意点を判断できる。",null,null,null,null,null,null,null,null,null,null,null,null,null,null,null,null,null,null,null,null,null,null,null,null,null,null,null,null,null,"08:10:00",4,"3．概ね理解している ","-","3．理解が深まった ","3．概ね習得できた ","3．理解が深まった","3．まあまあ習得度が上がった "]
[null,"③","各種統計データを活用する等により、別の類似の事例等への応用を実施できる。",null,null,null,null,null,null,null,null,null,null,null,null,null,null,null,null,null,null,null,null,null,null,null,null,null,null,null,null,null,"08:15:00",3,"2．あまり理解していない ","-","2．あまり理解が進まなかった ","2．あまり習得できていない ","2．あまり理解度は変わらない ","2．習得度は変わらない "]
[null,"④","地域の各種統計データを必要に応じて活用することにより、他の事例へも応用できる。",null,null,null,null,null,null,null,null,null,null,null,null,null,null,null,null,null,null,null,null,null,null,null,null,null,null,null,null,null,"08:20:00",2,"1．全く理解していない ","-","1．理解が進まなかった ","1．習得できていない ","1．理解度は変わらない。 ","1．理解度が深まり、習得度が後退した "]
[null,"⑤","状態に応じて多様なサービスを活用するにあたり重要となる各種知識や関係機関・介護サービス事業者との連携方法への応用を実施できる。",null,null,null,null,null,null,null,null,null,null,null,null,null,null,null,null,null,null,null,null,null,null,null,null,null,null,null,null,null,"08:25:00",1]
[null,"⑥","地域の社会資源（インフォーマルサービス等）を活用したケアマネジメントを実施できる。",null,null,null,null,null,null,null,null,null,null,null,null,null,null,null,null,null,null,null,null,null,null,null,null,null,null,null,null,null,"08:40:00"]
[null,null,null,null,null,null,null,null,null,null,null,null,null,null,null,null,null,null,null,null,null,null,null,null,null,null,null,null,null,null,null,null,"08:50:00"]
[null,null,null,null,null,null,null,null,null,null,null,null,null,null,null,null,null,null,null,null,null,null,null,null,null,null,null,null,null,null,null,null,"09:00:00"]
[null,null,null,null,null,null,null,null,null,null,null,null,null,null,null,null,null,null,null,null,null,null,null,null,null,null,null,null,null,null,null,null,"09:05:00"]
[null,null,null,null,null,null,null,null,null,null,null,null,null,null,null,null,null,null,null,null,null,null,null,null,null,null,null,null,null,null,null,null,"09:10:00"]
[null,null,null,null,null,null,null,null,null,null,null,null,null,null,null,null,null,null,null,null,null,null,null,null,null,null,null,null,null,null,null,null,"09:10:00"]
[null,null,null,null,null,null,null,null,null,null,null,null,null,null,null,null,null,null,null,null,null,null,null,null,null,null,null,null,null,null,null,null,"09:15:00"]
[null,"　※研修は自己評価とし、4段階評価で、数字が大きいほど高評価、数字が小さいほど低評価として記入してください。",null,null,null,null,null,null,null,null,null,null,null,null,null,null,null,null,null,null,null,null,null,null,null,null,null,null,null,null,null,null,"09:20:00"]
[null,"　　【選択肢】　　　4.　できる　　　　　3.　概ねできる　　　　　2.　ほとんどできない　　　　1.　全くできない",null,null,null,null,null,null,null,null,null,null,null,null,null,null,null,null,null,null,null,null,null,null,null,null,null,null,null,null,null,null,"09:25:00"]
[null,null,null,null,null,null,null,null,null,null,null,null,null,null,null,null,null,null,null,null,null,null,null,null,null,null,null,null,null,null,null,null,"09:40:00"]
[null,null,null,null,null,null,null,null,null,null,null,null,null,null,null,null,null,null,null,null,null,null,null,null,null,null,null,null,null,null,null,null,"09:45:00"]
[null,null,null,null,null,null,null,null,null,null,null,null,null,null,null,null,null,null,null,null,null,null,null,null,null,null,null,null,null,null,null,null,"09:50:00"]
[null,null,null,null,null,null,null,null,null,null,null,null,null,null,null,null,null,null,null,null,null,null,null,null,null,null,null,null,null,null,null,null,"09:55:00"]
[null,null,null,null,null,null,null,null,null,null,null,null,null,null,null,null,null,null,null,null,null,null,null,null,null,null,null,null,null,null,null,null,"10:00:00"]
[null,null,null,null,null,null,null,null,null,null,null,null,null,null,null,null,null,null,null,null,null,null,null,null,null,null,null,null,null,null,null,null,"10:05:00"]
[null,null,null,null,null,null,null,null,null,null,null,null,null,null,null,null,null,null,null,null,null,null,null,null,null,null,null,null,null,null,null,null,"10:10:00"]
[null,null,null,null,null,null,null,null,null,null,null,null,null,null,null,null,null,null,null,null,null,null,null,null,null,null,null,null,null,null,null,null,"10:15:00"]
[null,null,null,null,null,null,null,null,null,null,null,null,null,null,null,null,null,null,null,null,null,null,null,null,null,null,null,null,null,null,null,null,"10:20:00"]
[null,null,null,null,null,null,null,null,null,null,null,null,null,null,null,null,null,null,null,null,null,null,null,null,null,null,null,null,null,null,null,null,"10:25:00"]
[null,null,null,null,null,null,null,null,null,null,null,null,null,null,null,null,null,null,null,null,null,null,null,null,null,null,null,null,null,null,null,null,"10:30:00"]
[null,null,null,null,null,null,null,null,null,null,null,null,null,null,null,null,null,null,null,null,null,null,null,null,null,null,null,null,null,null,null,null,"10:35:00"]
[null,null,null,null,null,null,null,null,null,null,null,null,null,null,null,null,null,null,null,null,null,null,null,null,null,null,null,null,null,null,null,null,"10:40:00"]
[null,null,null,null,null,null,null,null,null,null,null,null,null,null,null,null,null,null,null,null,null,null,null,null,null,null,null,null,null,null,null,null,"10:45:00"]
[null,null,null,null,null,null,null,null,null,null,null,null,null,null,null,null,null,null,null,null,null,null,null,null,null,null,null,null,null,null,null,null,"10:50:00"]
[null,null,null,null,null,null,null,null,null,null,null,null,null,null,null,null,null,null,null,null,null,null,null,null,null,null,null,null,null,null,null,null,"10:55:00"]
[null,null,null,null,null,null,null,null,null,null,null,null,null,null,null,null,null,null,null,null,null,null,null,null,null,null,null,null,null,null,null,null,"11:00:00"]
[null,null,null,null,null,null,null,null,null,null,null,null,null,null,null,null,null,null,null,null,null,null,null,null,null,null,null,null,null,null,null,null,"11:05:00"]
[null,null,null,null,null,null,null,null,null,null,null,null,null,null,null,null,null,null,null,null,null,null,null,null,null,null,null,null,null,null,null,null,"11:10:00"]
[null,null,null,null,null,null,null,null,null,null,null,null,null,null,null,null,null,null,null,null,null,null,null,null,null,null,null,null,null,null,null,null,"11:15:00"]
[null,null,null,null,null,null,null,null,null,null,null,null,null,null,null,null,null,null,null,null,null,null,null,null,null,null,null,null,null,null,null,null,"11:20:00"]
[null,null,null,null,null,null,null,null,null,null,null,null,null,null,null,null,null,null,null,null,null,null,null,null,null,null,null,null,null,null,null,null,"11:25:00"]
[null,null,null,null,null,null,null,null,null,null,null,null,null,null,null,null,null,null,null,null,null,null,null,null,null,null,null,null,null,null,null,null,"11:30:00"]
[null,null,null,null,null,null,null,null,null,null,null,null,null,null,null,null,null,null,null,null,null,null,null,null,null,null,null,null,null,null,null,null,"11:35:00"]
[null,null,null,null,null,null,null,null,null,null,null,null,null,null,null,null,null,null,null,null,null,null,null,null,null,null,null,null,null,null,null,null,"11:40:00"]
[null,null,null,null,null,null,null,null,null,null,null,null,null,null,null,null,null,null,null,null,null,null,null,null,null,null,null,null,null,null,null,null,"11:45:00"]
[null,null,null,null,null,null,null,null,null,null,null,null,null,null,null,null,null,null,null,null,null,null,null,null,null,null,null,null,null,null,null,null,"11:50:00"]
[null,null,null,null,null,null,null,null,null,null,null,null,null,null,null,null,null,null,null,null,null,null,null,null,null,null,null,null,null,null,null,null,"11:55:00"]
[null,null,null,null,null,null,null,null,null,null,null,null,null,null,null,null,null,null,null,null,null,null,null,null,null,null,null,null,null,null,null,null,"12:00:00"]
[null,null,null,null,null,null,null,null,null,null,null,null,null,null,null,null,null,null,null,null,null,null,null,null,null,null,null,null,null,null,null,null,"12:05:00"]
[null,null,null,null,null,null,null,null,null,null,null,null,null,null,null,null,null,null,null,null,null,null,null,null,null,null,null,null,null,null,null,null,"12:10:00"]
[null,null,null,null,null,null,null,null,null,null,null,null,null,null,null,null,null,null,null,null,null,null,null,null,null,null,null,null,null,null,null,null,"12:15:00"]
[null,null,null,null,null,null,null,null,null,null,null,null,null,null,null,null,null,null,null,null,null,null,null,null,null,null,null,null,null,null,null,null,"12:20:00"]
[null,null,null,null,null,null,null,null,null,null,null,null,null,null,null,null,null,null,null,null,null,null,null,null,null,null,null,null,null,null,null,null,"12:25:00"]
[null,null,null,null,null,null,null,null,null,null,null,null,null,null,null,null,null,null,null,null,null,null,null,null,null,null,null,null,null,null,null,null,"12:30:00"]
[null,null,null,null,null,null,null,null,null,null,null,null,null,null,null,null,null,null,null,null,null,null,null,null,null,null,null,null,null,null,null,null,"12:35:00"]
[null,null,null,null,null,null,null,null,null,null,null,null,null,null,null,null,null,null,null,null,null,null,null,null,null,null,null,null,null,null,null,null,"12:40:00"]
[null,null,null,null,null,null,null,null,null,null,null,null,null,null,null,null,null,null,null,null,null,null,null,null,null,null,null,null,null,null,null,null,"12:45:00"]
[null,null,null,null,null,null,null,null,null,null,null,null,null,null,null,null,null,null,null,null,null,null,null,null,null,null,null,null,null,null,null,null,"12:50:00"]
[null,null,null,null,null,null,null,null,null,null,null,null,null,null,null,null,null,null,null,null,null,null,null,null,null,null,null,null,null,null,null,null,"12:55:00"]
[null,null,null,null,null,null,null,null,null,null,null,null,null,null,null,null,null,null,null,null,null,null,null,null,null,null,null,null,null,null,null,null,"13:00:00"]
[null,null,null,null,null,null,null,null,null,null,null,null,null,null,null,null,null,null,null,null,null,null,null,null,null,null,null,null,null,null,null,null,"13:05:00"]
[null,null,null,null,null,null,null,null,null,null,null,null,null,null,null,null,null,null,null,null,null,null,null,null,null,null,null,null,null,null,null,null,"13:10:00"]
[null,null,null,null,null,null,null,null,null,null,null,null,null,null,null,null,null,null,null,null,null,null,null,null,null,null,null,null,null,null,null,null,"13:15:00"]
[null,null,null,null,null,null,null,null,null,null,null,null,null,null,null,null,null,null,null,null,null,null,null,null,null,null,null,null,null,null,null,null,"13:20:00"]
[null,null,null,null,null,null,null,null,null,null,null,null,null,null,null,null,null,null,null,null,null,null,null,null,null,null,null,null,null,null,null,null,"13:25:00"]
[null,null,null,null,null,null,null,null,null,null,null,null,null,null,null,null,null,null,null,null,null,null,null,null,null,null,null,null,null,null,null,null,"13:30:00"]
[null,null,null,null,null,null,null,null,null,null,null,null,null,null,null,null,null,null,null,null,null,null,null,null,null,null,null,null,null,null,null,null,"13:35:00"]
[null,null,null,null,null,null,null,null,null,null,null,null,null,null,null,null,null,null,null,null,null,null,null,null,null,null,null,null,null,null,null,null,"13:40:00"]
[null,null,null,null,null,null,null,null,null,null,null,null,null,null,null,null,null,null,null,null,null,null,null,null,null,null,null,null,null,null,null,null,"13:45:00"]
[null,null,null,null,null,null,null,null,null,null,null,null,null,null,null,null,null,null,null,null,null,null,null,null,null,null,null,null,null,null,null,null,"13:50:00"]
[null,null,null,null,null,null,null,null,null,null,null,null,null,null,null,null,null,null,null,null,null,null,null,null,null,null,null,null,null,null,null,null,"13:55:00"]
[null,null,null,null,null,null,null,null,null,null,null,null,null,null,null,null,null,null,null,null,null,null,null,null,null,null,null,null,null,null,null,null,"14:00:00"]
[null,null,null,null,null,null,null,null,null,null,null,null,null,null,null,null,null,null,null,null,null,null,null,null,null,null,null,null,null,null,null,null,"14:05:00"]
[null,null,null,null,null,null,null,null,null,null,null,null,null,null,null,null,null,null,null,null,null,null,null,null,null,null,null,null,null,null,null,null,"14:10:00"]
[null,null,null,null,null,null,null,null,null,null,null,null,null,null,null,null,null,null,null,null,null,null,null,null,null,null,null,null,null,null,null,null,"14:15:00"]
[null,null,null,null,null,null,null,null,null,null,null,null,null,null,null,null,null,null,null,null,null,null,null,null,null,null,null,null,null,null,null,null,"14:20:00"]
[null,null,null,null,null,null,null,null,null,null,null,null,null,null,null,null,null,null,null,null,null,null,null,null,null,null,null,null,null,null,null,null,"14:25:00"]
[null,null,null,null,null,null,null,null,null,null,null,null,null,null,null,null,null,null,null,null,null,null,null,null,null,null,null,null,null,null,null,null,"14:30:00"]
[null,null,null,null,null,null,null,null,null,null,null,null,null,null,null,null,null,null,null,null,null,null,null,null,null,null,null,null,null,null,null,null,"14:35:00"]
[null,null,null,null,null,null,null,null,null,null,null,null,null,null,null,null,null,null,null,null,null,null,null,null,null,null,null,null,null,null,null,null,"14:40:00"]
[null,null,null,null,null,null,null,null,null,null,null,null,null,null,null,null,null,null,null,null,null,null,null,null,null,null,null,null,null,null,null,null,"14:45:00"]
[null,null,null,null,null,null,null,null,null,null,null,null,null,null,null,null,null,null,null,null,null,null,null,null,null,null,null,null,null,null,null,null,"14:50:00"]
[null,null,null,null,null,null,null,null,null,null,null,null,null,null,null,null,null,null,null,null,null,null,null,null,null,null,null,null,null,null,null,null,"14:55:00"]
[null,null,null,null,null,null,null,null,null,null,null,null,null,null,null,null,null,null,null,null,null,null,null,null,null,null,null,null,null,null,null,null,"15:00:00"]
[null,null,null,null,null,null,null,null,null,null,null,null,null,null,null,null,null,null,null,null,null,null,null,null,null,null,null,null,null,null,null,null,"15:05:00"]
[null,null,null,null,null,null,null,null,null,null,null,null,null,null,null,null,null,null,null,null,null,null,null,null,null,null,null,null,null,null,null,null,"15:10:00"]
[null,null,null,null,null,null,null,null,null,null,null,null,null,null,null,null,null,null,null,null,null,null,null,null,null,null,null,null,null,null,null,null,"15:15:00"]
[null,null,null,null,null,null,null,null,null,null,null,null,null,null,null,null,null,null,null,null,null,null,null,null,null,null,null,null,null,null,null,null,"15:20:00"]
[null,null,null,null,null,null,null,null,null,null,null,null,null,null,null,null,null,null,null,null,null,null,null,null,null,null,null,null,null,null,null,null,"15:25:00"]
[null,null,null,null,null,null,null,null,null,null,null,null,null,null,null,null,null,null,null,null,null,null,null,null,null,null,null,null,null,null,null,null,"15:30:00"]
[null,null,null,null,null,null,null,null,null,null,null,null,null,null,null,null,null,null,null,null,null,null,null,null,null,null,null,null,null,null,null,null,"15:35:00"]
[null,null,null,null,null,null,null,null,null,null,null,null,null,null,null,null,null,null,null,null,null,null,null,null,null,null,null,null,null,null,null,null,"15:40:00"]
[null,null,null,null,null,null,null,null,null,null,null,null,null,null,null,null,null,null,null,null,null,null,null,null,null,null,null,null,null,null,null,null,"15:45:00"]
[null,null,null,null,null,null,null,null,null,null,null,null,null,null,null,null,null,null,null,null,null,null,null,null,null,null,null,null,null,null,null,null,"15:50:00"]
[null,null,null,null,null,null,null,null,null,null,null,null,null,null,null,null,null,null,null,null,null,null,null,null,null,null,null,null,null,null,null,null,"15:55:00"]
[null,null,null,null,null,null,null,null,null,null,null,null,null,null,null,null,null,null,null,null,null,null,null,null,null,null,null,null,null,null,null,null,"16:00:00"]
[null,null,null,null,null,null,null,null,null,null,null,null,null,null,null,null,null,null,null,null,null,null,null,null,null,null,null,null,null,null,null,null,"16:05:00"]
[null,null,null,null,null,null,null,null,null,null,null,null,null,null,null,null,null,null,null,null,null,null,null,null,null,null,null,null,null,null,null,null,"16:10:00"]
[null,null,null,null,null,null,null,null,null,null,null,null,null,null,null,null,null,null,null,null,null,null,null,null,null,null,null,null,null,null,null,null,"16:15:00"]
[null,null,null,null,null,null,null,null,null,null,null,null,null,null,null,null,null,null,null,null,null,null,null,null,null,null,null,null,null,null,null,null,"16:20:00"]
[null,null,null,null,null,null,null,null,null,null,null,null,null,null,null,null,null,null,null,null,null,null,null,null,null,null,null,null,null,null,null,null,"16:25:00"]
[null,null,null,null,null,null,null,null,null,null,null,null,null,null,null,null,null,null,null,null,null,null,null,null,null,null,null,null,null,null,null,null,"16:30:00"]
[null,null,null,null,null,null,null,null,null,null,null,null,null,null,null,null,null,null,null,null,null,null,null,null,null,null,null,null,null,null,null,null,"16:35:00"]
[null,null,null,null,null,null,null,null,null,null,null,null,null,null,null,null,null,null,null,null,null,null,null,null,null,null,null,null,null,null,null,null,"16:40:00"]
[null,null,null,null,null,null,null,null,null,null,null,null,null,null,null,null,null,null,null,null,null,null,null,null,null,null,null,null,null,null,null,null,"16:45:00"]
[null,null,null,null,null,null,null,null,null,null,null,null,null,null,null,null,null,null,null,null,null,null,null,null,null,null,null,null,null,null,null,null,"16:50:00"]
[null,null,null,null,null,null,null,null,null,null,null,null,null,null,null,null,null,null,null,null,null,null,null,null,null,null,null,null,null,null,null,null,"16:55:00"]
[null,null,null,null,null,null,null,null,null,null,null,null,null,null,null,null,null,null,null,null,null,null,null,null,null,null,null,null,null,null,null,null,"17:00:00"]
[null,null,null,null,null,null,null,null,null,null,null,null,null,null,null,null,null,null,null,null,null,null,null,null,null,null,null,null,null,null,null,null,"17:05:00"]
[null,null,null,null,null,null,null,null,null,null,null,null,null,null,null,null,null,null,null,null,null,null,null,null,null,null,null,null,null,null,null,null,"17:10:00"]
[null,null,null,null,null,null,null,null,null,null,null,null,null,null,null,null,null,null,null,null,null,null,null,null,null,null,null,null,null,null,null,null,"17:15:00"]
[null,null,null,null,null,null,null,null,null,null,null,null,null,null,null,null,null,null,null,null,null,null,null,null,null,null,null,null,null,null,null,null,"17:20:00"]
[null,null,null,null,null,null,null,null,null,null,null,null,null,null,null,null,null,null,null,null,null,null,null,null,null,null,null,null,null,null,null,null,"17:25:00"]
[null,null,null,null,null,null,null,null,null,null,null,null,null,null,null,null,null,null,null,null,null,null,null,null,null,null,null,null,null,null,null,null,"17:30:00"]
[null,null,null,null,null,null,null,null,null,null,null,null,null,null,null,null,null,null,null,null,null,null,null,null,null,null,null,null,null,null,null,null,"17:35:00"]
[null,null,null,null,null,null,null,null,null,null,null,null,null,null,null,null,null,null,null,null,null,null,null,null,null,null,null,null,null,null,null,null,"17:40:00"]
[null,null,null,null,null,null,null,null,null,null,null,null,null,null,null,null,null,null,null,null,null,null,null,null,null,null,null,null,null,null,null,null,"17:45:00"]
[null,null,null,null,null,null,null,null,null,null,null,null,null,null,null,null,null,null,null,null,null,null,null,null,null,null,null,null,null,null,null,null,"17:50:00"]
[null,null,null,null,null,null,null,null,null,null,null,null,null,null,null,null,null,null,null,null,null,null,null,null,null,null,null,null,null,null,null,null,"17:55:00"]
[null,null,null,null,null,null,null,null,null,null,null,null,null,null,null,null,null,null,null,null,null,null,null,null,null,null,null,null,null,null,null,null,"18:00:00"]
[null,null,null,null,null,null,null,null,null,null,null,null,null,null,null,null,null,null,null,null,null,null,null,null,null,null,null,null,null,null,null,null,"18:05:00"]
[null,null,null,null,null,null,null,null,null,null,null,null,null,null,null,null,null,null,null,null,null,null,null,null,null,null,null,null,null,null,null,null,"18:10:00"]
[null,null,null,null,null,null,null,null,null,null,null,null,null,null,null,null,null,null,null,null,null,null,null,null,null,null,null,null,null,null,null,null,"18:15:00"]
[null,null,null,null,null,null,null,null,null,null,null,null,null,null,null,null,null,null,null,null,null,null,null,null,null,null,null,null,null,null,null,null,"18:20:00"]
[null,null,null,null,null,null,null,null,null,null,null,null,null,null,null,null,null,null,null,null,null,null,null,null,null,null,null,null,null,null,null,null,"18:25:00"]
[null,null,null,null,null,null,null,null,null,null,null,null,null,null,null,null,null,null,null,null,null,null,null,null,null,null,null,null,null,null,null,null,"18:30:00"]
[null,null,null,null,null,null,null,null,null,null,null,null,null,null,null,null,null,null,null,null,null,null,null,null,null,null,null,null,null,null,null,null,"18:35:00"]
[null,null,null,null,null,null,null,null,null,null,null,null,null,null,null,null,null,null,null,null,null,null,null,null,null,null,null,null,null,null,null,null,"18:40:00"]
[null,null,null,null,null,null,null,null,null,null,null,null,null,null,null,null,null,null,null,null,null,null,null,null,null,null,null,null,null,null,null,null,"18:45:00"]
[null,null,null,null,null,null,null,null,null,null,null,null,null,null,null,null,null,null,null,null,null,null,null,null,null,null,null,null,null,null,null,null,"18:50:00"]
[null,null,null,null,null,null,null,null,null,null,null,null,null,null,null,null,null,null,null,null,null,null,null,null,null,null,null,null,null,null,null,null,"18:55:00"]
[null,null,null,null,null,null,null,null,null,null,null,null,null,null,null,null,null,null,null,null,null,null,null,null,null,null,null,null,null,null,null,null,"19:00:00"]

{"sheet":"シート3-①","index":11,"n_rows":21,"n_cols":32,"rows_kept":21,"cut":false,"hidden":false,"merged":[[9,1,10,2],[9,4,9,8],[9,9,10,10],[9,12,9,15],[9,17,9,20],[2,1,2,28],[5,1,5,2],[5,3,5,28],[6,1,6,2],[6,3,6,28],[12,1,13,2],[12,4,12,20],[12,21,13,23],[12,24,13,28],[13,4,13,20],[9,21,10,23],[9,24,10,28],[10,4,10,8],[10,12,10,15],[10,17,10,20],[19,2,19,8],[19,9,19,28],[20,2,20,8],[20,9,20,28],[15,1,16,8],[15,9,16,28],[17,2,17,8],[17,9,17,28],[18,2,18,8],[18,9,18,28]]}
[null,"研修記録シート3（振り返り）"]
[]
[null,"この振り返りシートは、科目の受講前後で各自の理解度を把握し、受講中の学習効果の向上と、受講後の学習のポイントを焦点化し、継続的な資質向上に役立てるものです。本科目を学習した時点で感じた事を書き留め、今後の学習方針や課題への取り組みを考える際に見返してみましょう。"]
[]
[]
[null,"研修名：",null,"専門研修Ⅱ",null,null,null,null,null,null,null,null,null,null,null,null,null,null,null,null,null,null,null,null,null,null,null,null,null,null,null,"このボタンをクリックするとTOPページへ移動します。"]
[null,"科目名：",null,{"$f":"'シート2-①'!D7:AC7","v":"①介護保険制度及び地域包括ケアシステムの今後の展開"}]
[]
[]
[null,"受講日",null,1,{"$f":"IF(ISBLANK('シート2-①'!E10),\"\",'シート2-①'!E10)","v":""},null,null,null,null,"時間",null,1,{"$f":"IF(ISBLANK('シート2-①'!M10),\"\",'シート2-①'!M10)","v":""},null,null,null,"～",{"$f":"IF(ISBLANK('シート2-①'!R10),\"\",'シート2-①'!R10)","v":""},null,null,null,"氏名",null,null,{"$f":"IF(ISBLANK(シート1!N7),\"\",シート1!N7)","v":""}]
[null,null,null,2,{"$f":"IF(ISBLANK('シート2-①'!E11),\"\",'シート2-①'!E11)","v":""},null,null,null,null,null,null,2,{"$f":"IF(ISBLANK('シート2-①'!M11),\"\",'シート2-①'!M11)","v":""},null,null,null,"～",{"$f":"IF(ISBLANK('シート2-①'!R11),\"\",'シート2-①'!R11)","v":""}]
[]
[null,"会場",null,1,{"$f":"IF(ISBLANK('シート2-①'!E13),\"\",'シート2-①'!E13)","v":""},null,null,null,null,null,null,null,null,null,null,null,null,null,null,null,null,"番号",null,null,{"$f":"IF(ISBLANK(シート1!N9),\"\",シート1!N9)","v":""}]
[null,null,null,2,{"$f":"IF(ISBLANK('シート2-①'!E14),\"\",'シート2-①'!E14)","v":""}]
[]
[null,"項　　目 ",null,null,null,null,null,null,null,"内容"]
[]
[null,"①","あなたのケアマネジメント実践を高めるために得たことは何ですか"]
[null,"②","得たことを実践でどのように活かせそうですか"]
[null,"③","本科目に関連して、あなたが更に学んでいく必要があると考えることは何ですか"]
[null,"④","その他、この科目で感じたことは何ですか"]

{"sheet":"シート3-②-1","index":12,"n_rows":21,"n_cols":32,"rows_kept":21,"cut":false,"hidden":false,"merged":[[9,1,10,2],[9,4,9,8],[9,9,10,10],[9,12,9,15],[9,17,9,20],[2,1,2,28],[5,1,5,2],[5,3,5,28],[6,1,6,2],[6,3,6,28],[12,1,13,2],[12,4,12,20],[12,21,13,23],[12,24,13,28],[13,4,13,20],[9,21,10,23],[9,24,10,28],[10,4,10,8],[10,12,10,15],[10,17,10,20],[19,2,19,8],[19,9,19,28],[20,2,20,8],[20,9,20,28],[15,1,16,8],[15,9,16,28],[17,2,17,8],[17,9,17,28],[18,2,18,8],[18,9,18,28]]}
[null,"研修記録シート3（振り返り）"]
[]
[null,"この振り返りシートは、科目の受講前後で各自の理解度を把握し、受講中の学習効果の向上と、受講後の学習のポイントを焦点化し、継続的な資質向上に役立てるものです。本科目を学習した時点で感じた事を書き留め、今後の学習方針や課題への取り組みを考える際に見返してみましょう。"]
[]
[]
[null,"研修名：",null,"専門研修Ⅱ",null,null,null,null,null,null,null,null,null,null,null,null,null,null,null,null,null,null,null,null,null,null,null,null,null,null,null,"このボタンをクリックするとTOPページへ移動します。"]
[null,"科目名：",null,{"$f":"'シート2-②-1'!D7:AC7","v":"②-1ケアマネジメントにおける実践事例の研究及び発表「リハビリテーション及び福祉用具の活用に関する事例」"}]
[]
[]
[null,"受講日",null,1,{"$f":"IF(ISBLANK('シート2-②-1'!E10),\"\",'シート2-②-1'!E10)","v":""},null,null,null,null,"時間",null,1,{"$f":"IF(ISBLANK('シート2-②-1'!M10),\"\",'シート2-②-1'!M10)","v":""},null,null,null,"～",{"$f":"IF(ISBLANK('シート2-②-1'!R10),\"\",'シート2-②-1'!R10)","v":""},null,null,null,"氏名",null,null,{"$f":"IF(ISBLANK(シート1!N7),\"\",シート1!N7)","v":""}]
[null,null,null,2,{"$f":"IF(ISBLANK('シート2-②-1'!E11),\"\",'シート2-②-1'!E11)","v":""},null,null,null,null,null,null,2,{"$f":"IF(ISBLANK('シート2-②-1'!M11),\"\",'シート2-②-1'!M11)","v":""},null,null,null,"～",{"$f":"IF(ISBLANK('シート2-②-1'!R11),\"\",'シート2-②-1'!R11)","v":""}]
[]
[null,"会場",null,1,{"$f":"IF(ISBLANK('シート2-②-1'!E13),\"\",'シート2-②-1'!E13)","v":""},null,null,null,null,null,null,null,null,null,null,null,null,null,null,null,null,"番号",null,null,{"$f":"IF(ISBLANK(シート1!N9),\"\",シート1!N9)","v":""}]
[null,null,null,2,{"$f":"IF(ISBLANK('シート2-②-1'!E14),\"\",'シート2-②-1'!E14)","v":""}]
[]
[null,"項　　目 ",null,null,null,null,null,null,null,"内容"]
[]
[null,"①","あなたのケアマネジメント実践を高めるために得たことは何ですか"]
[null,"②","得たことを実践でどのように活かせそうですか"]
[null,"③","本科目に関連して、あなたが更に学んでいく必要があると考えることは何ですか"]
[null,"④","その他、この科目で感じたことは何ですか"]

{"sheet":"シート3-②-2","index":13,"n_rows":21,"n_cols":32,"rows_kept":21,"cut":false,"hidden":false,"merged":[[19,2,19,8],[19,9,19,28],[20,2,20,8],[20,9,20,28],[15,1,16,8],[15,9,16,28],[17,2,17,8],[17,9,17,28],[18,2,18,8],[18,9,18,28],[9,21,10,23],[9,24,10,28],[10,4,10,8],[10,12,10,15],[10,17,10,20],[12,1,13,2],[12,4,12,20],[12,21,13,23],[12,24,13,28],[13,4,13,20],[2,1,2,28],[5,1,5,2],[5,3,5,28],[6,1,6,2],[6,3,6,28],[9,1,10,2],[9,4,9,8],[9,9,10,10],[9,12,9,15],[9,17,9,20]]}
[null,"研修記録シート3（振り返り）"]
[]
[null,"この振り返りシートは、科目の受講前後で各自の理解度を把握し、受講中の学習効果の向上と、受講後の学習のポイントを焦点化し、継続的な資質向上に役立てるものです。本科目を学習した時点で感じた事を書き留め、今後の学習方針や課題への取り組みを考える際に見返してみましょう。"]
[]
[]
[null,"研修名：",null,"専門研修Ⅱ",null,null,null,null,null,null,null,null,null,null,null,null,null,null,null,null,null,null,null,null,null,null,null,null,null,null,null,"このボタンをクリックするとTOPページへ移動します。"]
[null,"科目名：",null,{"$f":"'シート2-②-2'!D7:AC7","v":"②-2ケアマネジメントにおける実践事例の研究及び発表「看取り等における看護サービスの活用に関する事例」"}]
[]
[]
[null,"受講日",null,1,{"$f":"IF(ISBLANK('シート2-②-2'!E10),\"\",'シート2-②-2'!E10)","v":""},null,null,null,null,"時間",null,1,{"$f":"IF(ISBLANK('シート2-②-2'!M10),\"\",'シート2-②-2'!M10)","v":""},null,null,null,"～",{"$f":"IF(ISBLANK('シート2-②-2'!R10),\"\",'シート2-②-2'!R10)","v":""},null,null,null,"氏名",null,null,{"$f":"IF(ISBLANK(シート1!N7),\"\",シート1!N7)","v":""}]
[null,null,null,2,{"$f":"IF(ISBLANK('シート2-②-2'!E11),\"\",'シート2-②-2'!E11)","v":""},null,null,null,null,null,null,2,{"$f":"IF(ISBLANK('シート2-②-2'!M11),\"\",'シート2-②-2'!M11)","v":""},null,null,null,"～",{"$f":"IF(ISBLANK('シート2-②-2'!R11),\"\",'シート2-②-2'!R11)","v":""}]
[]
[null,"会場",null,1,{"$f":"IF(ISBLANK('シート2-②-2'!E13),\"\",'シート2-②-2'!E13)","v":""},null,null,null,null,null,null,null,null,null,null,null,null,null,null,null,null,"番号",null,null,{"$f":"IF(ISBLANK(シート1!N9),\"\",シート1!N9)","v":""}]
[null,null,null,2,{"$f":"IF(ISBLANK('シート2-②-2'!E14),\"\",'シート2-②-2'!E14)","v":""}]
[]
[null,"項　　目 ",null,null,null,null,null,null,null,"内容"]
[]
[null,"①","あなたのケアマネジメント実践を高めるために得たことは何ですか"]
[null,"②","得たことを実践でどのように活かせそうですか"]
[null,"③","本科目に関連して、あなたが更に学んでいく必要があると考えることは何ですか"]
[null,"④","その他、この科目で感じたことは何ですか"]

{"sheet":"シート3-②-3","index":14,"n_rows":21,"n_cols":32,"rows_kept":21,"cut":false,"hidden":false,"merged":[[19,2,19,8],[19,9,19,28],[20,2,20,8],[20,9,20,28],[15,1,16,8],[15,9,16,28],[17,2,17,8],[17,9,17,28],[18,2,18,8],[18,9,18,28],[9,21,10,23],[9,24,10,28],[10,4,10,8],[10,12,10,15],[10,17,10,20],[12,1,13,2],[12,4,12,20],[12,21,13,23],[12,24,13,28],[13,4,13,20],[2,1,2,28],[5,1,5,2],[5,3,5,28],[6,1,6,2],[6,3,6,28],[9,1,10,2],[9,4,9,8],[9,9,10,10],[9,12,9,15],[9,17,9,20]]}
[null,"研修記録シート3（振り返り）"]
[]
[null,"この振り返りシートは、科目の受講前後で各自の理解度を把握し、受講中の学習効果の向上と、受講後の学習のポイントを焦点化し、継続的な資質向上に役立てるものです。本科目を学習した時点で感じた事を書き留め、今後の学習方針や課題への取り組みを考える際に見返してみましょう。"]
[]
[]
[null,"研修名：",null,"専門研修Ⅱ",null,null,null,null,null,null,null,null,null,null,null,null,null,null,null,null,null,null,null,null,null,null,null,null,null,null,null,"このボタンをクリックするとTOPページへ移動します。"]
[null,"科目名：",null,{"$f":"'シート2-②-3'!D7:AC7","v":"②-3ケアマネジメントにおける実践事例の研究及び発表「認知症に関する事例」"}]
[]
[]
[null,"受講日",null,1,{"$f":"IF(ISBLANK('シート2-②-3'!E10),\"\",'シート2-②-3'!E10)","v":""},null,null,null,null,"時間",null,1,{"$f":"IF(ISBLANK('シート2-②-3'!M10),\"\",'シート2-②-3'!M10)","v":""},null,null,null,"～",{"$f":"IF(ISBLANK('シート2-②-3'!R10),\"\",'シート2-②-3'!R10)","v":""},null,null,null,"氏名",null,null,{"$f":"IF(ISBLANK(シート1!N7),\"\",シート1!N7)","v":""}]
[null,null,null,2,{"$f":"IF(ISBLANK('シート2-②-3'!E11),\"\",'シート2-②-3'!E11)","v":""},null,null,null,null,null,null,2,{"$f":"IF(ISBLANK('シート2-②-3'!M11),\"\",'シート2-②-3'!M11)","v":""},null,null,null,"～",{"$f":"IF(ISBLANK('シート2-②-3'!R11),\"\",'シート2-②-3'!R11)","v":""}]
[]
[null,"会場",null,1,{"$f":"IF(ISBLANK('シート2-②-3'!E13),\"\",'シート2-②-3'!E13)","v":""},null,null,null,null,null,null,null,null,null,null,null,null,null,null,null,null,"番号",null,null,{"$f":"IF(ISBLANK(シート1!N9),\"\",シート1!N9)","v":""}]
[null,null,null,2,{"$f":"IF(ISBLANK('シート2-②-3'!E14),\"\",'シート2-②-3'!E14)","v":""}]
[]
[null,"項　　目 ",null,null,null,null,null,null,null,"内容"]
[]
[null,"①","あなたのケアマネジメント実践を高めるために得たことは何ですか"]
[null,"②","得たことを実践でどのように活かせそうですか"]
[null,"③","本科目に関連して、あなたが更に学んでいく必要があると考えることは何ですか"]
[null,"④","その他、この科目で感じたことは何ですか"]

{"sheet":"シート3-②-4","index":15,"n_rows":21,"n_cols":32,"rows_kept":21,"cut":false,"hidden":false,"merged":[[19,2,19,8],[19,9,19,28],[20,2,20,8],[20,9,20,28],[15,1,16,8],[15,9,16,28],[17,2,17,8],[17,9,17,28],[18,2,18,8],[18,9,18,28],[9,21,10,23],[9,24,10,28],[10,4,10,8],[10,12,10,15],[10,17,10,20],[12,1,13,2],[12,4,12,20],[12,21,13,23],[12,24,13,28],[13,4,13,20],[2,1,2,28],[5,1,5,2],[5,3,5,28],[6,1,6,2],[6,3,6,28],[9,1,10,2],[9,4,9,8],[9,9,10,10],[9,12,9,15],[9,17,9,20]]}
[null,"研修記録シート3（振り返り）"]
[]
[null,"この振り返りシートは、科目の受講前後で各自の理解度を把握し、受講中の学習効果の向上と、受講後の学習のポイントを焦点化し、継続的な資質向上に役立てるものです。本科目を学習した時点で感じた事を書き留め、今後の学習方針や課題への取り組みを考える際に見返してみましょう。"]
[]
[]
[null,"研修名：",null,"専門研修Ⅱ",null,null,null,null,null,null,null,null,null,null,null,null,null,null,null,null,null,null,null,null,null,null,null,null,null,null,null,"このボタンをクリックするとTOPページへ移動します。"]
[null,"科目名：",null,{"$f":"'シート2-②-4'!D7:AC7","v":"②-4ケアマネジメントにおける実践事例の研究及び発表「入退院時等における医療との連携に関する事例」"}]
[]
[]
[null,"受講日",null,1,{"$f":"IF(ISBLANK('シート2-②-4'!E10),\"\",'シート2-②-4'!E10)","v":""},null,null,null,null,"時間",null,1,{"$f":"IF(ISBLANK('シート2-②-4'!M10),\"\",'シート2-②-4'!M10)","v":""},null,null,null,"～",{"$f":"IF(ISBLANK('シート2-②-4'!R10),\"\",'シート2-②-4'!R10)","v":""},null,null,null,"氏名",null,null,{"$f":"IF(ISBLANK(シート1!N7),\"\",シート1!N7)","v":""}]
[null,null,null,2,{"$f":"IF(ISBLANK('シート2-②-4'!E11),\"\",'シート2-②-4'!E11)","v":""},null,null,null,null,null,null,2,{"$f":"IF(ISBLANK('シート2-②-4'!M11),\"\",'シート2-②-4'!M11)","v":""},null,null,null,"～",{"$f":"IF(ISBLANK('シート2-②-4'!R11),\"\",'シート2-②-4'!R11)","v":""}]
[]
[null,"会場",null,1,{"$f":"IF(ISBLANK('シート2-②-4'!E13),\"\",'シート2-②-4'!E13)","v":""},null,null,null,null,null,null,null,null,null,null,null,null,null,null,null,null,"番号",null,null,{"$f":"IF(ISBLANK(シート1!N9),\"\",シート1!N9)","v":""}]
[null,null,null,2,{"$f":"IF(ISBLANK('シート2-②-4'!E14),\"\",'シート2-②-4'!E14)","v":""}]
[]
[null,"項　　目 ",null,null,null,null,null,null,null,"内容"]
[]
[null,"①","あなたのケアマネジメント実践を高めるために得たことは何ですか"]
[null,"②","得たことを実践でどのように活かせそうですか"]
[null,"③","本科目に関連して、あなたが更に学んでいく必要があると考えることは何ですか"]
[null,"④","その他、この科目で感じたことは何ですか"]

{"sheet":"シート3-②-5","index":16,"n_rows":21,"n_cols":32,"rows_kept":21,"cut":false,"hidden":false,"merged":[[19,2,19,8],[19,9,19,28],[20,2,20,8],[20,9,20,28],[15,1,16,8],[15,9,16,28],[17,2,17,8],[17,9,17,28],[18,2,18,8],[18,9,18,28],[9,21,10,23],[9,24,10,28],[10,4,10,8],[10,12,10,15],[10,17,10,20],[12,1,13,2],[12,4,12,20],[12,21,13,23],[12,24,13,28],[13,4,13,20],[2,1,2,28],[5,1,5,2],[5,3,5,28],[6,1,6,2],[6,3,6,28],[9,1,10,2],[9,4,9,8],[9,9,10,10],[9,12,9,15],[9,17,9,20]]}
[null,"研修記録シート3（振り返り）"]
[]
[null,"この振り返りシートは、科目の受講前後で各自の理解度を把握し、受講中の学習効果の向上と、受講後の学習のポイントを焦点化し、継続的な資質向上に役立てるものです。本科目を学習した時点で感じた事を書き留め、今後の学習方針や課題への取り組みを考える際に見返してみましょう。"]
[]
[]
[null,"研修名：",null,"専門研修Ⅱ",null,null,null,null,null,null,null,null,null,null,null,null,null,null,null,null,null,null,null,null,null,null,null,null,null,null,null,"このボタンをクリックするとTOPページへ移動します。"]
[null,"科目名：",null,{"$f":"'シート2-②-5'!D7:AC7","v":"②-5ケアマネジメントにおける実践事例の研究及び発表「家族への支援の視点が必要な事例」"}]
[]
[]
[null,"受講日",null,1,{"$f":"IF(ISBLANK('シート2-②-5'!E10),\"\",'シート2-②-5'!E10)","v":""},null,null,null,null,"時間",null,1,{"$f":"IF(ISBLANK('シート2-②-5'!M10),\"\",'シート2-②-5'!M10)","v":""},null,null,null,"～",{"$f":"IF(ISBLANK('シート2-②-5'!R10),\"\",'シート2-②-5'!R10)","v":""},null,null,null,"氏名",null,null,{"$f":"IF(ISBLANK(シート1!N7),\"\",シート1!N7)","v":""}]
[null,null,null,2,{"$f":"IF(ISBLANK('シート2-②-5'!E11),\"\",'シート2-②-5'!E11)","v":""},null,null,null,null,null,null,2,{"$f":"IF(ISBLANK('シート2-②-5'!M11),\"\",'シート2-②-5'!M11)","v":""},null,null,null,"～",{"$f":"IF(ISBLANK('シート2-②-5'!R11),\"\",'シート2-②-5'!R11)","v":""}]
[]
[null,"会場",null,1,{"$f":"IF(ISBLANK('シート2-②-5'!E13),\"\",'シート2-②-5'!E13)","v":""},null,null,null,null,null,null,null,null,null,null,null,null,null,null,null,null,"番号",null,null,{"$f":"IF(ISBLANK(シート1!N9),\"\",シート1!N9)","v":""}]
[null,null,null,2,{"$f":"IF(ISBLANK('シート2-②-5'!E14),\"\",'シート2-②-5'!E14)","v":""}]
[]
[null,"項　　目 ",null,null,null,null,null,null,null,"内容"]
[]
[null,"①","あなたのケアマネジメント実践を高めるために得たことは何ですか"]
[null,"②","得たことを実践でどのように活かせそうですか"]
[null,"③","本科目に関連して、あなたが更に学んでいく必要があると考えることは何ですか"]
[null,"④","その他、この科目で感じたことは何ですか"]

{"sheet":"シート3-②-6","index":17,"n_rows":21,"n_cols":32,"rows_kept":21,"cut":false,"hidden":false,"merged":[[19,2,19,8],[19,9,19,28],[20,2,20,8],[20,9,20,28],[15,1,16,8],[15,9,16,28],[17,2,17,8],[17,9,17,28],[18,2,18,8],[18,9,18,28],[9,21,10,23],[9,24,10,28],[10,4,10,8],[10,12,10,15],[10,17,10,20],[12,1,13,2],[12,4,12,20],[12,21,13,23],[12,24,13,28],[13,4,13,20],[2,1,2,28],[5,1,5,2],[5,3,5,28],[6,1,6,2],[6,3,6,28],[9,1,10,2],[9,4,9,8],[9,9,10,10],[9,12,9,15],[9,17,9,20]]}
[null,"研修記録シート3（振り返り）"]
[]
[null,"この振り返りシートは、科目の受講前後で各自の理解度を把握し、受講中の学習効果の向上と、受講後の学習のポイントを焦点化し、継続的な資質向上に役立てるものです。本科目を学習した時点で感じた事を書き留め、今後の学習方針や課題への取り組みを考える際に見返してみましょう。"]
[]
[]
[null,"研修名：",null,"専門研修Ⅱ",null,null,null,null,null,null,null,null,null,null,null,null,null,null,null,null,null,null,null,null,null,null,null,null,null,null,null,"このボタンをクリックするとTOPページへ移動します。"]
[null,"科目名：",null,{"$f":"'シート2-②-6'!D7:AC7","v":"②-6ケアマネジメントにおける実践事例の研究及び発表「社会資源の活用に向けた関係機関との連携に関する事例」"}]
[]
[]
[null,"受講日",null,1,{"$f":"IF(ISBLANK('シート2-②-6'!E10),\"\",'シート2-②-6'!E10)","v":""},null,null,null,null,"時間",null,1,{"$f":"IF(ISBLANK('シート2-②-6'!M10),\"\",'シート2-②-6'!M10)","v":""},null,null,null,"～",{"$f":"IF(ISBLANK('シート2-②-6'!R10),\"\",'シート2-②-6'!R10)","v":""},null,null,null,"氏名",null,null,{"$f":"IF(ISBLANK(シート1!N7),\"\",シート1!N7)","v":""}]
[null,null,null,2,{"$f":"IF(ISBLANK('シート2-②-6'!E11),\"\",'シート2-②-6'!E11)","v":""},null,null,null,null,null,null,2,{"$f":"IF(ISBLANK('シート2-②-6'!M11),\"\",'シート2-②-6'!M11)","v":""},null,null,null,"～",{"$f":"IF(ISBLANK('シート2-②-6'!R11),\"\",'シート2-②-6'!R11)","v":""}]
[]
[null,"会場",null,1,{"$f":"IF(ISBLANK('シート2-②-6'!E13),\"\",'シート2-②-6'!E13)","v":""},null,null,null,null,null,null,null,null,null,null,null,null,null,null,null,null,"番号",null,null,{"$f":"IF(ISBLANK(シート1!N9),\"\",シート1!N9)","v":""}]
[null,null,null,2,{"$f":"IF(ISBLANK('シート2-②-6'!E14),\"\",'シート2-②-6'!E14)","v":""}]
[]
[null,"項　　目 ",null,null,null,null,null,null,null,"内容"]
[]
[null,"①","あなたのケアマネジメント実践を高めるために得たことは何ですか"]
[null,"②","得たことを実践でどのように活かせそうですか"]
[null,"③","本科目に関連して、あなたが更に学んでいく必要があると考えることは何ですか"]
[null,"④","その他、この科目で感じたことは何ですか"]

{"sheet":"シート3-②-7","index":18,"n_rows":21,"n_cols":32,"rows_kept":21,"cut":false,"hidden":false,"merged":[[19,2,19,8],[19,9,19,28],[20,2,20,8],[20,9,20,28],[15,1,16,8],[15,9,16,28],[17,2,17,8],[17,9,17,28],[18,2,18,8],[18,9,18,28],[9,21,10,23],[9,24,10,28],[10,4,10,8],[10,12,10,15],[10,17,10,20],[12,1,13,2],[12,4,12,20],[12,21,13,23],[12,24,13,28],[13,4,13,20],[2,1,2,28],[5,1,5,2],[5,3,5,28],[6,1,6,2],[6,3,6,28],[9,1,10,2],[9,4,9,8],[9,9,10,10],[9,12,9,15],[9,17,9,20]]}
[null,"研修記録シート3（振り返り）"]
[]
[null,"この振り返りシートは、科目の受講前後で各自の理解度を把握し、受講中の学習効果の向上と、受講後の学習のポイントを焦点化し、継続的な資質向上に役立てるものです。本科目を学習した時点で感じた事を書き留め、今後の学習方針や課題への取り組みを考える際に見返してみましょう。"]
[]
[]
[null,"研修名：",null,"専門研修Ⅱ",null,null,null,null,null,null,null,null,null,null,null,null,null,null,null,null,null,null,null,null,null,null,null,null,null,null,null,"このボタンをクリックするとTOPページへ移動します。"]
[null,"科目名：",null,{"$f":"'シート2-②-7'!D7:AC7","v":"②-7ケアマネジメントにおける実践事例の研究及び発表「状態に応じた多様なサービス（地域密着型サービスや施設サービス等）の活用に関する事例」"}]
[]
[]
[null,"受講日",null,1,{"$f":"IF(ISBLANK('シート2-②-7'!E10),\"\",'シート2-②-7'!E10)","v":""},null,null,null,null,"時間",null,1,{"$f":"IF(ISBLANK('シート2-②-7'!M10),\"\",'シート2-②-7'!M10)","v":""},null,null,null,"～",{"$f":"IF(ISBLANK('シート2-②-7'!R10),\"\",'シート2-②-7'!R10)","v":""},null,null,null,"氏名",null,null,{"$f":"IF(ISBLANK(シート1!N7),\"\",シート1!N7)","v":""}]
[null,null,null,2,{"$f":"IF(ISBLANK('シート2-②-7'!E11),\"\",'シート2-②-7'!E11)","v":""},null,null,null,null,null,null,2,{"$f":"IF(ISBLANK('シート2-②-7'!M11),\"\",'シート2-②-7'!M11)","v":""},null,null,null,"～",{"$f":"IF(ISBLANK('シート2-②-7'!R11),\"\",'シート2-②-7'!R11)","v":""}]
[]
[null,"会場",null,1,{"$f":"IF(ISBLANK('シート2-②-7'!E13),\"\",'シート2-②-7'!E13)","v":""},null,null,null,null,null,null,null,null,null,null,null,null,null,null,null,null,"番号",null,null,{"$f":"IF(ISBLANK(シート1!N9),\"\",シート1!N9)","v":""}]
[null,null,null,2,{"$f":"IF(ISBLANK('シート2-②-7'!E14),\"\",'シート2-②-7'!E14)","v":""}]
[]
[null,"項　　目 ",null,null,null,null,null,null,null,"内容"]
[]
[null,"①","あなたのケアマネジメント実践を高めるために得たことは何ですか"]
[null,"②","得たことを実践でどのように活かせそうですか"]
[null,"③","本科目に関連して、あなたが更に学んでいく必要があると考えることは何ですか"]
[null,"④","その他、この科目で感じたことは何ですか"]

{"sheet":"集計用シート（専門Ⅱ）","index":19,"n_rows":53,"n_cols":70,"rows_kept":53,"cut":false,"hidden":false,"merged":[[1,2,1,8],[1,9,1,15],[1,16,1,22],[7,57,7,69],[22,2,22,13],[22,14,22,17],[7,15,7,28],[7,29,7,42],[7,43,7,56],[7,2,7,13]]}
["集計データ（研修記録シート1）",null,null,null,null,"転記日"]
[null,null,"基本情報",null,null,null,null,null,null,"受講前",null,null,null,null,null,null,"受講後（3ヶ月後）"]
["集計用","転記日","課程区分","科目区分","日程\n（始点）","日程\n（終点）","会場","氏名","受講番号","受講者\n入力日\n【受講前】","受講者\n記入欄\n【受講前】","管理者\n入力日\n【受講前】","氏名\n（管理者）\n【受講前】","所属\n（管理者）\n【受講前】","役職\n（管理者）\n【受講前】","管理者\n記入欄\n【受講前】","受講者\n入力日\n【3ヶ月後】","受講者\n記入欄\n【3ヶ月後】","管理者\n入力日\n【3ヶ月後】","氏名\n（管理者）\n【3ヶ月後】","所属\n（管理者）\n【3ヶ月後】","役職\n（管理者）\n【3ヶ月後】","管理者\n記入欄\n【3ヶ月後】"]
["シート1",{"$f":"IF(ISBLANK(G1),\"\",G1)","v":""},{"$f":"IF(ISBLANK(シート1!E5),\"\",シート1!E5)","v":"専門Ⅱ"},"-",{"$f":"IF(ISBLANK(シート1!D7),\"\",シート1!D7)","v":""},{"$f":"IF(ISBLANK(シート1!H7),\"\",シート1!H7)","v":""},{"$f":"IF(ISBLANK(シート1!D9),\"\",シート1!D9)","v":""},{"$f":"IF(ISBLANK(シート1!N7),\"\",シート1!N7)","v":""},{"$f":"IF(ISBLANK(シート1!N9),\"\",シート1!N9)","v":""},{"$f":"IF(ISBLANK(シート1!D14),\"\",シート1!D14)","v":""},{"$f":"IF(ISBLANK(シート1!B16),\"\",シート1!B16)","v":""},{"$f":"IF(ISBLANK(シート1!D27),\"\",シート1!D27)","v":""},{"$f":"IF(ISBLANK(シート1!D25),\"\",シート1!D25)","v":""},{"$f":"IF(ISBLANK(シート1!I25),\"\",シート1!I25)","v":""},{"$f":"IF(ISBLANK(シート1!I27),\"\",シート1!I27)","v":""},{"$f":"IF(ISBLANK(シート1!B29),\"\",シート1!B29)","v":""},{"$f":"IF(ISBLANK(シート1!D39),\"\",シート1!D39)","v":""},{"$f":"IF(ISBLANK(シート1!B41),\"\",シート1!B41)","v":""},{"$f":"IF(ISBLANK(シート1!D52),\"\",シート1!D52)","v":""},{"$f":"IF(ISBLANK(シート1!D50),\"\",シート1!D50)","v":""},{"$f":"IF(ISBLANK(シート1!I50),\"\",シート1!I50)","v":""},{"$f":"IF(ISBLANK(シート1!I52),\"\",シート1!I52)","v":""},{"$f":"IF(ISBLANK(シート1!B54),\"\",シート1!B54)","v":""}]
[]
[]
["集計データ（研修記録シート2）",null,null,null,null,"転記日"]
[null,null,"基本情報",null,null,null,null,null,null,null,null,null,null,null,null,"受講前",null,null,null,null,null,null,null,null,null,null,null,null,null,"受講後",null,null,null,null,null,null,null,null,null,null,null,null,null,"実践評価（3ヶ月後）",null,null,null,null,null,null,null,null,null,null,null,null,null,"備考"]
["集計用","転記日","課程区分","科目区分","受講日1","時間1\n（始点）","時間2\n（終点）","受講日2","時間2\n（始点）","時間2\n（終点）","会場1","会場2","氏名","受講番号","評価\n項目数","入力日","理解度①","理解度②","理解度③","理解度④","理解度⑤","理解度⑥","理解度⑦","理解度⑧","理解度⑨","理解度⑩","理解度⑪","理解度⑫","理解度⑬","入力日","理解度①","理解度②","理解度③","理解度④","理解度⑤","理解度⑥","理解度⑦","理解度⑧","理解度⑨","理解度⑩","理解度⑪","理解度⑫","理解度⑬","入力日","理解度①","理解度②","理解度③","理解度④","理解度⑤","理解度⑥","理解度⑦","理解度⑧","理解度⑨","理解度⑩","理解度⑪","理解度⑫","理解度⑬","備考①","備考②","備考③","備考④","備考⑤","備考⑥","備考⑦","備考⑧","備考⑨","備考⑩","備考⑪","備考⑫","備考⑬"]
["シート2",{"$f":"IF(ISBLANK(G7),\"\",G7)","v":""},"専門Ⅱ",1,{"$f":"IF(ISBLANK('シート2-①'!E10),\"\",'シート2-①'!E10)","v":""},{"$f":"IF(ISBLANK('シート2-①'!M10),\"\",'シート2-①'!M10)","v":""},{"$f":"IF(ISBLANK('シート2-①'!R10),\"\",'シート2-①'!R10)","v":""},{"$f":"IF(ISBLANK('シート2-①'!E11),\"\",'シート2-①'!E11)","v":""},{"$f":"IF(ISBLANK('シート2-①'!M11),\"\",'シート2-①'!M11)","v":""},{"$f":"IF(ISBLANK('シート2-①'!R11),\"\",'シート2-①'!R11)","v":""},{"$f":"IF(ISBLANK('シート2-①'!E13),\"\",'シート2-①'!E13)","v":""},{"$f":"IF(ISBLANK('シート2-①'!E14),\"\",'シート2-①'!E14)","v":""},{"$f":"IF(ISBLANK('シート2-①'!Y10),\"\",'シート2-①'!Y10)","v":""},{"$f":"IF(ISBLANK('シート2-①'!Y13),\"\",'シート2-①'!Y13)","v":""},9,{"$f":"IF(ISBLANK('シート2-①'!P18),\"\",'シート2-①'!P18)","v":""},{"$f":"IF(ISBLANK('シート2-①'!P19),\"\",'シート2-①'!P19)","v":""},{"$f":"IF(ISBLANK('シート2-①'!P20),\"\",'シート2-①'!P20)","v":""},{"$f":"IF(ISBLANK('シート2-①'!P21),\"\",'シート2-①'!P21)","v":""},{"$f":"IF(ISBLANK('シート2-①'!P22),\"\",'シート2-①'!P22)","v":""},{"$f":"IF(ISBLANK('シート2-①'!P23),\"\",'シート2-①'!P23)","v":""},{"$f":"IF(ISBLANK('シート2-①'!#REF!),\"\",'シート2-①'!#REF!)","v":{"$error":"#REF!"}},{"$f":"IF(ISBLANK('シート2-①'!#REF!),\"\",'シート2-①'!#REF!)","v":{"$error":"#REF!"}},{"$f":"IF(ISBLANK('シート2-①'!#REF!),\"\",'シート2-①'!#REF!)","v":{"$error":"#REF!"}},{"$f":"IF(ISBLANK('シート2-①'!#REF!),\"\",'シート2-①'!#REF!)","v":{"$error":"#REF!"}},{"$f":"IF(ISBLANK('シート2-①'!P29),\"\",'シート2-①'!P29)","v":""},{"$f":"IF(ISBLANK('シート2-①'!P30),\"\",'シート2-①'!P30)","v":""},{"$f":"IF(ISBLANK('シート2-①'!P31),\"\",'シート2-①'!P31)","v":""},{"$f":"IF(ISBLANK('シート2-①'!P32),\"\",'シート2-①'!P32)","v":""},{"$f":"IF(ISBLANK('シート2-①'!S18),\"\",'シート2-①'!S18)","v":""},{"$f":"IF(ISBLANK('シート2-①'!S19),\"\",'シート2-①'!S19)","v":""},{"$f":"IF(ISBLANK('シート2-①'!S20),\"\",'シート2-①'!S20)","v":""},{"$f":"IF(ISBLANK('シート2-①'!S21),\"\",'シート2-①'!S21)","v":""},{"$f":"IF(ISBLANK('シート2-①'!S22),\"\",'シート2-①'!S22)","v":""},{"$f":"IF(ISBLANK('シート2-①'!S23),\"\",'シート2-①'!S23)","v":""},{"$f":"IF(ISBLANK('シート2-①'!#REF!),\"\",'シート2-①'!#REF!)","v":{"$error":"#REF!"}},{"$f":"IF(ISBLANK('シート2-①'!#REF!),\"\",'シート2-①'!#REF!)","v":{"$error":"#REF!"}},{"$f":"IF(ISBLANK('シート2-①'!#REF!),\"\",'シート2-①'!#REF!)","v":{"$error":"#REF!"}},{"$f":"IF(ISBLANK('シート2-①'!#REF!),\"\",'シート2-①'!#REF!)","v":{"$error":"#REF!"}},{"$f":"IF(ISBLANK('シート2-①'!S29),\"\",'シート2-①'!S29)","v":""},{"$f":"IF(ISBLANK('シート2-①'!S30),\"\",'シート2-①'!S30)","v":""},{"$f":"IF(ISBLANK('シート2-①'!S31),\"\",'シート2-①'!S31)","v":""},{"$f":"IF(ISBLANK('シート2-①'!S32),\"\",'シート2-①'!S32)","v":""},{"$f":"IF(ISBLANK('シート2-①'!V18),\"\",'シート2-①'!V18)","v":""},{"$f":"IF(ISBLANK('シート2-①'!V19),\"\",'シート2-①'!V19)","v":""},{"$f":"IF(ISBLANK('シート2-①'!V20),\"\",'シート2-①'!V20)","v":""},{"$f":"IF(ISBLANK('シート2-①'!V21),\"\",'シート2-①'!V21)","v":""},{"$f":"IF(ISBLANK('シート2-①'!V22),\"\",'シート2-①'!V22)","v":""},{"$f":"IF(ISBLANK('シート2-①'!V23),\"\",'シート2-①'!V23)","v":""},{"$f":"IF(ISBLANK('シート2-①'!#REF!),\"\",'シート2-①'!#REF!)","v":{"$error":"#REF!"}},{"$f":"IF(ISBLANK('シート2-①'!#REF!),\"\",'シート2-①'!#REF!)","v":{"$error":"#REF!"}},{"$f":"IF(ISBLANK('シート2-①'!#REF!),\"\",'シート2-①'!#REF!)","v":{"$error":"#REF!"}},{"$f":"IF(ISBLANK('シート2-①'!#REF!),\"\",'シート2-①'!#REF!)","v":{"$error":"#REF!"}},{"$f":"IF(ISBLANK('シート2-①'!V29),\"\",'シート2-①'!V29)","v":""},{"$f":"IF(ISBLANK('シート2-①'!V30),\"\",'シート2-①'!V30)","v":""},{"$f":"IF(ISBLANK('シート2-①'!V31),\"\",'シート2-①'!V31)","v":""},{"$f":"IF(ISBLANK('シート2-①'!V32),\"\",'シート2-①'!V32)","v":""},{"$f":"IF(ISBLANK('シート2-①'!Y19),\"\",'シート2-①'!Y19)","v":""},{"$f":"IF(ISBLANK('シート2-①'!Y20),\"\",'シート2-①'!Y20)","v":""},{"$f":"IF(ISBLANK('シート2-①'!Y21),\"\",'シート2-①'!Y21)","v":""},{"$f":"IF(ISBLANK('シート2-①'!Y22),\"\",'シート2-①'!Y22)","v":""},{"$f":"IF(ISBLANK('シート2-①'!Y23),\"\",'シート2-①'!Y23)","v":""},{"$f":"IF(ISBLANK('シート2-①'!#REF!),\"\",'シート2-①'!#REF!)","v":{"$error":"#REF!"}},{"$f":"IF(ISBLANK('シート2-①'!#REF!),\"\",'シート2-①'!#REF!)","v":{"$error":"#REF!"}},{"$f":"IF(ISBLANK('シート2-①'!#REF!),\"\",'シート2-①'!#REF!)","v":{"$error":"#REF!"}},{"$f":"IF(ISBLANK('シート2-①'!#REF!),\"\",'シート2-①'!#REF!)","v":{"$error":"#REF!"}},{"$f":"IF(ISBLANK('シート2-①'!Y29),\"\",'シート2-①'!Y29)","v":""},{"$f":"IF(ISBLANK('シート2-①'!Y30),\"\",'シート2-①'!Y30)","v":""},{"$f":"IF(ISBLANK('シート2-①'!Y31),\"\",'シート2-①'!Y31)","v":""},{"$f":"IF(ISBLANK('シート2-①'!Y32),\"\",'シート2-①'!Y32)","v":""}]
["シート2",{"$f":"IF(ISBLANK(G7),\"\",G7)","v":""},"専門Ⅱ","2-1",{"$f":"IF(ISBLANK('シート2-②-1'!E10),\"\",'シート2-②-1'!E10)","v":""},{"$f":"IF(ISBLANK('シート2-②-1'!M10),\"\",'シート2-②-1'!M10)","v":""},{"$f":"IF(ISBLANK('シート2-②-1'!R10),\"\",'シート2-②-1'!R10)","v":""},{"$f":"IF(ISBLANK('シート2-②-1'!E11),\"\",'シート2-②-1'!E11)","v":""},{"$f":"IF(ISBLANK('シート2-②-1'!M11),\"\",'シート2-②-1'!M11)","v":""},{"$f":"IF(ISBLANK('シート2-②-1'!R11),\"\",'シート2-②-1'!R11)","v":""},{"$f":"IF(ISBLANK('シート2-②-1'!E13),\"\",'シート2-②-1'!E13)","v":""},{"$f":"IF(ISBLANK('シート2-②-1'!E14),\"\",'シート2-②-1'!E14)","v":""},{"$f":"IF(ISBLANK('シート2-②-1'!Y10),\"\",'シート2-②-1'!Y10)","v":""},{"$f":"IF(ISBLANK('シート2-②-1'!Y13),\"\",'シート2-②-1'!Y13)","v":""},6,{"$f":"IF(ISBLANK('シート2-②-1'!P18),\"\",'シート2-②-1'!P18)","v":""},{"$f":"IF(ISBLANK('シート2-②-1'!P19),\"\",'シート2-②-1'!P19)","v":""},{"$f":"IF(ISBLANK('シート2-②-1'!P20),\"\",'シート2-②-1'!P20)","v":""},{"$f":"IF(ISBLANK('シート2-②-1'!P21),\"\",'シート2-②-1'!P21)","v":""},{"$f":"IF(ISBLANK('シート2-②-1'!P22),\"\",'シート2-②-1'!P22)","v":""},{"$f":"IF(ISBLANK('シート2-②-1'!P23),\"\",'シート2-②-1'!P23)","v":""},{"$f":"IF(ISBLANK('シート2-②-1'!#REF!),\"\",'シート2-②-1'!#REF!)","v":{"$error":"#REF!"}},{"$f":"IF(ISBLANK('シート2-②-1'!P24),\"\",'シート2-②-1'!P24)","v":""},{"$f":"IF(ISBLANK('シート2-②-1'!#REF!),\"\",'シート2-②-1'!#REF!)","v":{"$error":"#REF!"}},{"$f":"IF(ISBLANK('シート2-②-1'!#REF!),\"\",'シート2-②-1'!#REF!)","v":{"$error":"#REF!"}},{"$f":"IF(ISBLANK('シート2-②-1'!#REF!),\"\",'シート2-②-1'!#REF!)","v":{"$error":"#REF!"}},{"$f":"IF(ISBLANK('シート2-②-1'!#REF!),\"\",'シート2-②-1'!#REF!)","v":{"$error":"#REF!"}},{"$f":"IF(ISBLANK('シート2-②-1'!#REF!),\"\",'シート2-②-1'!#REF!)","v":{"$error":"#REF!"}},{"$f":"IF(ISBLANK('シート2-②-1'!#REF!),\"\",'シート2-②-1'!#REF!)","v":{"$error":"#REF!"}},{"$f":"IF(ISBLANK('シート2-②-1'!S18),\"\",'シート2-②-1'!S18)","v":""},{"$f":"IF(ISBLANK('シート2-②-1'!S19),\"\",'シート2-②-1'!S19)","v":""},{"$f":"IF(ISBLANK('シート2-②-1'!S20),\"\",'シート2-②-1'!S20)","v":""},{"$f":"IF(ISBLANK('シート2-②-1'!S21),\"\",'シート2-②-1'!S21)","v":""},{"$f":"IF(ISBLANK('シート2-②-1'!S22),\"\",'シート2-②-1'!S22)","v":""},{"$f":"IF(ISBLANK('シート2-②-1'!S23),\"\",'シート2-②-1'!S23)","v":""},{"$f":"IF(ISBLANK('シート2-②-1'!#REF!),\"\",'シート2-②-1'!#REF!)","v":{"$error":"#REF!"}},{"$f":"IF(ISBLANK('シート2-②-1'!S24),\"\",'シート2-②-1'!S24)","v":""},{"$f":"IF(ISBLANK('シート2-②-1'!#REF!),\"\",'シート2-②-1'!#REF!)","v":{"$error":"#REF!"}},{"$f":"IF(ISBLANK('シート2-②-1'!#REF!),\"\",'シート2-②-1'!#REF!)","v":{"$error":"#REF!"}},{"$f":"IF(ISBLANK('シート2-②-1'!#REF!),\"\",'シート2-②-1'!#REF!)","v":{"$error":"#REF!"}},{"$f":"IF(ISBLANK('シート2-②-1'!#REF!),\"\",'シート2-②-1'!#REF!)","v":{"$error":"#REF!"}},{"$f":"IF(ISBLANK('シート2-②-1'!#REF!),\"\",'シート2-②-1'!#REF!)","v":{"$error":"#REF!"}},{"$f":"IF(ISBLANK('シート2-②-1'!#REF!),\"\",'シート2-②-1'!#REF!)","v":{"$error":"#REF!"}},{"$f":"IF(ISBLANK('シート2-②-1'!V18),\"\",'シート2-②-1'!V18)","v":""},{"$f":"IF(ISBLANK('シート2-②-1'!V19),\"\",'シート2-②-1'!V19)","v":""},{"$f":"IF(ISBLANK('シート2-②-1'!V20),\"\",'シート2-②-1'!V20)","v":""},{"$f":"IF(ISBLANK('シート2-②-1'!V21),\"\",'シート2-②-1'!V21)","v":""},{"$f":"IF(ISBLANK('シート2-②-1'!V22),\"\",'シート2-②-1'!V22)","v":""},{"$f":"IF(ISBLANK('シート2-②-1'!V23),\"\",'シート2-②-1'!V23)","v":""},{"$f":"IF(ISBLANK('シート2-②-1'!#REF!),\"\",'シート2-②-1'!#REF!)","v":{"$error":"#REF!"}},{"$f":"IF(ISBLANK('シート2-②-1'!V24),\"\",'シート2-②-1'!V24)","v":""},{"$f":"IF(ISBLANK('シート2-②-1'!#REF!),\"\",'シート2-②-1'!#REF!)","v":{"$error":"#REF!"}},{"$f":"IF(ISBLANK('シート2-②-1'!#REF!),\"\",'シート2-②-1'!#REF!)","v":{"$error":"#REF!"}},{"$f":"IF(ISBLANK('シート2-②-1'!#REF!),\"\",'シート2-②-1'!#REF!)","v":{"$error":"#REF!"}},{"$f":"IF(ISBLANK('シート2-②-1'!#REF!),\"\",'シート2-②-1'!#REF!)","v":{"$error":"#REF!"}},{"$f":"IF(ISBLANK('シート2-②-1'!#REF!),\"\",'シート2-②-1'!#REF!)","v":{"$error":"#REF!"}},{"$f":"IF(ISBLANK('シート2-②-1'!#REF!),\"\",'シート2-②-1'!#REF!)","v":{"$error":"#REF!"}},{"$f":"IF(ISBLANK('シート2-②-1'!Y19),\"\",'シート2-②-1'!Y19)","v":""},{"$f":"IF(ISBLANK('シート2-②-1'!Y20),\"\",'シート2-②-1'!Y20)","v":""},{"$f":"IF(ISBLANK('シート2-②-1'!Y21),\"\",'シート2-②-1'!Y21)","v":""},{"$f":"IF(ISBLANK('シート2-②-1'!Y22),\"\",'シート2-②-1'!Y22)","v":""},{"$f":"IF(ISBLANK('シート2-②-1'!Y23),\"\",'シート2-②-1'!Y23)","v":""},{"$f":"IF(ISBLANK('シート2-②-1'!#REF!),\"\",'シート2-②-1'!#REF!)","v":{"$error":"#REF!"}},{"$f":"IF(ISBLANK('シート2-②-1'!Y24),\"\",'シート2-②-1'!Y24)","v":""},{"$f":"IF(ISBLANK('シート2-②-1'!#REF!),\"\",'シート2-②-1'!#REF!)","v":{"$error":"#REF!"}},{"$f":"IF(ISBLANK('シート2-②-1'!#REF!),\"\",'シート2-②-1'!#REF!)","v":{"$error":"#REF!"}},{"$f":"IF(ISBLANK('シート2-②-1'!#REF!),\"\",'シート2-②-1'!#REF!)","v":{"$error":"#REF!"}},{"$f":"IF(ISBLANK('シート2-②-1'!#REF!),\"\",'シート2-②-1'!#REF!)","v":{"$error":"#REF!"}},{"$f":"IF(ISBLANK('シート2-②-1'!#REF!),\"\",'シート2-②-1'!#REF!)","v":{"$error":"#REF!"}},{"$f":"IF(ISBLANK('シート2-②-1'!#REF!),\"\",'シート2-②-1'!#REF!)","v":{"$error":"#REF!"}}]
["シート2",{"$f":"IF(ISBLANK(G7),\"\",G7)","v":""},"専門Ⅱ","2-2",{"$f":"IF(ISBLANK('シート2-②-2'!E10),\"\",'シート2-②-2'!E10)","v":""},{"$f":"IF(ISBLANK('シート2-②-2'!M10),\"\",'シート2-②-2'!M10)","v":""},{"$f":"IF(ISBLANK('シート2-②-2'!R10),\"\",'シート2-②-2'!R10)","v":""},{"$f":"IF(ISBLANK('シート2-②-2'!E11),\"\",'シート2-②-2'!E11)","v":""},{"$f":"IF(ISBLANK('シート2-②-2'!M11),\"\",'シート2-②-2'!M11)","v":""},{"$f":"IF(ISBLANK('シート2-②-2'!R11),\"\",'シート2-②-2'!R11)","v":""},{"$f":"IF(ISBLANK('シート2-②-2'!E13),\"\",'シート2-②-2'!E13)","v":""},{"$f":"IF(ISBLANK('シート2-②-2'!E14),\"\",'シート2-②-2'!E14)","v":""},{"$f":"IF(ISBLANK('シート2-②-2'!Y10),\"\",'シート2-②-2'!Y10)","v":""},{"$f":"IF(ISBLANK('シート2-②-2'!Y13),\"\",'シート2-②-2'!Y13)","v":""},6,{"$f":"IF(ISBLANK('シート2-②-2'!P18),\"\",'シート2-②-2'!P18)","v":""},{"$f":"IF(ISBLANK('シート2-②-2'!P19),\"\",'シート2-②-2'!P19)","v":""},{"$f":"IF(ISBLANK('シート2-②-2'!P20),\"\",'シート2-②-2'!P20)","v":""},{"$f":"IF(ISBLANK('シート2-②-2'!P21),\"\",'シート2-②-2'!P21)","v":""},{"$f":"IF(ISBLANK('シート2-②-2'!P22),\"\",'シート2-②-2'!P22)","v":""},{"$f":"IF(ISBLANK('シート2-②-2'!P23),\"\",'シート2-②-2'!P23)","v":""},{"$f":"IF(ISBLANK('シート2-②-2'!#REF!),\"\",'シート2-②-2'!#REF!)","v":{"$error":"#REF!"}},{"$f":"IF(ISBLANK('シート2-②-2'!P24),\"\",'シート2-②-2'!P24)","v":""},{"$f":"IF(ISBLANK('シート2-②-2'!#REF!),\"\",'シート2-②-2'!#REF!)","v":{"$error":"#REF!"}},{"$f":"IF(ISBLANK('シート2-②-2'!#REF!),\"\",'シート2-②-2'!#REF!)","v":{"$error":"#REF!"}},{"$f":"IF(ISBLANK('シート2-②-2'!P25),\"\",'シート2-②-2'!P25)","v":""},{"$f":"IF(ISBLANK('シート2-②-2'!P26),\"\",'シート2-②-2'!P26)","v":""},{"$f":"IF(ISBLANK('シート2-②-2'!P27),\"\",'シート2-②-2'!P27)","v":""},{"$f":"IF(ISBLANK('シート2-②-2'!P28),\"\",'シート2-②-2'!P28)","v":""},{"$f":"IF(ISBLANK('シート2-②-2'!S18),\"\",'シート2-②-2'!S18)","v":""},{"$f":"IF(ISBLANK('シート2-②-2'!S19),\"\",'シート2-②-2'!S19)","v":""},{"$f":"IF(ISBLANK('シート2-②-2'!S20),\"\",'シート2-②-2'!S20)","v":""},{"$f":"IF(ISBLANK('シート2-②-2'!S21),\"\",'シート2-②-2'!S21)","v":""},{"$f":"IF(ISBLANK('シート2-②-2'!S22),\"\",'シート2-②-2'!S22)","v":""},{"$f":"IF(ISBLANK('シート2-②-2'!S23),\"\",'シート2-②-2'!S23)","v":""},{"$f":"IF(ISBLANK('シート2-②-2'!#REF!),\"\",'シート2-②-2'!#REF!)","v":{"$error":"#REF!"}},{"$f":"IF(ISBLANK('シート2-②-2'!S24),\"\",'シート2-②-2'!S24)","v":""},{"$f":"IF(ISBLANK('シート2-②-2'!#REF!),\"\",'シート2-②-2'!#REF!)","v":{"$error":"#REF!"}},{"$f":"IF(ISBLANK('シート2-②-2'!#REF!),\"\",'シート2-②-2'!#REF!)","v":{"$error":"#REF!"}},{"$f":"IF(ISBLANK('シート2-②-2'!S25),\"\",'シート2-②-2'!S25)","v":""},{"$f":"IF(ISBLANK('シート2-②-2'!S26),\"\",'シート2-②-2'!S26)","v":""},{"$f":"IF(ISBLANK('シート2-②-2'!S27),\"\",'シート2-②-2'!S27)","v":""},{"$f":"IF(ISBLANK('シート2-②-2'!S28),\"\",'シート2-②-2'!S28)","v":""},{"$f":"IF(ISBLANK('シート2-②-2'!V18),\"\",'シート2-②-2'!V18)","v":""},{"$f":"IF(ISBLANK('シート2-②-2'!V19),\"\",'シート2-②-2'!V19)","v":""},{"$f":"IF(ISBLANK('シート2-②-2'!V20),\"\",'シート2-②-2'!V20)","v":""},{"$f":"IF(ISBLANK('シート2-②-2'!V21),\"\",'シート2-②-2'!V21)","v":""},{"$f":"IF(ISBLANK('シート2-②-2'!V22),\"\",'シート2-②-2'!V22)","v":""},{"$f":"IF(ISBLANK('シート2-②-2'!V23),\"\",'シート2-②-2'!V23)","v":""},{"$f":"IF(ISBLANK('シート2-②-2'!#REF!),\"\",'シート2-②-2'!#REF!)","v":{"$error":"#REF!"}},{"$f":"IF(ISBLANK('シート2-②-2'!V24),\"\",'シート2-②-2'!V24)","v":""},{"$f":"IF(ISBLANK('シート2-②-2'!#REF!),\"\",'シート2-②-2'!#REF!)","v":{"$error":"#REF!"}},{"$f":"IF(ISBLANK('シート2-②-2'!#REF!),\"\",'シート2-②-2'!#REF!)","v":{"$error":"#REF!"}},{"$f":"IF(ISBLANK('シート2-②-2'!V25),\"\",'シート2-②-2'!V25)","v":""},{"$f":"IF(ISBLANK('シート2-②-2'!V26),\"\",'シート2-②-2'!V26)","v":""},{"$f":"IF(ISBLANK('シート2-②-2'!V27),\"\",'シート2-②-2'!V27)","v":""},{"$f":"IF(ISBLANK('シート2-②-2'!V28),\"\",'シート2-②-2'!V28)","v":""},{"$f":"IF(ISBLANK('シート2-②-2'!Y19),\"\",'シート2-②-2'!Y19)","v":""},{"$f":"IF(ISBLANK('シート2-②-2'!Y20),\"\",'シート2-②-2'!Y20)","v":""},{"$f":"IF(ISBLANK('シート2-②-2'!Y21),\"\",'シート2-②-2'!Y21)","v":""},{"$f":"IF(ISBLANK('シート2-②-2'!Y22),\"\",'シート2-②-2'!Y22)","v":""},{"$f":"IF(ISBLANK('シート2-②-2'!Y23),\"\",'シート2-②-2'!Y23)","v":""},{"$f":"IF(ISBLANK('シート2-②-2'!#REF!),\"\",'シート2-②-2'!#REF!)","v":{"$error":"#REF!"}},{"$f":"IF(ISBLANK('シート2-②-2'!Y24),\"\",'シート2-②-2'!Y24)","v":""},{"$f":"IF(ISBLANK('シート2-②-2'!#REF!),\"\",'シート2-②-2'!#REF!)","v":{"$error":"#REF!"}},{"$f":"IF(ISBLANK('シート2-②-2'!#REF!),\"\",'シート2-②-2'!#REF!)","v":{"$error":"#REF!"}},{"$f":"IF(ISBLANK('シート2-②-2'!Y25),\"\",'シート2-②-2'!Y25)","v":""},{"$f":"IF(ISBLANK('シート2-②-2'!Y26),\"\",'シート2-②-2'!Y26)","v":""},{"$f":"IF(ISBLANK('シート2-②-2'!Y27),\"\",'シート2-②-2'!Y27)","v":""},{"$f":"IF(ISBLANK('シート2-②-2'!Y28),\"\",'シート2-②-2'!Y28)","v":""}]
["シート2",{"$f":"IF(ISBLANK(G7),\"\",G7)","v":""},"専門Ⅱ","2-3",{"$f":"IF(ISBLANK('シート2-②-3'!E10),\"\",'シート2-②-3'!E10)","v":""},{"$f":"IF(ISBLANK('シート2-②-3'!M10),\"\",'シート2-②-3'!M10)","v":""},{"$f":"IF(ISBLANK('シート2-②-3'!R10),\"\",'シート2-②-3'!R10)","v":""},{"$f":"IF(ISBLANK('シート2-②-3'!E11),\"\",'シート2-②-3'!E11)","v":""},{"$f":"IF(ISBLANK('シート2-②-3'!M11),\"\",'シート2-②-3'!M11)","v":""},{"$f":"IF(ISBLANK('シート2-②-3'!R11),\"\",'シート2-②-3'!R11)","v":""},{"$f":"IF(ISBLANK('シート2-②-3'!E13),\"\",'シート2-②-3'!E13)","v":""},{"$f":"IF(ISBLANK('シート2-②-3'!E14),\"\",'シート2-②-3'!E14)","v":""},{"$f":"IF(ISBLANK('シート2-②-3'!Y10),\"\",'シート2-②-3'!Y10)","v":""},{"$f":"IF(ISBLANK('シート2-②-3'!Y13),\"\",'シート2-②-3'!Y13)","v":""},5,{"$f":"IF(ISBLANK('シート2-②-3'!P18),\"\",'シート2-②-3'!P18)","v":""},{"$f":"IF(ISBLANK('シート2-②-3'!P19),\"\",'シート2-②-3'!P19)","v":""},{"$f":"IF(ISBLANK('シート2-②-3'!P20),\"\",'シート2-②-3'!P20)","v":""},{"$f":"IF(ISBLANK('シート2-②-3'!P21),\"\",'シート2-②-3'!P21)","v":""},{"$f":"IF(ISBLANK('シート2-②-3'!P22),\"\",'シート2-②-3'!P22)","v":""},{"$f":"IF(ISBLANK('シート2-②-3'!P23),\"\",'シート2-②-3'!P23)","v":""},{"$f":"IF(ISBLANK('シート2-②-3'!P24),\"\",'シート2-②-3'!P24)","v":""},{"$f":"IF(ISBLANK('シート2-②-3'!#REF!),\"\",'シート2-②-3'!#REF!)","v":{"$error":"#REF!"}},{"$f":"IF(ISBLANK('シート2-②-3'!#REF!),\"\",'シート2-②-3'!#REF!)","v":{"$error":"#REF!"}},{"$f":"IF(ISBLANK('シート2-②-3'!#REF!),\"\",'シート2-②-3'!#REF!)","v":{"$error":"#REF!"}},{"$f":"IF(ISBLANK('シート2-②-3'!#REF!),\"\",'シート2-②-3'!#REF!)","v":{"$error":"#REF!"}},{"$f":"IF(ISBLANK('シート2-②-3'!P30),\"\",'シート2-②-3'!P30)","v":""},{"$f":"IF(ISBLANK('シート2-②-3'!P31),\"\",'シート2-②-3'!P31)","v":""},{"$f":"IF(ISBLANK('シート2-②-3'!P32),\"\",'シート2-②-3'!P32)","v":""},{"$f":"IF(ISBLANK('シート2-②-3'!S18),\"\",'シート2-②-3'!S18)","v":""},{"$f":"IF(ISBLANK('シート2-②-3'!S19),\"\",'シート2-②-3'!S19)","v":""},{"$f":"IF(ISBLANK('シート2-②-3'!S20),\"\",'シート2-②-3'!S20)","v":""},{"$f":"IF(ISBLANK('シート2-②-3'!S21),\"\",'シート2-②-3'!S21)","v":""},{"$f":"IF(ISBLANK('シート2-②-3'!S22),\"\",'シート2-②-3'!S22)","v":""},{"$f":"IF(ISBLANK('シート2-②-3'!S23),\"\",'シート2-②-3'!S23)","v":""},{"$f":"IF(ISBLANK('シート2-②-3'!S24),\"\",'シート2-②-3'!S24)","v":""},{"$f":"IF(ISBLANK('シート2-②-3'!#REF!),\"\",'シート2-②-3'!#REF!)","v":{"$error":"#REF!"}},{"$f":"IF(ISBLANK('シート2-②-3'!#REF!),\"\",'シート2-②-3'!#REF!)","v":{"$error":"#REF!"}},{"$f":"IF(ISBLANK('シート2-②-3'!#REF!),\"\",'シート2-②-3'!#REF!)","v":{"$error":"#REF!"}},{"$f":"IF(ISBLANK('シート2-②-3'!#REF!),\"\",'シート2-②-3'!#REF!)","v":{"$error":"#REF!"}},{"$f":"IF(ISBLANK('シート2-②-3'!S30),\"\",'シート2-②-3'!S30)","v":""},{"$f":"IF(ISBLANK('シート2-②-3'!S31),\"\",'シート2-②-3'!S31)","v":""},{"$f":"IF(ISBLANK('シート2-②-3'!S32),\"\",'シート2-②-3'!S32)","v":""},{"$f":"IF(ISBLANK('シート2-②-3'!V18),\"\",'シート2-②-3'!V18)","v":""},{"$f":"IF(ISBLANK('シート2-②-3'!V19),\"\",'シート2-②-3'!V19)","v":""},{"$f":"IF(ISBLANK('シート2-②-3'!V20),\"\",'シート2-②-3'!V20)","v":""},{"$f":"IF(ISBLANK('シート2-②-3'!V21),\"\",'シート2-②-3'!V21)","v":""},{"$f":"IF(ISBLANK('シート2-②-3'!V22),\"\",'シート2-②-3'!V22)","v":""},{"$f":"IF(ISBLANK('シート2-②-3'!V23),\"\",'シート2-②-3'!V23)","v":""},{"$f":"IF(ISBLANK('シート2-②-3'!V24),\"\",'シート2-②-3'!V24)","v":""},{"$f":"IF(ISBLANK('シート2-②-3'!#REF!),\"\",'シート2-②-3'!#REF!)","v":{"$error":"#REF!"}},{"$f":"IF(ISBLANK('シート2-②-3'!#REF!),\"\",'シート2-②-3'!#REF!)","v":{"$error":"#REF!"}},{"$f":"IF(ISBLANK('シート2-②-3'!#REF!),\"\",'シート2-②-3'!#REF!)","v":{"$error":"#REF!"}},{"$f":"IF(ISBLANK('シート2-②-3'!#REF!),\"\",'シート2-②-3'!#REF!)","v":{"$error":"#REF!"}},{"$f":"IF(ISBLANK('シート2-②-3'!V30),\"\",'シート2-②-3'!V30)","v":""},{"$f":"IF(ISBLANK('シート2-②-3'!V31),\"\",'シート2-②-3'!V31)","v":""},{"$f":"IF(ISBLANK('シート2-②-3'!V32),\"\",'シート2-②-3'!V32)","v":""},{"$f":"IF(ISBLANK('シート2-②-3'!Y19),\"\",'シート2-②-3'!Y19)","v":""},{"$f":"IF(ISBLANK('シート2-②-3'!Y20),\"\",'シート2-②-3'!Y20)","v":""},{"$f":"IF(ISBLANK('シート2-②-3'!Y21),\"\",'シート2-②-3'!Y21)","v":""},{"$f":"IF(ISBLANK('シート2-②-3'!Y22),\"\",'シート2-②-3'!Y22)","v":""},{"$f":"IF(ISBLANK('シート2-②-3'!Y23),\"\",'シート2-②-3'!Y23)","v":""},{"$f":"IF(ISBLANK('シート2-②-3'!Y24),\"\",'シート2-②-3'!Y24)","v":""},{"$f":"IF(ISBLANK('シート2-②-3'!#REF!),\"\",'シート2-②-3'!#REF!)","v":{"$error":"#REF!"}},{"$f":"IF(ISBLANK('シート2-②-3'!#REF!),\"\",'シート2-②-3'!#REF!)","v":{"$error":"#REF!"}},{"$f":"IF(ISBLANK('シート2-②-3'!#REF!),\"\",'シート2-②-3'!#REF!)","v":{"$error":"#REF!"}},{"$f":"IF(ISBLANK('シート2-②-3'!#REF!),\"\",'シート2-②-3'!#REF!)","v":{"$error":"#REF!"}},{"$f":"IF(ISBLANK('シート2-②-3'!Y30),\"\",'シート2-②-3'!Y30)","v":""},{"$f":"IF(ISBLANK('シート2-②-3'!Y31),\"\",'シート2-②-3'!Y31)","v":""},{"$f":"IF(ISBLANK('シート2-②-3'!Y32),\"\",'シート2-②-3'!Y32)","v":""}]
["シート2",{"$f":"IF(ISBLANK(G7),\"\",G7)","v":""},"専門Ⅱ","2-4",{"$f":"IF(ISBLANK('シート2-②-4'!E10),\"\",'シート2-②-4'!E10)","v":""},{"$f":"IF(ISBLANK('シート2-②-4'!M10),\"\",'シート2-②-4'!M10)","v":""},{"$f":"IF(ISBLANK('シート2-②-4'!R10),\"\",'シート2-②-4'!R10)","v":""},{"$f":"IF(ISBLANK('シート2-②-4'!E11),\"\",'シート2-②-4'!E11)","v":""},{"$f":"IF(ISBLANK('シート2-②-4'!M11),\"\",'シート2-②-4'!M11)","v":""},{"$f":"IF(ISBLANK('シート2-②-4'!R11),\"\",'シート2-②-4'!R11)","v":""},{"$f":"IF(ISBLANK('シート2-②-4'!E13),\"\",'シート2-②-4'!E13)","v":""},{"$f":"IF(ISBLANK('シート2-②-4'!E14),\"\",'シート2-②-4'!E14)","v":""},{"$f":"IF(ISBLANK('シート2-②-4'!Y10),\"\",'シート2-②-4'!Y10)","v":""},{"$f":"IF(ISBLANK('シート2-②-4'!Y13),\"\",'シート2-②-4'!Y13)","v":""},10,{"$f":"IF(ISBLANK('シート2-②-4'!P18),\"\",'シート2-②-4'!P18)","v":""},{"$f":"IF(ISBLANK('シート2-②-4'!P19),\"\",'シート2-②-4'!P19)","v":""},{"$f":"IF(ISBLANK('シート2-②-4'!P20),\"\",'シート2-②-4'!P20)","v":""},{"$f":"IF(ISBLANK('シート2-②-4'!P21),\"\",'シート2-②-4'!P21)","v":""},{"$f":"IF(ISBLANK('シート2-②-4'!P22),\"\",'シート2-②-4'!P22)","v":""},{"$f":"IF(ISBLANK('シート2-②-4'!P23),\"\",'シート2-②-4'!P23)","v":""},{"$f":"IF(ISBLANK('シート2-②-4'!#REF!),\"\",'シート2-②-4'!#REF!)","v":{"$error":"#REF!"}},{"$f":"IF(ISBLANK('シート2-②-4'!#REF!),\"\",'シート2-②-4'!#REF!)","v":{"$error":"#REF!"}},{"$f":"IF(ISBLANK('シート2-②-4'!#REF!),\"\",'シート2-②-4'!#REF!)","v":{"$error":"#REF!"}},{"$f":"IF(ISBLANK('シート2-②-4'!#REF!),\"\",'シート2-②-4'!#REF!)","v":{"$error":"#REF!"}},{"$f":"IF(ISBLANK('シート2-②-4'!P24),\"\",'シート2-②-4'!P24)","v":""},{"$f":"IF(ISBLANK('シート2-②-4'!#REF!),\"\",'シート2-②-4'!#REF!)","v":{"$error":"#REF!"}},{"$f":"IF(ISBLANK('シート2-②-4'!P30),\"\",'シート2-②-4'!P30)","v":""},{"$f":"IF(ISBLANK('シート2-②-4'!P31),\"\",'シート2-②-4'!P31)","v":""},{"$f":"IF(ISBLANK('シート2-②-4'!S18),\"\",'シート2-②-4'!S18)","v":""},{"$f":"IF(ISBLANK('シート2-②-4'!S19),\"\",'シート2-②-4'!S19)","v":""},{"$f":"IF(ISBLANK('シート2-②-4'!S20),\"\",'シート2-②-4'!S20)","v":""},{"$f":"IF(ISBLANK('シート2-②-4'!S21),\"\",'シート2-②-4'!S21)","v":""},{"$f":"IF(ISBLANK('シート2-②-4'!S22),\"\",'シート2-②-4'!S22)","v":""},{"$f":"IF(ISBLANK('シート2-②-4'!S23),\"\",'シート2-②-4'!S23)","v":""},{"$f":"IF(ISBLANK('シート2-②-4'!#REF!),\"\",'シート2-②-4'!#REF!)","v":{"$error":"#REF!"}},{"$f":"IF(ISBLANK('シート2-②-4'!#REF!),\"\",'シート2-②-4'!#REF!)","v":{"$error":"#REF!"}},{"$f":"IF(ISBLANK('シート2-②-4'!#REF!),\"\",'シート2-②-4'!#REF!)","v":{"$error":"#REF!"}},{"$f":"IF(ISBLANK('シート2-②-4'!#REF!),\"\",'シート2-②-4'!#REF!)","v":{"$error":"#REF!"}},{"$f":"IF(ISBLANK('シート2-②-4'!S24),\"\",'シート2-②-4'!S24)","v":""},{"$f":"IF(ISBLANK('シート2-②-4'!#REF!),\"\",'シート2-②-4'!#REF!)","v":{"$error":"#REF!"}},{"$f":"IF(ISBLANK('シート2-②-4'!S30),\"\",'シート2-②-4'!S30)","v":""},{"$f":"IF(ISBLANK('シート2-②-4'!S31),\"\",'シート2-②-4'!S31)","v":""},{"$f":"IF(ISBLANK('シート2-②-4'!V18),\"\",'シート2-②-4'!V18)","v":""},{"$f":"IF(ISBLANK('シート2-②-4'!V19),\"\",'シート2-②-4'!V19)","v":""},{"$f":"IF(ISBLANK('シート2-②-4'!V20),\"\",'シート2-②-4'!V20)","v":""},{"$f":"IF(ISBLANK('シート2-②-4'!V21),\"\",'シート2-②-4'!V21)","v":""},{"$f":"IF(ISBLANK('シート2-②-4'!V22),\"\",'シート2-②-4'!V22)","v":""},{"$f":"IF(ISBLANK('シート2-②-4'!V23),\"\",'シート2-②-4'!V23)","v":""},{"$f":"IF(ISBLANK('シート2-②-4'!#REF!),\"\",'シート2-②-4'!#REF!)","v":{"$error":"#REF!"}},{"$f":"IF(ISBLANK('シート2-②-4'!#REF!),\"\",'シート2-②-4'!#REF!)","v":{"$error":"#REF!"}},{"$f":"IF(ISBLANK('シート2-②-4'!#REF!),\"\",'シート2-②-4'!#REF!)","v":{"$error":"#REF!"}},{"$f":"IF(ISBLANK('シート2-②-4'!#REF!),\"\",'シート2-②-4'!#REF!)","v":{"$error":"#REF!"}},{"$f":"IF(ISBLANK('シート2-②-4'!V24),\"\",'シート2-②-4'!V24)","v":""},{"$f":"IF(ISBLANK('シート2-②-4'!#REF!),\"\",'シート2-②-4'!#REF!)","v":{"$error":"#REF!"}},{"$f":"IF(ISBLANK('シート2-②-4'!V30),\"\",'シート2-②-4'!V30)","v":""},{"$f":"IF(ISBLANK('シート2-②-4'!V31),\"\",'シート2-②-4'!V31)","v":""},{"$f":"IF(ISBLANK('シート2-②-4'!Y19),\"\",'シート2-②-4'!Y19)","v":""},{"$f":"IF(ISBLANK('シート2-②-4'!Y20),\"\",'シート2-②-4'!Y20)","v":""},{"$f":"IF(ISBLANK('シート2-②-4'!Y21),\"\",'シート2-②-4'!Y21)","v":""},{"$f":"IF(ISBLANK('シート2-②-4'!Y22),\"\",'シート2-②-4'!Y22)","v":""},{"$f":"IF(ISBLANK('シート2-②-4'!Y23),\"\",'シート2-②-4'!Y23)","v":""},{"$f":"IF(ISBLANK('シート2-②-4'!#REF!),\"\",'シート2-②-4'!#REF!)","v":{"$error":"#REF!"}},{"$f":"IF(ISBLANK('シート2-②-4'!#REF!),\"\",'シート2-②-4'!#REF!)","v":{"$error":"#REF!"}},{"$f":"IF(ISBLANK('シート2-②-4'!#REF!),\"\",'シート2-②-4'!#REF!)","v":{"$error":"#REF!"}},{"$f":"IF(ISBLANK('シート2-②-4'!#REF!),\"\",'シート2-②-4'!#REF!)","v":{"$error":"#REF!"}},{"$f":"IF(ISBLANK('シート2-②-4'!Y24),\"\",'シート2-②-4'!Y24)","v":""},{"$f":"IF(ISBLANK('シート2-②-4'!#REF!),\"\",'シート2-②-4'!#REF!)","v":{"$error":"#REF!"}},{"$f":"IF(ISBLANK('シート2-②-4'!Y30),\"\",'シート2-②-4'!Y30)","v":""},{"$f":"IF(ISBLANK('シート2-②-4'!Y31),\"\",'シート2-②-4'!Y31)","v":""}]
["シート2",{"$f":"IF(ISBLANK(G7),\"\",G7)","v":""},"専門Ⅱ","2-5",{"$f":"IF(ISBLANK('シート2-②-5'!E10),\"\",'シート2-②-5'!E10)","v":""},{"$f":"IF(ISBLANK('シート2-②-5'!M10),\"\",'シート2-②-5'!M10)","v":""},{"$f":"IF(ISBLANK('シート2-②-5'!R10),\"\",'シート2-②-5'!R10)","v":""},{"$f":"IF(ISBLANK('シート2-②-5'!E11),\"\",'シート2-②-5'!E11)","v":""},{"$f":"IF(ISBLANK('シート2-②-5'!M11),\"\",'シート2-②-5'!M11)","v":""},{"$f":"IF(ISBLANK('シート2-②-5'!R11),\"\",'シート2-②-5'!R11)","v":""},{"$f":"IF(ISBLANK('シート2-②-5'!E13),\"\",'シート2-②-5'!E13)","v":""},{"$f":"IF(ISBLANK('シート2-②-5'!E14),\"\",'シート2-②-5'!E14)","v":""},{"$f":"IF(ISBLANK('シート2-②-5'!Y10),\"\",'シート2-②-5'!Y10)","v":""},{"$f":"IF(ISBLANK('シート2-②-5'!Y13),\"\",'シート2-②-5'!Y13)","v":""},7,{"$f":"IF(ISBLANK('シート2-②-5'!P18),\"\",'シート2-②-5'!P18)","v":""},{"$f":"IF(ISBLANK('シート2-②-5'!P19),\"\",'シート2-②-5'!P19)","v":""},{"$f":"IF(ISBLANK('シート2-②-5'!P20),\"\",'シート2-②-5'!P20)","v":""},{"$f":"IF(ISBLANK('シート2-②-5'!P21),\"\",'シート2-②-5'!P21)","v":""},{"$f":"IF(ISBLANK('シート2-②-5'!P22),\"\",'シート2-②-5'!P22)","v":""},{"$f":"IF(ISBLANK('シート2-②-5'!P23),\"\",'シート2-②-5'!P23)","v":""},{"$f":"IF(ISBLANK('シート2-②-5'!#REF!),\"\",'シート2-②-5'!#REF!)","v":{"$error":"#REF!"}},{"$f":"IF(ISBLANK('シート2-②-5'!#REF!),\"\",'シート2-②-5'!#REF!)","v":{"$error":"#REF!"}},{"$f":"IF(ISBLANK('シート2-②-5'!#REF!),\"\",'シート2-②-5'!#REF!)","v":{"$error":"#REF!"}},{"$f":"IF(ISBLANK('シート2-②-5'!#REF!),\"\",'シート2-②-5'!#REF!)","v":{"$error":"#REF!"}},{"$f":"IF(ISBLANK('シート2-②-5'!#REF!),\"\",'シート2-②-5'!#REF!)","v":{"$error":"#REF!"}},{"$f":"IF(ISBLANK('シート2-②-5'!P30),\"\",'シート2-②-5'!P30)","v":""},{"$f":"IF(ISBLANK('シート2-②-5'!P31),\"\",'シート2-②-5'!P31)","v":""},{"$f":"IF(ISBLANK('シート2-②-5'!P32),\"\",'シート2-②-5'!P32)","v":""},{"$f":"IF(ISBLANK('シート2-②-5'!S18),\"\",'シート2-②-5'!S18)","v":""},{"$f":"IF(ISBLANK('シート2-②-5'!S19),\"\",'シート2-②-5'!S19)","v":""},{"$f":"IF(ISBLANK('シート2-②-5'!S20),\"\",'シート2-②-5'!S20)","v":""},{"$f":"IF(ISBLANK('シート2-②-5'!S21),\"\",'シート2-②-5'!S21)","v":""},{"$f":"IF(ISBLANK('シート2-②-5'!S22),\"\",'シート2-②-5'!S22)","v":""},{"$f":"IF(ISBLANK('シート2-②-5'!S23),\"\",'シート2-②-5'!S23)","v":""},{"$f":"IF(ISBLANK('シート2-②-5'!#REF!),\"\",'シート2-②-5'!#REF!)","v":{"$error":"#REF!"}},{"$f":"IF(ISBLANK('シート2-②-5'!#REF!),\"\",'シート2-②-5'!#REF!)","v":{"$error":"#REF!"}},{"$f":"IF(ISBLANK('シート2-②-5'!#REF!),\"\",'シート2-②-5'!#REF!)","v":{"$error":"#REF!"}},{"$f":"IF(ISBLANK('シート2-②-5'!#REF!),\"\",'シート2-②-5'!#REF!)","v":{"$error":"#REF!"}},{"$f":"IF(ISBLANK('シート2-②-5'!#REF!),\"\",'シート2-②-5'!#REF!)","v":{"$error":"#REF!"}},{"$f":"IF(ISBLANK('シート2-②-5'!S30),\"\",'シート2-②-5'!S30)","v":""},{"$f":"IF(ISBLANK('シート2-②-5'!S31),\"\",'シート2-②-5'!S31)","v":""},{"$f":"IF(ISBLANK('シート2-②-5'!S32),\"\",'シート2-②-5'!S32)","v":""},{"$f":"IF(ISBLANK('シート2-②-5'!V18),\"\",'シート2-②-5'!V18)","v":""},{"$f":"IF(ISBLANK('シート2-②-5'!V19),\"\",'シート2-②-5'!V19)","v":""},{"$f":"IF(ISBLANK('シート2-②-5'!V20),\"\",'シート2-②-5'!V20)","v":""},{"$f":"IF(ISBLANK('シート2-②-5'!V21),\"\",'シート2-②-5'!V21)","v":""},{"$f":"IF(ISBLANK('シート2-②-5'!V22),\"\",'シート2-②-5'!V22)","v":""},{"$f":"IF(ISBLANK('シート2-②-5'!V23),\"\",'シート2-②-5'!V23)","v":""},{"$f":"IF(ISBLANK('シート2-②-5'!#REF!),\"\",'シート2-②-5'!#REF!)","v":{"$error":"#REF!"}},{"$f":"IF(ISBLANK('シート2-②-5'!#REF!),\"\",'シート2-②-5'!#REF!)","v":{"$error":"#REF!"}},{"$f":"IF(ISBLANK('シート2-②-5'!#REF!),\"\",'シート2-②-5'!#REF!)","v":{"$error":"#REF!"}},{"$f":"IF(ISBLANK('シート2-②-5'!#REF!),\"\",'シート2-②-5'!#REF!)","v":{"$error":"#REF!"}},{"$f":"IF(ISBLANK('シート2-②-5'!#REF!),\"\",'シート2-②-5'!#REF!)","v":{"$error":"#REF!"}},{"$f":"IF(ISBLANK('シート2-②-5'!V30),\"\",'シート2-②-5'!V30)","v":""},{"$f":"IF(ISBLANK('シート2-②-5'!V31),\"\",'シート2-②-5'!V31)","v":""},{"$f":"IF(ISBLANK('シート2-②-5'!V32),\"\",'シート2-②-5'!V32)","v":""},{"$f":"IF(ISBLANK('シート2-②-5'!Y19),\"\",'シート2-②-5'!Y19)","v":""},{"$f":"IF(ISBLANK('シート2-②-5'!Y20),\"\",'シート2-②-5'!Y20)","v":""},{"$f":"IF(ISBLANK('シート2-②-5'!Y21),\"\",'シート2-②-5'!Y21)","v":""},{"$f":"IF(ISBLANK('シート2-②-5'!Y22),\"\",'シート2-②-5'!Y22)","v":""},{"$f":"IF(ISBLANK('シート2-②-5'!Y23),\"\",'シート2-②-5'!Y23)","v":""},{"$f":"IF(ISBLANK('シート2-②-5'!#REF!),\"\",'シート2-②-5'!#REF!)","v":{"$error":"#REF!"}},{"$f":"IF(ISBLANK('シート2-②-5'!#REF!),\"\",'シート2-②-5'!#REF!)","v":{"$error":"#REF!"}},{"$f":"IF(ISBLANK('シート2-②-5'!#REF!),\"\",'シート2-②-5'!#REF!)","v":{"$error":"#REF!"}},{"$f":"IF(ISBLANK('シート2-②-5'!#REF!),\"\",'シート2-②-5'!#REF!)","v":{"$error":"#REF!"}},{"$f":"IF(ISBLANK('シート2-②-5'!#REF!),\"\",'シート2-②-5'!#REF!)","v":{"$error":"#REF!"}},{"$f":"IF(ISBLANK('シート2-②-5'!Y30),\"\",'シート2-②-5'!Y30)","v":""},{"$f":"IF(ISBLANK('シート2-②-5'!Y31),\"\",'シート2-②-5'!Y31)","v":""},{"$f":"IF(ISBLANK('シート2-②-5'!Y32),\"\",'シート2-②-5'!Y32)","v":""}]
["シート2",{"$f":"IF(ISBLANK(G7),\"\",G7)","v":""},"専門Ⅱ","2-6",{"$f":"IF(ISBLANK('シート2-②-6'!E10),\"\",'シート2-②-6'!E10)","v":""},{"$f":"IF(ISBLANK('シート2-②-6'!M10),\"\",'シート2-②-6'!M10)","v":""},{"$f":"IF(ISBLANK('シート2-②-6'!R10),\"\",'シート2-②-6'!R10)","v":""},{"$f":"IF(ISBLANK('シート2-②-6'!E11),\"\",'シート2-②-6'!E11)","v":""},{"$f":"IF(ISBLANK('シート2-②-6'!M11),\"\",'シート2-②-6'!M11)","v":""},{"$f":"IF(ISBLANK('シート2-②-6'!R11),\"\",'シート2-②-6'!R11)","v":""},{"$f":"IF(ISBLANK('シート2-②-6'!E13),\"\",'シート2-②-6'!E13)","v":""},{"$f":"IF(ISBLANK('シート2-②-6'!E14),\"\",'シート2-②-6'!E14)","v":""},{"$f":"IF(ISBLANK('シート2-②-6'!Y10),\"\",'シート2-②-6'!Y10)","v":""},{"$f":"IF(ISBLANK('シート2-②-6'!Y13),\"\",'シート2-②-6'!Y13)","v":""},4,{"$f":"IF(ISBLANK('シート2-②-6'!P18),\"\",'シート2-②-6'!P18)","v":""},{"$f":"IF(ISBLANK('シート2-②-6'!P19),\"\",'シート2-②-6'!P19)","v":""},{"$f":"IF(ISBLANK('シート2-②-6'!P20),\"\",'シート2-②-6'!P20)","v":""},{"$f":"IF(ISBLANK('シート2-②-6'!P21),\"\",'シート2-②-6'!P21)","v":""},{"$f":"IF(ISBLANK('シート2-②-6'!P23),\"\",'シート2-②-6'!P23)","v":""},{"$f":"IF(ISBLANK('シート2-②-6'!P24),\"\",'シート2-②-6'!P24)","v":""},{"$f":"IF(ISBLANK('シート2-②-6'!#REF!),\"\",'シート2-②-6'!#REF!)","v":{"$error":"#REF!"}},{"$f":"IF(ISBLANK('シート2-②-6'!#REF!),\"\",'シート2-②-6'!#REF!)","v":{"$error":"#REF!"}},{"$f":"IF(ISBLANK('シート2-②-6'!#REF!),\"\",'シート2-②-6'!#REF!)","v":{"$error":"#REF!"}},{"$f":"IF(ISBLANK('シート2-②-6'!#REF!),\"\",'シート2-②-6'!#REF!)","v":{"$error":"#REF!"}},{"$f":"IF(ISBLANK('シート2-②-6'!#REF!),\"\",'シート2-②-6'!#REF!)","v":{"$error":"#REF!"}},{"$f":"IF(ISBLANK('シート2-②-6'!P29),\"\",'シート2-②-6'!P29)","v":""},{"$f":"IF(ISBLANK('シート2-②-6'!P30),\"\",'シート2-②-6'!P30)","v":""},{"$f":"IF(ISBLANK('シート2-②-6'!P31),\"\",'シート2-②-6'!P31)","v":""},{"$f":"IF(ISBLANK('シート2-②-6'!S18),\"\",'シート2-②-6'!S18)","v":""},{"$f":"IF(ISBLANK('シート2-②-6'!S19),\"\",'シート2-②-6'!S19)","v":""},{"$f":"IF(ISBLANK('シート2-②-6'!S20),\"\",'シート2-②-6'!S20)","v":""},{"$f":"IF(ISBLANK('シート2-②-6'!S21),\"\",'シート2-②-6'!S21)","v":""},{"$f":"IF(ISBLANK('シート2-②-6'!S23),\"\",'シート2-②-6'!S23)","v":""},{"$f":"IF(ISBLANK('シート2-②-6'!S24),\"\",'シート2-②-6'!S24)","v":""},{"$f":"IF(ISBLANK('シート2-②-6'!#REF!),\"\",'シート2-②-6'!#REF!)","v":{"$error":"#REF!"}},{"$f":"IF(ISBLANK('シート2-②-6'!#REF!),\"\",'シート2-②-6'!#REF!)","v":{"$error":"#REF!"}},{"$f":"IF(ISBLANK('シート2-②-6'!#REF!),\"\",'シート2-②-6'!#REF!)","v":{"$error":"#REF!"}},{"$f":"IF(ISBLANK('シート2-②-6'!#REF!),\"\",'シート2-②-6'!#REF!)","v":{"$error":"#REF!"}},{"$f":"IF(ISBLANK('シート2-②-6'!#REF!),\"\",'シート2-②-6'!#REF!)","v":{"$error":"#REF!"}},{"$f":"IF(ISBLANK('シート2-②-6'!S29),\"\",'シート2-②-6'!S29)","v":""},{"$f":"IF(ISBLANK('シート2-②-6'!S30),\"\",'シート2-②-6'!S30)","v":""},{"$f":"IF(ISBLANK('シート2-②-6'!S31),\"\",'シート2-②-6'!S31)","v":""},{"$f":"IF(ISBLANK('シート2-②-6'!V18),\"\",'シート2-②-6'!V18)","v":""},{"$f":"IF(ISBLANK('シート2-②-6'!V19),\"\",'シート2-②-6'!V19)","v":""},{"$f":"IF(ISBLANK('シート2-②-6'!V20),\"\",'シート2-②-6'!V20)","v":""},{"$f":"IF(ISBLANK('シート2-②-6'!V21),\"\",'シート2-②-6'!V21)","v":""},{"$f":"IF(ISBLANK('シート2-②-6'!V23),\"\",'シート2-②-6'!V23)","v":""},{"$f":"IF(ISBLANK('シート2-②-6'!V24),\"\",'シート2-②-6'!V24)","v":""},{"$f":"IF(ISBLANK('シート2-②-6'!#REF!),\"\",'シート2-②-6'!#REF!)","v":{"$error":"#REF!"}},{"$f":"IF(ISBLANK('シート2-②-6'!#REF!),\"\",'シート2-②-6'!#REF!)","v":{"$error":"#REF!"}},{"$f":"IF(ISBLANK('シート2-②-6'!#REF!),\"\",'シート2-②-6'!#REF!)","v":{"$error":"#REF!"}},{"$f":"IF(ISBLANK('シート2-②-6'!#REF!),\"\",'シート2-②-6'!#REF!)","v":{"$error":"#REF!"}},{"$f":"IF(ISBLANK('シート2-②-6'!#REF!),\"\",'シート2-②-6'!#REF!)","v":{"$error":"#REF!"}},{"$f":"IF(ISBLANK('シート2-②-6'!V29),\"\",'シート2-②-6'!V29)","v":""},{"$f":"IF(ISBLANK('シート2-②-6'!V30),\"\",'シート2-②-6'!V30)","v":""},{"$f":"IF(ISBLANK('シート2-②-6'!V31),\"\",'シート2-②-6'!V31)","v":""},{"$f":"IF(ISBLANK('シート2-②-6'!Y19),\"\",'シート2-②-6'!Y19)","v":""},{"$f":"IF(ISBLANK('シート2-②-6'!Y20),\"\",'シート2-②-6'!Y20)","v":""},{"$f":"IF(ISBLANK('シート2-②-6'!Y21),\"\",'シート2-②-6'!Y21)","v":""},{"$f":"IF(ISBLANK('シート2-②-6'!Y23),\"\",'シート2-②-6'!Y23)","v":""},{"$f":"IF(ISBLANK('シート2-②-6'!Y24),\"\",'シート2-②-6'!Y24)","v":""},{"$f":"IF(ISBLANK('シート2-②-6'!#REF!),\"\",'シート2-②-6'!#REF!)","v":{"$error":"#REF!"}},{"$f":"IF(ISBLANK('シート2-②-6'!#REF!),\"\",'シート2-②-6'!#REF!)","v":{"$error":"#REF!"}},{"$f":"IF(ISBLANK('シート2-②-6'!#REF!),\"\",'シート2-②-6'!#REF!)","v":{"$error":"#REF!"}},{"$f":"IF(ISBLANK('シート2-②-6'!#REF!),\"\",'シート2-②-6'!#REF!)","v":{"$error":"#REF!"}},{"$f":"IF(ISBLANK('シート2-②-6'!#REF!),\"\",'シート2-②-6'!#REF!)","v":{"$error":"#REF!"}},{"$f":"IF(ISBLANK('シート2-②-6'!Y29),\"\",'シート2-②-6'!Y29)","v":""},{"$f":"IF(ISBLANK('シート2-②-6'!Y30),\"\",'シート2-②-6'!Y30)","v":""},{"$f":"IF(ISBLANK('シート2-②-6'!Y31),\"\",'シート2-②-6'!Y31)","v":""}]
["シート2",{"$f":"IF(ISBLANK(G7),\"\",G7)","v":""},"専門Ⅱ","2-7",{"$f":"IF(ISBLANK('シート2-②-7'!E10),\"\",'シート2-②-7'!E10)","v":""},{"$f":"IF(ISBLANK('シート2-②-7'!M10),\"\",'シート2-②-7'!M10)","v":""},{"$f":"IF(ISBLANK('シート2-②-7'!R10),\"\",'シート2-②-7'!R10)","v":""},{"$f":"IF(ISBLANK('シート2-②-7'!E11),\"\",'シート2-②-7'!E11)","v":""},{"$f":"IF(ISBLANK('シート2-②-7'!M11),\"\",'シート2-②-7'!M11)","v":""},{"$f":"IF(ISBLANK('シート2-②-7'!R11),\"\",'シート2-②-7'!R11)","v":""},{"$f":"IF(ISBLANK('シート2-②-7'!E13),\"\",'シート2-②-7'!E13)","v":""},{"$f":"IF(ISBLANK('シート2-②-7'!E14),\"\",'シート2-②-7'!E14)","v":""},{"$f":"IF(ISBLANK('シート2-②-7'!Y10),\"\",'シート2-②-7'!Y10)","v":""},{"$f":"IF(ISBLANK('シート2-②-7'!Y13),\"\",'シート2-②-7'!Y13)","v":""},7,{"$f":"IF(ISBLANK('シート2-②-7'!P18),\"\",'シート2-②-7'!P18)","v":""},{"$f":"IF(ISBLANK('シート2-②-7'!P19),\"\",'シート2-②-7'!P19)","v":""},{"$f":"IF(ISBLANK('シート2-②-7'!P20),\"\",'シート2-②-7'!P20)","v":""},{"$f":"IF(ISBLANK('シート2-②-7'!P21),\"\",'シート2-②-7'!P21)","v":""},{"$f":"IF(ISBLANK('シート2-②-7'!P22),\"\",'シート2-②-7'!P22)","v":""},{"$f":"IF(ISBLANK('シート2-②-7'!P23),\"\",'シート2-②-7'!P23)","v":""},{"$f":"IF(ISBLANK('シート2-②-7'!#REF!),\"\",'シート2-②-7'!#REF!)","v":{"$error":"#REF!"}},{"$f":"IF(ISBLANK('シート2-②-7'!#REF!),\"\",'シート2-②-7'!#REF!)","v":{"$error":"#REF!"}},{"$f":"IF(ISBLANK('シート2-②-7'!P24),\"\",'シート2-②-7'!P24)","v":""},{"$f":"IF(ISBLANK('シート2-②-7'!#REF!),\"\",'シート2-②-7'!#REF!)","v":{"$error":"#REF!"}},{"$f":"IF(ISBLANK('シート2-②-7'!#REF!),\"\",'シート2-②-7'!#REF!)","v":{"$error":"#REF!"}},{"$f":"IF(ISBLANK('シート2-②-7'!P30),\"\",'シート2-②-7'!P30)","v":""},{"$f":"IF(ISBLANK('シート2-②-7'!P31),\"\",'シート2-②-7'!P31)","v":""},{"$f":"IF(ISBLANK('シート2-②-7'!P32),\"\",'シート2-②-7'!P32)","v":""},{"$f":"IF(ISBLANK('シート2-②-7'!S18),\"\",'シート2-②-7'!S18)","v":""},{"$f":"IF(ISBLANK('シート2-②-7'!S19),\"\",'シート2-②-7'!S19)","v":""},{"$f":"IF(ISBLANK('シート2-②-7'!S20),\"\",'シート2-②-7'!S20)","v":""},{"$f":"IF(ISBLANK('シート2-②-7'!S21),\"\",'シート2-②-7'!S21)","v":""},{"$f":"IF(ISBLANK('シート2-②-7'!S22),\"\",'シート2-②-7'!S22)","v":""},{"$f":"IF(ISBLANK('シート2-②-7'!S23),\"\",'シート2-②-7'!S23)","v":""},{"$f":"IF(ISBLANK('シート2-②-7'!#REF!),\"\",'シート2-②-7'!#REF!)","v":{"$error":"#REF!"}},{"$f":"IF(ISBLANK('シート2-②-7'!#REF!),\"\",'シート2-②-7'!#REF!)","v":{"$error":"#REF!"}},{"$f":"IF(ISBLANK('シート2-②-7'!S24),\"\",'シート2-②-7'!S24)","v":""},{"$f":"IF(ISBLANK('シート2-②-7'!#REF!),\"\",'シート2-②-7'!#REF!)","v":{"$error":"#REF!"}},{"$f":"IF(ISBLANK('シート2-②-7'!#REF!),\"\",'シート2-②-7'!#REF!)","v":{"$error":"#REF!"}},{"$f":"IF(ISBLANK('シート2-②-7'!S30),\"\",'シート2-②-7'!S30)","v":""},{"$f":"IF(ISBLANK('シート2-②-7'!S31),\"\",'シート2-②-7'!S31)","v":""},{"$f":"IF(ISBLANK('シート2-②-7'!S32),\"\",'シート2-②-7'!S32)","v":""},{"$f":"IF(ISBLANK('シート2-②-7'!V18),\"\",'シート2-②-7'!V18)","v":""},{"$f":"IF(ISBLANK('シート2-②-7'!V19),\"\",'シート2-②-7'!V19)","v":""},{"$f":"IF(ISBLANK('シート2-②-7'!V20),\"\",'シート2-②-7'!V20)","v":""},{"$f":"IF(ISBLANK('シート2-②-7'!V21),\"\",'シート2-②-7'!V21)","v":""},{"$f":"IF(ISBLANK('シート2-②-7'!V22),\"\",'シート2-②-7'!V22)","v":""},{"$f":"IF(ISBLANK('シート2-②-7'!V23),\"\",'シート2-②-7'!V23)","v":""},{"$f":"IF(ISBLANK('シート2-②-7'!#REF!),\"\",'シート2-②-7'!#REF!)","v":{"$error":"#REF!"}},{"$f":"IF(ISBLANK('シート2-②-7'!#REF!),\"\",'シート2-②-7'!#REF!)","v":{"$error":"#REF!"}},{"$f":"IF(ISBLANK('シート2-②-7'!V24),\"\",'シート2-②-7'!V24)","v":""},{"$f":"IF(ISBLANK('シート2-②-7'!#REF!),\"\",'シート2-②-7'!#REF!)","v":{"$error":"#REF!"}},{"$f":"IF(ISBLANK('シート2-②-7'!#REF!),\"\",'シート2-②-7'!#REF!)","v":{"$error":"#REF!"}},{"$f":"IF(ISBLANK('シート2-②-7'!V30),\"\",'シート2-②-7'!V30)","v":""},{"$f":"IF(ISBLANK('シート2-②-7'!V31),\"\",'シート2-②-7'!V31)","v":""},{"$f":"IF(ISBLANK('シート2-②-7'!V32),\"\",'シート2-②-7'!V32)","v":""},{"$f":"IF(ISBLANK('シート2-②-7'!Y19),\"\",'シート2-②-7'!Y19)","v":""},{"$f":"IF(ISBLANK('シート2-②-7'!Y20),\"\",'シート2-②-7'!Y20)","v":""},{"$f":"IF(ISBLANK('シート2-②-7'!Y21),\"\",'シート2-②-7'!Y21)","v":""},{"$f":"IF(ISBLANK('シート2-②-7'!Y22),\"\",'シート2-②-7'!Y22)","v":""},{"$f":"IF(ISBLANK('シート2-②-7'!Y23),\"\",'シート2-②-7'!Y23)","v":""},{"$f":"IF(ISBLANK('シート2-②-7'!#REF!),\"\",'シート2-②-7'!#REF!)","v":{"$error":"#REF!"}},{"$f":"IF(ISBLANK('シート2-②-7'!#REF!),\"\",'シート2-②-7'!#REF!)","v":{"$error":"#REF!"}},{"$f":"IF(ISBLANK('シート2-②-7'!Y24),\"\",'シート2-②-7'!Y24)","v":""},{"$f":"IF(ISBLANK('シート2-②-7'!#REF!),\"\",'シート2-②-7'!#REF!)","v":{"$error":"#REF!"}},{"$f":"IF(ISBLANK('シート2-②-7'!#REF!),\"\",'シート2-②-7'!#REF!)","v":{"$error":"#REF!"}},{"$f":"IF(ISBLANK('シート2-②-7'!Y30),\"\",'シート2-②-7'!Y30)","v":""},{"$f":"IF(ISBLANK('シート2-②-7'!Y31),\"\",'シート2-②-7'!Y31)","v":""},{"$f":"IF(ISBLANK('シート2-②-7'!Y32),\"\",'シート2-②-7'!Y32)","v":""}]
[]
[]
[]
[]
["集計データ（研修記録シート3）",null,null,null,null,"転記日"]
[null,null,"基本情報",null,null,null,null,null,null,null,null,null,null,null,"回答内容"]
["集計用","転記日","課程区分","科目区分","受講日1","時間1\n（始点）","時間2\n（終点）","受講日2","時間2\n（始点）","時間2\n（終点）","会場1","会場2","氏名","受講番号","①得た事","②活かせること","③学ぶべきこと","④感じたこと"]
["シート3",{"$f":"IF(ISBLANK(G22),\"\",G22)","v":""},"専門Ⅱ",1,{"$f":"IF(ISBLANK('シート3-①'!E10),\"\",'シート3-①'!E10)","v":""},{"$f":"IF(ISBLANK('シート3-①'!M10),\"\",'シート3-①'!M10)","v":""},{"$f":"IF(ISBLANK('シート3-①'!R10),\"\",'シート3-①'!R10)","v":""},{"$f":"IF(ISBLANK('シート3-①'!E11),\"\",'シート3-①'!E11)","v":""},{"$f":"IF(ISBLANK('シート3-①'!M11),\"\",'シート3-①'!M11)","v":""},{"$f":"IF(ISBLANK('シート3-①'!R11),\"\",'シート3-①'!R11)","v":""},{"$f":"IF(ISBLANK('シート3-①'!E13),\"\",'シート3-①'!E13)","v":""},{"$f":"IF(ISBLANK('シート3-①'!E14),\"\",'シート3-①'!E14)","v":""},{"$f":"IF(ISBLANK('シート3-①'!Y10),\"\",'シート3-①'!Y10)","v":""},{"$f":"IF(ISBLANK('シート3-①'!Y13),\"\",'シート3-①'!Y13)","v":""},{"$f":"IF(ISBLANK('シート3-①'!J18),\"\",'シート3-①'!J18)","v":""},{"$f":"IF(ISBLANK('シート3-①'!J19),\"\",'シート3-①'!J19)","v":""},{"$f":"IF(ISBLANK('シート3-①'!J20),\"\",'シート3-①'!J20)","v":""},{"$f":"IF(ISBLANK('シート3-①'!J21),\"\",'シート3-①'!J21)","v":""}]
["シート3",{"$f":"IF(ISBLANK(G22),\"\",G22)","v":""},"専門Ⅱ","2-1",{"$f":"IF(ISBLANK('シート3-②-1'!E10),\"\",'シート3-②-1'!E10)","v":""},{"$f":"IF(ISBLANK('シート3-②-1'!M10),\"\",'シート3-②-1'!M10)","v":""},{"$f":"IF(ISBLANK('シート3-②-1'!R10),\"\",'シート3-②-1'!R10)","v":""},{"$f":"IF(ISBLANK('シート3-②-1'!E11),\"\",'シート3-②-1'!E11)","v":""},{"$f":"IF(ISBLANK('シート3-②-1'!M11),\"\",'シート3-②-1'!M11)","v":""},{"$f":"IF(ISBLANK('シート3-②-1'!R11),\"\",'シート3-②-1'!R11)","v":""},{"$f":"IF(ISBLANK('シート3-②-1'!E13),\"\",'シート3-②-1'!E13)","v":""},{"$f":"IF(ISBLANK('シート3-②-1'!E14),\"\",'シート3-②-1'!E14)","v":""},{"$f":"IF(ISBLANK('シート3-②-1'!Y10),\"\",'シート3-②-1'!Y10)","v":""},{"$f":"IF(ISBLANK('シート3-②-1'!Y13),\"\",'シート3-②-1'!Y13)","v":""},{"$f":"IF(ISBLANK('シート3-②-1'!J18),\"\",'シート3-②-1'!J18)","v":""},{"$f":"IF(ISBLANK('シート3-②-1'!J19),\"\",'シート3-②-1'!J19)","v":""},{"$f":"IF(ISBLANK('シート3-②-1'!J20),\"\",'シート3-②-1'!J20)","v":""},{"$f":"IF(ISBLANK('シート3-②-1'!J21),\"\",'シート3-②-1'!J21)","v":""}]
["シート3",{"$f":"IF(ISBLANK(G22),\"\",G22)","v":""},"専門Ⅱ","2-2",{"$f":"IF(ISBLANK('シート3-②-2'!E10),\"\",'シート3-②-2'!E10)","v":""},{"$f":"IF(ISBLANK('シート3-②-2'!M10),\"\",'シート3-②-2'!M10)","v":""},{"$f":"IF(ISBLANK('シート3-②-2'!R10),\"\",'シート3-②-2'!R10)","v":""},{"$f":"IF(ISBLANK('シート3-②-2'!E11),\"\",'シート3-②-2'!E11)","v":""},{"$f":"IF(ISBLANK('シート3-②-2'!M11),\"\",'シート3-②-2'!M11)","v":""},{"$f":"IF(ISBLANK('シート3-②-2'!R11),\"\",'シート3-②-2'!R11)","v":""},{"$f":"IF(ISBLANK('シート3-②-2'!E13),\"\",'シート3-②-2'!E13)","v":""},{"$f":"IF(ISBLANK('シート3-②-2'!E14),\"\",'シート3-②-2'!E14)","v":""},{"$f":"IF(ISBLANK('シート3-②-2'!Y10),\"\",'シート3-②-2'!Y10)","v":""},{"$f":"IF(ISBLANK('シート3-②-2'!Y13),\"\",'シート3-②-2'!Y13)","v":""},{"$f":"IF(ISBLANK('シート3-②-2'!J18),\"\",'シート3-②-2'!J18)","v":""},{"$f":"IF(ISBLANK('シート3-②-2'!J19),\"\",'シート3-②-2'!J19)","v":""},{"$f":"IF(ISBLANK('シート3-②-2'!J20),\"\",'シート3-②-2'!J20)","v":""},{"$f":"IF(ISBLANK('シート3-②-2'!J21),\"\",'シート3-②-2'!J21)","v":""}]
["シート3",{"$f":"IF(ISBLANK(G22),\"\",G22)","v":""},"専門Ⅱ","2-3",{"$f":"IF(ISBLANK('シート3-②-3'!E10),\"\",'シート3-②-3'!E10)","v":""},{"$f":"IF(ISBLANK('シート3-②-3'!M10),\"\",'シート3-②-3'!M10)","v":""},{"$f":"IF(ISBLANK('シート3-②-3'!R10),\"\",'シート3-②-3'!R10)","v":""},{"$f":"IF(ISBLANK('シート3-②-3'!E11),\"\",'シート3-②-3'!E11)","v":""},{"$f":"IF(ISBLANK('シート3-②-3'!M11),\"\",'シート3-②-3'!M11)","v":""},{"$f":"IF(ISBLANK('シート3-②-3'!R11),\"\",'シート3-②-3'!R11)","v":""},{"$f":"IF(ISBLANK('シート3-②-3'!E13),\"\",'シート3-②-3'!E13)","v":""},{"$f":"IF(ISBLANK('シート3-②-3'!E14),\"\",'シート3-②-3'!E14)","v":""},{"$f":"IF(ISBLANK('シート3-②-3'!Y10),\"\",'シート3-②-3'!Y10)","v":""},{"$f":"IF(ISBLANK('シート3-②-3'!Y13),\"\",'シート3-②-3'!Y13)","v":""},{"$f":"IF(ISBLANK('シート3-②-3'!J18),\"\",'シート3-②-3'!J18)","v":""},{"$f":"IF(ISBLANK('シート3-②-3'!J19),\"\",'シート3-②-3'!J19)","v":""},{"$f":"IF(ISBLANK('シート3-②-3'!J20),\"\",'シート3-②-3'!J20)","v":""},{"$f":"IF(ISBLANK('シート3-②-3'!J21),\"\",'シート3-②-3'!J21)","v":""}]
["シート3",{"$f":"IF(ISBLANK(G22),\"\",G22)","v":""},"専門Ⅱ","2-4",{"$f":"IF(ISBLANK('シート3-②-4'!E10),\"\",'シート3-②-4'!E10)","v":""},{"$f":"IF(ISBLANK('シート3-②-4'!M10),\"\",'シート3-②-4'!M10)","v":""},{"$f":"IF(ISBLANK('シート3-②-4'!R10),\"\",'シート3-②-4'!R10)","v":""},{"$f":"IF(ISBLANK('シート3-②-4'!E11),\"\",'シート3-②-4'!E11)","v":""},{"$f":"IF(ISBLANK('シート3-②-4'!M11),\"\",'シート3-②-4'!M11)","v":""},{"$f":"IF(ISBLANK('シート3-②-4'!R11),\"\",'シート3-②-4'!R11)","v":""},{"$f":"IF(ISBLANK('シート3-②-4'!E13),\"\",'シート3-②-4'!E13)","v":""},{"$f":"IF(ISBLANK('シート3-②-4'!E14),\"\",'シート3-②-4'!E14)","v":""},{"$f":"IF(ISBLANK('シート3-②-4'!Y10),\"\",'シート3-②-4'!Y10)","v":""},{"$f":"IF(ISBLANK('シート3-②-4'!Y13),\"\",'シート3-②-4'!Y13)","v":""},{"$f":"IF(ISBLANK('シート3-②-4'!J18),\"\",'シート3-②-4'!J18)","v":""},{"$f":"IF(ISBLANK('シート3-②-4'!J19),\"\",'シート3-②-4'!J19)","v":""},{"$f":"IF(ISBLANK('シート3-②-4'!J20),\"\",'シート3-②-4'!J20)","v":""},{"$f":"IF(ISBLANK('シート3-②-4'!J21),\"\",'シート3-②-4'!J21)","v":""}]
["シート3",{"$f":"IF(ISBLANK(G22),\"\",G22)","v":""},"専門Ⅱ","2-5",{"$f":"IF(ISBLANK('シート3-②-5'!E10),\"\",'シート3-②-5'!E10)","v":""},{"$f":"IF(ISBLANK('シート3-②-5'!M10),\"\",'シート3-②-5'!M10)","v":""},{"$f":"IF(ISBLANK('シート3-②-5'!R10),\"\",'シート3-②-5'!R10)","v":""},{"$f":"IF(ISBLANK('シート3-②-5'!E11),\"\",'シート3-②-5'!E11)","v":""},{"$f":"IF(ISBLANK('シート3-②-5'!M11),\"\",'シート3-②-5'!M11)","v":""},{"$f":"IF(ISBLANK('シート3-②-5'!R11),\"\",'シート3-②-5'!R11)","v":""},{"$f":"IF(ISBLANK('シート3-②-5'!E13),\"\",'シート3-②-5'!E13)","v":""},{"$f":"IF(ISBLANK('シート3-②-5'!E14),\"\",'シート3-②-5'!E14)","v":""},{"$f":"IF(ISBLANK('シート3-②-5'!Y10),\"\",'シート3-②-5'!Y10)","v":""},{"$f":"IF(ISBLANK('シート3-②-5'!Y13),\"\",'シート3-②-5'!Y13)","v":""},{"$f":"IF(ISBLANK('シート3-②-5'!J18),\"\",'シート3-②-5'!J18)","v":""},{"$f":"IF(ISBLANK('シート3-②-5'!J19),\"\",'シート3-②-5'!J19)","v":""},{"$f":"IF(ISBLANK('シート3-②-5'!J20),\"\",'シート3-②-5'!J20)","v":""},{"$f":"IF(ISBLANK('シート3-②-5'!J21),\"\",'シート3-②-5'!J21)","v":""}]
["シート3",{"$f":"IF(ISBLANK(G22),\"\",G22)","v":""},"専門Ⅱ","2-6",{"$f":"IF(ISBLANK('シート3-②-6'!E10),\"\",'シート3-②-6'!E10)","v":""},{"$f":"IF(ISBLANK('シート3-②-6'!M10),\"\",'シート3-②-6'!M10)","v":""},{"$f":"IF(ISBLANK('シート3-②-6'!R10),\"\",'シート3-②-6'!R10)","v":""},{"$f":"IF(ISBLANK('シート3-②-6'!E11),\"\",'シート3-②-6'!E11)","v":""},{"$f":"IF(ISBLANK('シート3-②-6'!M11),\"\",'シート3-②-6'!M11)","v":""},{"$f":"IF(ISBLANK('シート3-②-6'!R11),\"\",'シート3-②-6'!R11)","v":""},{"$f":"IF(ISBLANK('シート3-②-6'!E13),\"\",'シート3-②-6'!E13)","v":""},{"$f":"IF(ISBLANK('シート3-②-6'!E14),\"\",'シート3-②-6'!E14)","v":""},{"$f":"IF(ISBLANK('シート3-②-6'!Y10),\"\",'シート3-②-6'!Y10)","v":""},{"$f":"IF(ISBLANK('シート3-②-6'!Y13),\"\",'シート3-②-6'!Y13)","v":""},{"$f":"IF(ISBLANK('シート3-②-6'!J18),\"\",'シート3-②-6'!J18)","v":""},{"$f":"IF(ISBLANK('シート3-②-6'!J19),\"\",'シート3-②-6'!J19)","v":""},{"$f":"IF(ISBLANK('シート3-②-6'!J20),\"\",'シート3-②-6'!J20)","v":""},{"$f":"IF(ISBLANK('シート3-②-6'!J21),\"\",'シート3-②-6'!J21)","v":""}]
["シート3",{"$f":"IF(ISBLANK(G22),\"\",G22)","v":""},"専門Ⅱ","2-7",{"$f":"IF(ISBLANK('シート3-②-7'!E10),\"\",'シート3-②-7'!E10)","v":""},{"$f":"IF(ISBLANK('シート3-②-7'!M10),\"\",'シート3-②-7'!M10)","v":""},{"$f":"IF(ISBLANK('シート3-②-7'!R10),\"\",'シート3-②-7'!R10)","v":""},{"$f":"IF(ISBLANK('シート3-②-7'!E11),\"\",'シート3-②-7'!E11)","v":""},{"$f":"IF(ISBLANK('シート3-②-7'!M11),\"\",'シート3-②-7'!M11)","v":""},{"$f":"IF(ISBLANK('シート3-②-7'!R11),\"\",'シート3-②-7'!R11)","v":""},{"$f":"IF(ISBLANK('シート3-②-7'!E13),\"\",'シート3-②-7'!E13)","v":""},{"$f":"IF(ISBLANK('シート3-②-7'!E14),\"\",'シート3-②-7'!E14)","v":""},{"$f":"IF(ISBLANK('シート3-②-7'!Y10),\"\",'シート3-②-7'!Y10)","v":""},{"$f":"IF(ISBLANK('シート3-②-7'!Y13),\"\",'シート3-②-7'!Y13)","v":""},{"$f":"IF(ISBLANK('シート3-②-7'!J18),\"\",'シート3-②-7'!J18)","v":""},{"$f":"IF(ISBLANK('シート3-②-7'!J19),\"\",'シート3-②-7'!J19)","v":""},{"$f":"IF(ISBLANK('シート3-②-7'!J20),\"\",'シート3-②-7'!J20)","v":""},{"$f":"IF(ISBLANK('シート3-②-7'!J21),\"\",'シート3-②-7'!J21)","v":""}]
[]
[]
[]
[]
[]
[null,null,null,null,{"$f":"IF((SUM(R38:AD38)+SUM(AF38:AR38)+SUM(AT38:BS38))=0,\"\",1)","v":""}]
[null,null,null,null,{"$f":"IF((SUM(R39:AD39)+SUM(AF39:AR39)+SUM(AT39:BS39))=0,\"\",2)","v":""}]
[null,null,null,null,{"$f":"IF((SUM(R40:AD40)+SUM(AF40:AR40)+SUM(AT40:BS40))=0,\"\",3)","v":""}]
[null,null,null,null,{"$f":"IF((SUM(R41:AD41)+SUM(AF41:AR41)+SUM(AT41:BS41))=0,\"\",4)","v":""}]
[null,null,null,null,{"$f":"IF((SUM(R42:AD42)+SUM(AF42:AR42)+SUM(AT42:BS42))=0,\"\",5)","v":""}]
[null,null,null,null,{"$f":"IF((SUM(R43:AD43)+SUM(AF43:AR43)+SUM(AT43:BS43))=0,\"\",6)","v":""}]
[null,null,null,null,{"$f":"IF((SUM(R44:AD44)+SUM(AF44:AR44)+SUM(AT44:BS44))=0,\"\",7)","v":""}]
[null,null,null,null,{"$f":"IF((SUM(R45:AD45)+SUM(AF45:AR45)+SUM(AT45:BS45))=0,\"\",8)","v":""}]
[null,null,null,null,{"$f":"IF((SUM(R46:AD46)+SUM(AF46:AR46)+SUM(AT46:BS46))=0,\"\",9)","v":""}]
[null,null,null,null,{"$f":"IF((SUM(R47:AD47)+SUM(AF47:AR47)+SUM(AT47:BS47))=0,\"\",10)","v":""}]
[null,null,null,null,{"$f":"IF((SUM(R48:AD48)+SUM(AF48:AR48)+SUM(AT48:BS48))=0,\"\",11)","v":""}]
[null,null,null,null,{"$f":"IF((SUM(R49:AD49)+SUM(AF49:AR49)+SUM(AT49:BS49))=0,\"\",12)","v":""}]
[null,null,null,null,{"$f":"IF((SUM(R50:AD50)+SUM(AF50:AR50)+SUM(AT50:BS50))=0,\"\",13)","v":""}]
[null,null,null,null,{"$f":"IF((SUM(R51:AD51)+SUM(AF51:AR51)+SUM(AT51:BS51))=0,\"\",14)","v":""}]
[null,null,null,null,{"$f":"IF((SUM(R52:AD52)+SUM(AF52:AR52)+SUM(AT52:BS52))=0,\"\",15)","v":""}]
[null,null,null,null,{"$f":"IF((SUM(R53:AD53)+SUM(AF53:AR53)+SUM(AT53:BS53))=0,\"\",16)","v":""}]

{"sheet":"リスト","index":20,"n_rows":136,"n_cols":9,"rows_kept":136,"cut":false,"hidden":true,"merged":[[1,2,2,2],[1,3,1,4],[1,5,1,6],[1,7,1,8]]}
["選択肢"]
["リスト（課程区分）","リスト（時間）",null,"受講前",null,"受講後 ",null,"実践評価"]
[null,"リストから選択",null,"理解度","習得度","理解度","習得度","理解度","習得度"]
["Ⅰ","08:00:00"]
["Ⅱ","08:05:00",4,"4．理解している ","-","4．非常に理解が深まった ","4．習得できた ","4．非常に理解が深まった","4．習得度が上がった "]
[null,"08:10:00",3,"3．概ね理解している ","-","3．理解が深まった ","3．概ね習得できた ","3．理解が深まった","3．まあまあ習得度が上がった "]
[null,"08:15:00",2,"2．あまり理解していない ","-","2．あまり理解が進まなかった ","2．あまり習得できていない ","2．あまり理解度は変わらない ","2．習得度は変わらない "]
[null,"08:20:00",1,"1．全く理解していない ","-","1．理解が進まなかった ","1．習得できていない ","1．理解度は変わらない。 ","1．理解度が深まり、習得度が後退した "]
[null,"08:25:00"]
[null,"08:30:00"]
[null,"08:35:00"]
[null,"08:40:00"]
[null,"08:45:00"]
[null,"08:50:00"]
[null,"08:55:00"]
[null,"09:00:00"]
[null,"09:05:00"]
[null,"09:10:00"]
[null,"09:15:00"]
[null,"09:20:00"]
[null,"09:25:00"]
[null,"09:30:00"]
[null,"09:35:00"]
[null,"09:40:00"]
[null,"09:45:00"]
[null,"09:50:00"]
[null,"09:55:00"]
[null,"10:00:00"]
[null,"10:05:00"]
[null,"10:10:00"]
[null,"10:15:00"]
[null,"10:20:00"]
[null,"10:25:00"]
[null,"10:30:00"]
[null,"10:35:00"]
[null,"10:40:00"]
[null,"10:45:00"]
[null,"10:50:00"]
[null,"10:55:00"]
[null,"11:00:00"]
[null,"11:05:00"]
[null,"11:10:00"]
[null,"11:15:00"]
[null,"11:20:00"]
[null,"11:25:00"]
[null,"11:30:00"]
[null,"11:35:00"]
[null,"11:40:00"]
[null,"11:45:00"]
[null,"11:50:00"]
[null,"11:55:00"]
[null,"12:00:00"]
[null,"12:05:00"]
[null,"12:10:00"]
[null,"12:15:00"]
[null,"12:20:00"]
[null,"12:25:00"]
[null,"12:30:00"]
[null,"12:35:00"]
[null,"12:40:00"]
[null,"12:45:00"]
[null,"12:50:00"]
[null,"12:55:00"]
[null,"13:00:00"]
[null,"13:05:00"]
[null,"13:10:00"]
[null,"13:15:00"]
[null,"13:20:00"]
[null,"13:25:00"]
[null,"13:30:00"]
[null,"13:35:00"]
[null,"13:40:00"]
[null,"13:45:00"]
[null,"13:50:00"]
[null,"13:55:00"]
[null,"14:00:00"]
[null,"14:05:00"]
[null,"14:10:00"]
[null,"14:15:00"]
[null,"14:20:00"]
[null,"14:25:00"]
[null,"14:30:00"]
[null,"14:35:00"]
[null,"14:40:00"]
[null,"14:45:00"]
[null,"14:50:00"]
[null,"14:55:00"]
[null,"15:00:00"]
[null,"15:05:00"]
[null,"15:10:00"]
[null,"15:15:00"]
[null,"15:20:00"]
[null,"15:25:00"]
[null,"15:30:00"]
[null,"15:35:00"]
[null,"15:40:00"]
[null,"15:45:00"]
[null,"15:50:00"]
[null,"15:55:00"]
[null,"16:00:00"]
[null,"16:05:00"]
[null,"16:10:00"]
[null,"16:15:00"]
[null,"16:20:00"]
[null,"16:25:00"]
[null,"16:30:00"]
[null,"16:35:00"]
[null,"16:40:00"]
[null,"16:45:00"]
[null,"16:50:00"]
[null,"16:55:00"]
[null,"17:00:00"]
[null,"17:05:00"]
[null,"17:10:00"]
[null,"17:15:00"]
[null,"17:20:00"]
[null,"17:25:00"]
[null,"17:30:00"]
[null,"17:35:00"]
[null,"17:40:00"]
[null,"17:45:00"]
[null,"17:50:00"]
[null,"17:55:00"]
[null,"18:00:00"]
[null,"18:05:00"]
[null,"18:10:00"]
[null,"18:15:00"]
[null,"18:20:00"]
[null,"18:25:00"]
[null,"18:30:00"]
[null,"18:35:00"]
[null,"18:40:00"]
[null,"18:45:00"]
[null,"18:50:00"]
[null,"18:55:00"]
[null,"19:00:00"]